Workbook

Sheet Einführung
A19: Sehr geehrte Damen und Herren,
A21: ein Businessplan ist ein wichtiges und nützliches Hilfsmittel für jede Geschäftsleitung, jeden Verwaltungsrat und jede/n Unternehmer/in. Er dient nicht nur als Kommunikationsgrundlage für Gespräche mit Banken und anderen Kapitalgebern, sondern ist vor allem auch für Sie selbst bestimmt, um Klarheit über Kosten und Finanzierbarkeit der Geschäftsidee zu erhalten. Sie verfügen damit über eine Leitlinie, an der Sie Ihre Ziele und Aktivitäten ausrichten und dann laufend überprüfen können. Für eine überzeugende und aussagekräftige Präsentation Ihrer Unternehmensidee bedarf es einer konkreten Planung der einzelnen Schritte. Mit Hilfe der Menüführung werden Sie durch alle Tabellen geführt. Mit den vorgegebenen Richtwerten können Sie auf vereinfachte Weise den rechnerischen Teil Ihres Businessplans erarbeiten. Sie haben mit dieser Vorlage ein wertvolles Instrument, um Ihren individuellen Businessplan zu erstellen und die Geschäftsidee Schritt für Schritt umsetzen zu können. Zudem gibt es die Möglichkeit den erarbeiteten Businessplan anschließend mit einem Experten zu besprechen. Sie können Ihren Plan somit nochmals durchdenken und erhalten wertvolle Tipps und Hinweise.
A22: Nähere Informationen
A23: Service für Unternehmensgründung der Handelskammer Bozen Südtiroler Straße 60, 39100 Bozen Tel. 0471 945 671, Fax 945 524 startup@handelskammer.bz.it www.handelskammer.bz.it
A27: Impressum
A28: Herausgeber:
A29: Handels-, Industrie-, Handwerks- und Landwirtschaftskammer Bozen
A30: Autonome Provinz Bozen - Südtirol, Abteilung 35 - Handwerk, Industrie, Handel und Tourismus
A32: Projektleitung:
A33: Service für Unternehmensgründung der Handelskammer Bozen
A35: Konzept und technische Umsetzung des Businessplans:
A36: ROI TEAM CONSULTANT GMBH, Bozen
A38: Haftungsausschluss:
A39: Diese Businessplan-Vorlage erhebt keinen Anspruch auf Richtigkeit und Vollständigkeit. Alle Angaben erfolgen trotz größtmöglicher Sorgfalt ohne Gewähr. Jegliche Haftung von Seiten der Handelskammer ist ausgeschlossen.

Sheet Handbuch
A5: Wichtiger Hinweis: Der Businessplan ist speziell für Unternehmensgründer/innen konzipiert. Zugunsten eines besseren Verständnisses und einer leichteren Erstellung des Businessplans wird bei dieser Vorlage auf vereinfachte Berechnungen zurückgegriffen. Aufgrund der Komplexität der Thematik konnten nicht alle rechtlichen, steuerlichen und buchhalterischen Aspekte im Detail beleuchtet und berücksichtigt werden. Trotzdem ist diese Businessplan-Vorlage für den/die Unternehmensgründer/in ein wertvolles Hilfsmittel zur Überprüfung der Wirtschaftlichkeit der eigenen Geschäftsidee und kann auch in den folgenden Jahren als Kontrollinstrument der unternehmerischen Tätigkeit dienen.
A7: Handbuch
A8: Hellblaue Felder mit blauer Schriftfarbe | B8: Die hellblauen Felder mit blauer Schriftfarbe stehen für die manuelle Eingabe zur Verfügung. Hinweise: Sollte eine Kostenposition für Ihr Unternehmen nicht relevant sein, lassen Sie das entsprechende Feld leer. Sollte hingegen eine für Ihr Unternehmen wichtige Kostenposition nicht angeführt sein, können Sie diese in die dafür vorgesehenen freien Felder eingeben. In einige Felder müssen Sie Ihre geplanten Prozentsätze selbst eintragen. Bitte beachten Sie in diesen Feldern, dass je nach Excel Version die Eingabe direkt als Prozentsatz erfolgen kann oder Sie den Prozentsatz wie folgt eingeben müssen: z.B.: für 4% die Zahl 0,04, für 40% die Zahl 0,4.
A9: Richtwerte | B9: Richtwerte sind Durchschnittswerte und damit Hinweise und keine allgemein gültigen Werte. Diese Werte müssen an das jeweilige Unternehmen angeglichen werden.
A10: Blaue Felder mit weißer Schriftfarbe | B10: Die blauen Felder mit weißer Schriftfarbe sind Summenfelder. Hinweis: Bei einem negativen Ergebnis erscheint die Summe in roter Schriftfarbe mit negativem Vorzeichen.
A11: Felder mit rotem Dreieck | B11: Das kleine Dreieck in der rechten Ecke eines Feldes zeigt an, dass dieses Feld mit einem Kommentar versehen ist. Wenn Sie mit der Maus auf diese Zelle gehen, erscheint ein kleines Fenster mit Beschreibung oder Beispielen.
A13: Glossar
A14: Allgemeiner Hinweis | B14: Im Glossar finden Sie in kurzer und leicht verständlicher Form Erläuterungen zu den wichtigsten Begriffen, die in dieser Businessplan-Vorlage verwendet werden. Die Begriffe sind in alphabetischer Reihenfolge aufgelistet. Wir empfehlen Ihnen das Glossar auszudrucken, da es ein nützliches Instrument zur korrekten Erstellung des Businessplans darstellt.
A16: 1. Schritt: Beschreibung der Geschäftsidee
A17: Allgemeiner Hinweis | B17: Eine kurze Erklärung Ihres Vorhabens bildet den Kern eines jeden Gründungskonzeptes. Darin sollten Sie so kurz und verständlich wie möglich, aber auch so ausführlich wie nötig, die wesentlichen Elemente Ihrer Geschäftsidee zusammenfassen. Machen Sie deutlich, welche besondere Zielsetzung Sie haben und inwieweit Sie sich von der Konkurrenz abheben.
A19: 2. Schritt: Lebenshaltung
A20: Allgemeiner Hinweis | B20: Diese Seite hilft Ihnen dabei, den jetzigen Lebensunterhalt-Standard mit dem als Unternehmer/in zu vergleichen. Zunächst tragen Sie bitte alle Einkünfte und Ausgaben ein, welche Sie vor dem Start als Unternehmer/in einnehmen bzw. ausgeben. Die Tabelle zeigt Ihnen den jährlichen Überschuss/Fehlbetrag an. Auf diesem Basiseinkommen wird in der unteren Ansicht mit Berücksichtigung sämtlicher Nebenkosten die Differenz zwischen dem aktuellen und dem zukünftigen Lebensstandard errechnet. Sollten Sie als Unternehmer/in weniger Einkommen erzielen als vorher, wird Ihnen die Differenz in roter Schriftfarbe erscheinen.
A22: 3. Schritt: Investitionsplanung
A23: Investitionen | B23: Tragen Sie Ihren Investitionsbedarf in die dafür vorgesehenen Felder ein und wählen Sie jeweils die entsprechende Art der Investition aus. Sollten Sie bereits im Besitz von Gütern und Anlagen (wie z.B. PC, Auto usw.) sein, müssen Sie folgendes beachten: Tragen Sie die bereits in Vergangenheit erworbenen Güter und Anlagen zum aktuellen Marktpreis in die Tabelle "Investitionsbedarf" ein. Hinweis: Zählen Sie im Blatt "Finanzplanung" (8. Schritt) den aktuellen Marktwert dieser selbst eingebrachten Güter und Anlagen zum Eigenkapital (Feld "Eigenkapital und/oder Gesellschafterbeteiligung") dazu.
A24: Sicherheitsreserve | B24: Erfahrungsgemäß ist es schwierig, alle notwendigen Investitionen von Beginn an zu erfassen. Aus diesem Grund ist es sinnvoll, eine Sicherheitsreserve von 5% auf die Gesamtinvestition für unvorhergesehene Investitionen zu kalkulieren. Dieser Betrag wird automatisch berechnet.
A25: Abschreibungen | B25: Die Abschreibungen werden für jede Investition auf Basis von Nutzungsdauer und Abschreibequote automatisch berechnet. Es wird darauf hingewiesen, dass in dieser Vorlage allgemein gültige steuerliche Abschreibequoten verwendet werden. Besondere Formen der Abschreibung werden nicht berücksichtigt.
A26: Gründungskosten | B26: Bei den Gründungskosten werden die üblich anfallenden Kostenpositionen vorgegeben. Tragen Sie entweder die geplanten Beträge in diese Felder ein oder lassen Sie nicht relevante Felder leer. Sollten weitere Kostenpositionen anfallen, können Sie diese hinzufügen.
A28: 4. Schritt: Umsatzplanung
A29: Allgemeiner Hinweis | B29: In dieser Tabelle können Sie ihre Umsätze für die ersten 5 Jahre planen. Um zu den geplanten Roherträgen zu gelangen, muss der Preis, die geplante Menge, sowie der Wareneinsatz in % eingetragen werden.
A30: Preis | B30: Geben Sie den Preis an, den Sie mit dem Produkt erzielen möchten. Achtung: Nettobetrag, ohne Mehrwertsteuer!
A31: Menge | B31: Geben Sie eine realistische Menge an, wie oft Sie Ihr/e Produkt / Dienstleistung jährlich verkaufen werden.
A32: Wareneinsatz | B32: Der Wareneinsatz gibt an, wieviel ein Unternehmen für die Ware, die es verkauft hat, aufgewendet hat (Einkaufspreis). Bei Dienstleistungen ist der Wareneinsatz entweder gering oder gleich "null".Geben Sie den Prozentsatz ein, den Sie im Verhältnis zum erzielten Umsatz für die Ware bezahlen müssen.
A34: 5. Schritt: Personalkosten
A35: Allgemeiner Hinweis | B35: Berechnen Sie hier die jährlichen Personalkosten für Ihr Unternehmen.
A36: Branche | B36: Wählen Sie zunächst die passende Branche für Ihr Unternehmen. Dies ist wichtig, da die Anzahl der jährlichen Gehälter in den verschiedenen Branchen variiert.
A37: Beginn Monat | B37: Tragen Sie ein, ab welchem Monat Sie Mitarbeiter einstellen.
A38: Personalkosten | B38: Füllen Sie anschließend die Tabelle mit den geplanten Daten aus. Die rechte Spalte gibt Ihnen die Personalkosten, welche für das Unternehmen entstehen, wieder.
A40: 6. Schritt: Erfolgsrechnung Jahr
A41: Allgemeiner Hinweis | B41: In dieser Tabelle können Sie den betriebswirtschaftlichen Gewinn/Verlust Ihres Unternehmens der ersten fünf Jahre anhand einer Erfolgsrechnung feststellen. Füllen Sie dazu alle hellblauen Felder aus.
A42: Zinsen | B42: Die Zinsen werden nach der manuellen Eingabe des Zinssatzes im Blatt "Finanzplanung" (8. Schritt) automatisch berechnet und im Blatt "Erfolgsrechnung Jahr" übernommen. In der Zwischenzeit scheint in diesem Feld die Zahl 0 auf.
A43: Steuern | B43: In dieser Businessplan-Vorlage wird von der progressiven Besteuerung ausgegangen. Sonderformen wie z. B. das bevorzugte Steuersystem für Unternehmensgründer/innen werden nicht beachtet. Bitte informieren Sie sich deshalb bei Ihrem Steuerberater über Ihre individuellen Möglichkeiten. Es wird darauf hingewiesen, dass die Berechnung der Besteuerung von der individuellen Situation der Unternehmensgründer/innen abhängt, und deshalb nur eine Annäherung an die definitive Berechnung darstellt.
A44: Simulation | B44: Mit diesem Tool können Sie, von den Daten der Erfolgsrechnung ausgehend, verschiedene Szenarien simulieren. Als Parameter stehen Ihnen Umsatz- sowie Wareneinsatzveränderungen zur Auswahl. Sie können somit ganz schnell und einfach feststellen, inwiefern sich eine Änderung des Umsatzes/Wareneinsatzes Ihres Unternehmens auf das Ergebnis auswirkt.
A45: Break Even Point | B45: Die Grafik verdeutlicht Ihnen die Gewinnschwelle Ihres Unternehmens. Der Break Even Point gibt jenen Umsatz wieder, bei dem nach Abzug aller Kosten die Gewinnschwelle erreicht wird. Ist der erreichte Umsatz größer als der Break Even Point, erzielt das Unternehmen einen Gewinn, ist der Umsatz niedriger, wird ein Verlust geschrieben.
A47: 7. Schritt: Erfolgsrechnung Monat
A48: Allgemeiner Hinweis | B48: Da die Anfangsphase eines Start Up's sehr wichtig ist und dementsprechend genau geplant sein soll, können Sie in diesem Blatt das erste Geschäftsjahr genauer planen. Hierzu kann in den blauen Feldern eingetragen werden, wie viel % vom Jahresumsatz im jeweiligen Monat erzielt wird. Achtung: Insgesamt müssen 100% auf das Jahr verteilt werden!
A50: 8. Schritt: Finanzplanung
A51: Allgemeiner Hinweis | B51: Um die Finanzierung Ihres Unternehmens zu planen, füllen Sie alle blauen Felder aus. Gehen Sie auf die Felder mit dem roten Dreieck und es erscheinen Erklärungen zu den einzelnen Positionen.
A52: Kapitalbedarf | B52: Der gesamte Kapitalbedarf wird auf Basis der in den vorhergehenden Tabellen eingetragenen Daten und Berechnungen automatisch ermittelt.
A53: Außenfinanzierung ohne Zinsbelastung | B53: Tragen Sie bitte alle Finanzierungen ein, welche von außen dem Unternehmen zufließen, aber zinsfrei sind. Geben Sie unter "Eigenkapital" an, wie viel Sie selbst an finanziellen Mitteln aufbringen. Zum Eigenkapital zählt neben dem eingebrachten Bargeld auch der Wert der von Ihnen eingebrachten Güter und Anlagen. Vergessen Sie deshalb nicht, den in der Investitionsplanung (3. Schritt) angeführten Hinweis zu berücksichtigen, nämlich den aktuellen Marktwert der selbst eingebrachten Güter und Anlagen zum Eigenkapital dazuzuzählen.
A54: Innenfinanzierung des Jahres | B54: Dieser Wert errechnet sich automatisch aus der Erfolgsrechnung und gibt den erzielten Cash Flow wieder.
A55: Finanzierungsüberschuss/Finanzierungslücke | B55: Die Differenz zwischen dem Kapitalbedarf des Jahres und den zur Verfügung stehenden Mitteln ergibt den Finanzierungsüberschuss bzw. die Finanzierungslücke.
A56: Außenfinanzierung mit Zinsbelastung | B56: Hier können Sie verschiedene zinstragende Finanzierungen eintragen. Als Beispiele sind ein Darlehen, eine zinstragende Gesellschafterfinanzierung oder ähnliche genannt. Je Finanzierung sind vier Parameter einzutragen: Der geliehene Betrag, die Laufzeit (maximal 15 Jahre), der zu bezahlende Zinssatz und eventuelle tilgungsfreie Jahre.
A57: Kontokorrent | B57: Der K/K-Kredit dient dem laufenden Geschäfts- und Zahlungsverkehr. Kreditnehmer und Kreditgeber vereinbaren einen Kreditrahmen, der dazu verwendet wird, den Liquiditätsbedarf eines Unternehmens zu decken. Es werden Überweisungen, Ein- und Auszahlungen, Einlösung von Schecks, Daueraufträge usw. durchgeführt. Aufgrund der hohen Kosten durch Zinsen, Spesen und Gebühren sollte dieser Kredit nur als sehr kurzfristiges Finanzierungsmittel zur Deckung von Liquiditätsspitzen eingesetzt werden.
A58: Zinsen | B58: Mit einem Klick auf den Button "Zinsen berechnen" berechnet das Tool die zu tragenden Zinsen des Jahres und überträgt das Zinsergebnis automatisch in das Blatt "Erfolgsrechnung Jahr" (6. Schritt).
A60: Hinweis
A61: Hinweis | B61: Es wird darauf hingewiesen, dass es aufgrund unterschiedlicher Programmversionen von Microsoft Office und / oder installierter Up-Dates und Service-Packs zu Fehlern im Ausdruck und Layout kommen kann. Zudem können fehlerhafte Ausdrucke auf unterschiedliche Druckertreiber zurückgeführt werden. Grundsätzlich empfehlen wir die Software laufend auf Up-Dates und Service-Packs zu kontrollieren und gegebenenfalls zu aktualisieren. Wichtig: Die Berechnungen erfolgen trotzdem ordnungsgemäß.

Sheet 1. Geschäftsidee
A1: Geschäftsidee
A2: Ihre Idee
A3: Name des Unternehmens | K3: 1 | L3: =IF(K3=1,1,IF(K3>=4,2,3)) -> 1
A4: Rechtsform
A5: Tätigkeit / Sektor
A6: Sitz
A7: Startdatum / Eröffnung
A8: Produkte / Dienstleistungen | G8: Einzelunternehmen (EU)
A9: Beschreibung meiner/unserer Produkte/Dienstleistungen | G9: Offene Handelsgesellschaft (OHG)
A10: Was ist das Neue/Einzigartige an meiner/unserer Geschäftsidee? | G10: Kommanditgesellschaft (KG)
A11: Die Kundin/der Kunde kauft bei mir/uns, weil ………. | G11: Gesellschaft mit beschränkter Haftung (GmbH)
A12: Unternehmerteam | G12: Aktiengesellschaft (AG)
A13: Gründerperson/en (Namen) | G13: Genossenschaft (Gen.)
A14: Anteile am Unternehmen in % | G14: Personengesellschaft
A15: Aufgabenverteilung / Funktion
A16: Branchenkenntnisse
A17: Qualifikation / Berufserfahrung
A18: Welche zusätzlichen Qualifikationen werde/n ich/wir brauchen?
A19: Ich/wir werde/n Unternehmer/in, weil ……..
A20: Mitarbeiter & Qualifikation
A21: Externe Beratung
A22: Steuerberatung
A23: Lohnberatung
A24: Rechtsberatung
A25: Unternehmensberatung
A26: Markt und Wettbewerb
A27: Zielgruppe/n
A28: Bedürfnisse der Zielgruppe/n
A29: Konkurrenten
A30: Lieferanten
A31: Marketing und Vertrieb
A32: Produkte / Dienstleistungen
A33: Geografischer Markt
A34: Preis
A35: Marketing
A36: Stärken, Schwächen / Chancen, Risiken
A37: Stärken des Unternehmens
A38: Schwächen des Unternehmens
A39: Chancen am Markt
A40: Risiken am Markt
A41: Realisierungsplan
B42: Was | C42: Wer | D42: Bis wann
A43: Gesetzliche Formalitäten
A44: Aktivität / Meilenstein 1
A45: Aktivität / Meilenstein 2
A46: Aktivität / Meilenstein 3
A47: Aktivität / Meilenstein 4
A48: Risikoanalyse
A49: Zur Verfügung stehendes Eigenkapital
A50: Stehen finanzielle Absicherungen zur Verfügung, wenn ja, welche?
A51: Produktrisiko
A52: Marktrisiko
A53: Preisrisiko
A54: Nachahmer
A55: Risiko eines Konflikts zwischen den Gesellschaftern
A56: Zusätzliche Infos / Bemerkungen

Sheet 2. Lebenshaltung
A1: Deckung des Lebensunterhalts / Nettoeinkommen
B2: Monatlich | C2: Anzahl | D2: Jährlich
A3: Nettoeinkommen aus Arbeit | D3: =B3*C3 -> 0
A4: Nebeneinkünfte (Mieten, Zinsen, usw.) | D4: =B4*C4 -> 0
A5: … | D5: 0
A6: Summe Einnahmen | D6: =SUM(D3:D5) -> 0
A7: Lebensunterhalt (Essen, Kleidung, usw.) | D7: 0
A8: Auto (Instandhaltung, Reparatur, Treibstoff, Versicherung) | D8: =B8*C8 -> 0
A9: Mietkosten (inkl. Nebenkosten) | D9: 0
A10: Freizeit (Unterhaltung, Urlaub, usw.) | D10: 0
A11: Versicherungen | D11: 0
A12: Private Steuern | D12: 0
A13: Zinsen und Tilgungen | D13: 0
A14: … | D14: =B14*C14 -> 0
A15: … | D15: =B15*C15 -> 0
A16: Summe Ausgaben | D16: =SUM(D7:D15) -> 0
A17: Überschuss / Fehlbetrag | D17: =D6-D16 -> 0
A19: Berechnung Unternehmerlohn auf Basis des aktuellen Gehaltniveaus | C19: Erklärung
A20: Gehalt netto | B20: =D3 -> 0 | C20: Ihr Nettoeinkommen (vor der Selbstständigkeit)
A21: Berechnete Kosten des aktuellen Nettolohns für das Unternehmen | B21: =B20*2.1 -> 0 | C21: Die Kosten Ihres Nettoeinkommens vor der Selbstständigkeit für ein Unternehmen. Es beinhaltet das Nettoeinkommen, alle Abgaben und Steuern.
A22: Unternehmerlohn laut Planung | B22: ='6. Erfolgsrechnung Jahr'!C15 -> 0 | C22: Der Unternehmerlohn beinhaltet die Sozialabgaben, das 13. und 14. Gehalt, sowie alle weiteren Abgaben.
A23: Errechneter Unternehmerlohn netto laut Planung | B23: =B22/2.1 -> 0 | C23: Nach Abzug von Sozialabgaben, Steuern und anderen Abgaben bleibt der Unternehmerlohn netto übrig.
A24: Differenz, Auswirkung auf Lebensstandard | B24: =B23-B20 -> 0 | C24: Die Differenz zwischen dem Unternehmerlohn netto und dem Nettoeinkommen vor der Selbstständigkeit muss höher / gleich "0" sein, damit das Niveau des derzeitigen Lebensstandards beibehalten werden kann.

Sheet 3. Investitionsplanung
A1: Investitionsplanung
A2: a) Materielles Anlagevermögen: | C2: Jahr 1 | D2: Jahr 2 | E2: Jahr 3 | F2: Jahr 4 | G2: Jahr 5 | H2: Nutzungs- dauer in Jahren | I2: Ab-schreibe-quote | J2: Abschr. Jahr 1 | K2: Abschr. Jahr 2 | L2: Abschr. Jahr 3 | M2: Abschr. Jahr 4 | N2: Abschr. Jahr 5 | AC2: Berechnung Abschreibung für die Investition des 1. Jahres | AI2: Berechnung Abschreibung für die Investition des 2. Jahres | AO2: Berechnung Abschreibung für die Investition des 3. Jahres | AU2: Berechnung Abschreibung für die Investition des 4. Jahres | BA2: Berechnung Abschreibung für die Investition des 5. Jahres
A3: Beschreibung | B3: Art der Investition | U3: Kapital | V3: =SUM(C4:C23) -> 0 | W3: =SUM(D4:D23)+V3 -> 0 | X3: =SUM(E4:E23)+W3 -> 0 | Y3: =SUM(F4:F23)+X3 -> 0 | Z3: =SUM(G4:G23)+Y3 -> 0
B4: 1 | H4: =SUMIF($B$53:$B$61,B4,$C$53:$C$61) -> 0 | I4: =SUMIF($B$53:$B$61,B4,$D$53:$D$61) -> 0 | J4: =AC4 -> 0 | K4: =SUM(AD4,AI4) -> 0 | L4: =SUM(AE4,AJ4,AO4) -> 0 | M4: =SUM(AF4,AK4,AP4,AU4) -> 0 | N4: =SUM(AG4,AL4,AQ4,AV4,BA4) -> 0 | U4: Abschreibung | V4: =SUM(J4:J23) -> 0 | W4: =SUM(K4:K23) -> 0 | X4: =SUM(L4:L23) -> 0 | Y4: =SUM(M4:M23) -> 0 | Z4: =SUM(N4:N23) -> 0 | AC4: =C4*I4 -> 0 | AD4: =IF(SUM($AC4:AC4)<$C4, AD27*$I4,"") ->  | AE4: =IF(SUM($AC4:AD4)<$C4, AE27*$I4,"") ->  | AF4: =IF(SUM($AC4:AE4)<$C4, AF27*$I4,"") ->  | AG4: =IF(SUM($AC4:AF4)<$C4, AG27*$I4,"") ->  | AI4: =IF(D4<=0,"",D4*I4) ->  | AJ4: =IF(SUM($AI4:AI4)<$D4,AJ27*$I4,"") ->  | AK4: =IF(SUM($AI4:AJ4)<$D4,AK27*$I4,"") ->  | AL4: =IF(SUM($AI4:AK4)<$D4,AL27*$I4,"") ->  | AM4: =IF(SUM($AI4:AL4)<$D4,AM27*$I4,"") ->  | AO4: =IF(E4<=0,"",E4*I4) ->  | AP4: =IF(SUM($AO4:AO4)<$E4,AP27*$I4,"") ->  | AQ4: =IF(SUM($AO4:AP4)<$E4,AQ27*$I4,"") ->  | AR4: =IF(SUM($AO4:AQ4)<$E4,AR27*$I4,"") ->  | AS4: =IF(SUM($AO4:AR4)<$E4,AS27*$I4,"") ->  | AU4: =IF(F4<=0,"",F4*I4) ->  | AV4: =IF(SUM($AU4:AU4)<$F4,AV27*$I4,"") ->  | AW4: =IF(SUM($AU4:AV4)<$F4,AW27*$I4,"") ->  | AX4: =IF(SUM($AU4:AW4)<$F4,AX27*$I4,"") ->  | AY4: =IF(SUM($AU4:AX4)<$F4,AY27*$I4,"") ->  | BA4: =IF(G4<=0,"",G4*I4) ->  | BB4: =IF(SUM($BA4:BA4)<$G4,$G4*$I4,"") ->  | BC4: =IF(SUM($BA4:BB4)<$G4,$G4*$I4,"") ->  | BD4: =IF(SUM($BA4:BC4)<$G4,$G4*$I4,"") ->  | BE4: =IF(SUM($BA4:BD4)<$G4,$G4*$I4,"") -> 
B5: 1 | H5: =SUMIF($B$53:$B$61,B5,$C$53:$C$61) -> 0 | I5: =SUMIF($B$53:$B$61,B5,$D$53:$D$61) -> 0 | J5: =AC5 -> 0 | K5: =SUM(AD5,AI5) -> 0 | L5: =SUM(AE5,AJ5,AO5) -> 0 | M5: =SUM(AF5,AK5,AP5,AU5) -> 0 | N5: =SUM(AG5,AL5,AQ5,AV5,BA5) -> 0 | U5: % | V5: =IFERROR(V4/V3,"") ->  | W5: =IFERROR(W4/W3,"") ->  | AA5: =SUM(V5:Z5)/COUNT(V5:Z5) ->  | AC5: =C5*I5 -> 0 | AD5: =IF(SUM($AC5:AC5)<$C5, AD28*$I5,"") ->  | AE5: =IF(SUM($AC5:AD5)<$C5, AE28*$I5,"") ->  | AF5: =IF(SUM($AC5:AE5)<$C5, AF28*$I5,"") ->  | AG5: =IF(SUM($AC5:AF5)<$C5, AG28*$I5,"") ->  | AI5: =IF(D5<=0,"",D5*I5) ->  | AJ5: =IF(SUM($AI5:AI5)<$D5,AJ28*$I5,"") ->  | AK5: =IF(SUM($AI5:AJ5)<$D5,AK28*$I5,"") ->  | AL5: =IF(SUM($AI5:AK5)<$D5,AL28*$I5,"") ->  | AM5: =IF(SUM($AI5:AL5)<$D5,AM28*$I5,"") ->  | AO5: =IF(E5<=0,"",E5*I5) ->  | AP5: =IF(SUM($AO5:AO5)<$E5,AP28*$I5,"") ->  | AQ5: =IF(SUM($AO5:AP5)<$E5,AQ28*$I5,"") ->  | AR5: =IF(SUM($AO5:AQ5)<$E5,AR28*$I5,"") ->  | AS5: =IF(SUM($AO5:AR5)<$E5,AS28*$I5,"") ->  | AU5: =IF(F5<=0,"",F5*I5) ->  | AV5: =IF(SUM($AU5:AU5)<$F5,AV28*$I5,"") ->  | AW5: =IF(SUM($AU5:AV5)<$F5,AW28*$I5,"") ->  | AX5: =IF(SUM($AU5:AW5)<$F5,AX28*$I5,"") ->  | AY5: =IF(SUM($AU5:AX5)<$F5,AY28*$I5,"") ->  | BA5: =IF(G5<=0,"",G5*I5) ->  | BB5: =IF(SUM($BA5:BA5)<$G5,$G5*$I5,"") ->  | BC5: =IF(SUM($BA5:BB5)<$G5,$G5*$I5,"") ->  | BD5: =IF(SUM($BA5:BC5)<$G5,$G5*$I5,"") ->  | BE5: =IF(SUM($BA5:BD5)<$G5,$G5*$I5,"") -> 
B6: 1 | H6: 0 | I6: 0 | J6: 0 | K6: 0 | L6: 0 | M6: 0 | N6: 0 | AC6: 0 | AD6: =IF(SUM($AC6:AC6)<$C6, AD29*$I6,"") ->  | AE6: =IF(SUM($AC6:AD6)<$C6, AE29*$I6,"") ->  | AF6: =IF(SUM($AC6:AE6)<$C6, AF29*$I6,"") ->  | AG6: =IF(SUM($AC6:AF6)<$C6, AG29*$I6,"") ->  | AJ6: =IF(SUM($AI6:AI6)<$D6,AJ29*$I6,"") ->  | AK6: =IF(SUM($AI6:AJ6)<$D6,AK29*$I6,"") ->  | AL6: =IF(SUM($AI6:AK6)<$D6,AL29*$I6,"") ->  | AM6: =IF(SUM($AI6:AL6)<$D6,AM29*$I6,"") ->  | AP6: =IF(SUM($AO6:AO6)<$E6,AP29*$I6,"") ->  | AQ6: =IF(SUM($AO6:AP6)<$E6,AQ29*$I6,"") ->  | AR6: =IF(SUM($AO6:AQ6)<$E6,AR29*$I6,"") ->  | AS6: =IF(SUM($AO6:AR6)<$E6,AS29*$I6,"") ->  | AV6: =IF(SUM($AU6:AU6)<$F6,AV29*$I6,"") ->  | AW6: =IF(SUM($AU6:AV6)<$F6,AW29*$I6,"") ->  | AX6: =IF(SUM($AU6:AW6)<$F6,AX29*$I6,"") ->  | AY6: =IF(SUM($AU6:AX6)<$F6,AY29*$I6,"") ->  | BB6: =IF(SUM($BA6:BA6)<$G6,$G6*$I6,"") ->  | BC6: =IF(SUM($BA6:BB6)<$G6,$G6*$I6,"") ->  | BD6: =IF(SUM($BA6:BC6)<$G6,$G6*$I6,"") ->  | BE6: =IF(SUM($BA6:BD6)<$G6,$G6*$I6,"") -> 
B7: 1 | H7: 0 | I7: 0 | J7: 0 | K7: 0 | L7: 0 | M7: 0 | N7: 0 | AC7: 0 | AD7: =IF(SUM($AC7:AC7)<$C7, AD30*$I7,"") ->  | AE7: =IF(SUM($AC7:AD7)<$C7, AE30*$I7,"") ->  | AF7: =IF(SUM($AC7:AE7)<$C7, AF30*$I7,"") ->  | AG7: =IF(SUM($AC7:AF7)<$C7, AG30*$I7,"") ->  | AJ7: =IF(SUM($AI7:AI7)<$D7,AJ30*$I7,"") ->  | AK7: =IF(SUM($AI7:AJ7)<$D7,AK30*$I7,"") ->  | AL7: =IF(SUM($AI7:AK7)<$D7,AL30*$I7,"") ->  | AM7: =IF(SUM($AI7:AL7)<$D7,AM30*$I7,"") ->  | AP7: =IF(SUM($AO7:AO7)<$E7,AP30*$I7,"") ->  | AQ7: =IF(SUM($AO7:AP7)<$E7,AQ30*$I7,"") ->  | AR7: =IF(SUM($AO7:AQ7)<$E7,AR30*$I7,"") ->  | AS7: =IF(SUM($AO7:AR7)<$E7,AS30*$I7,"") ->  | AV7: =IF(SUM($AU7:AU7)<$F7,AV30*$I7,"") ->  | AW7: =IF(SUM($AU7:AV7)<$F7,AW30*$I7,"") ->  | AX7: =IF(SUM($AU7:AW7)<$F7,AX30*$I7,"") ->  | AY7: =IF(SUM($AU7:AX7)<$F7,AY30*$I7,"") ->  | BB7: =IF(SUM($BA7:BA7)<$G7,$G7*$I7,"") ->  | BC7: =IF(SUM($BA7:BB7)<$G7,$G7*$I7,"") ->  | BD7: =IF(SUM($BA7:BC7)<$G7,$G7*$I7,"") ->  | BE7: =IF(SUM($BA7:BD7)<$G7,$G7*$I7,"") -> 
B8: 1 | H8: 0 | I8: 0 | J8: 0 | K8: 0 | L8: 0 | M8: 0 | N8: 0 | AC8: 0 | AD8: =IF(SUM($AC8:AC8)<$C8, AD31*$I8,"") ->  | AE8: =IF(SUM($AC8:AD8)<$C8, AE31*$I8,"") ->  | AF8: =IF(SUM($AC8:AE8)<$C8, AF31*$I8,"") ->  | AG8: =IF(SUM($AC8:AF8)<$C8, AG31*$I8,"") ->  | AJ8: =IF(SUM($AI8:AI8)<$D8,AJ31*$I8,"") ->  | AK8: =IF(SUM($AI8:AJ8)<$D8,AK31*$I8,"") ->  | AL8: =IF(SUM($AI8:AK8)<$D8,AL31*$I8,"") ->  | AM8: =IF(SUM($AI8:AL8)<$D8,AM31*$I8,"") ->  | AP8: =IF(SUM($AO8:AO8)<$E8,AP31*$I8,"") ->  | AQ8: =IF(SUM($AO8:AP8)<$E8,AQ31*$I8,"") ->  | AR8: =IF(SUM($AO8:AQ8)<$E8,AR31*$I8,"") ->  | AS8: =IF(SUM($AO8:AR8)<$E8,AS31*$I8,"") ->  | AV8: =IF(SUM($AU8:AU8)<$F8,AV31*$I8,"") ->  | AW8: =IF(SUM($AU8:AV8)<$F8,AW31*$I8,"") ->  | AX8: =IF(SUM($AU8:AW8)<$F8,AX31*$I8,"") ->  | AY8: =IF(SUM($AU8:AX8)<$F8,AY31*$I8,"") ->  | BB8: =IF(SUM($BA8:BA8)<$G8,$G8*$I8,"") ->  | BC8: =IF(SUM($BA8:BB8)<$G8,$G8*$I8,"") ->  | BD8: =IF(SUM($BA8:BC8)<$G8,$G8*$I8,"") ->  | BE8: =IF(SUM($BA8:BD8)<$G8,$G8*$I8,"") -> 
B9: 1 | H9: 0 | I9: 0 | J9: 0 | K9: 0 | L9: 0 | M9: 0 | N9: 0 | AC9: 0 | AD9: =IF(SUM($AC9:AC9)<$C9, AD32*$I9,"") ->  | AE9: =IF(SUM($AC9:AD9)<$C9, AE32*$I9,"") ->  | AF9: =IF(SUM($AC9:AE9)<$C9, AF32*$I9,"") ->  | AG9: =IF(SUM($AC9:AF9)<$C9, AG32*$I9,"") ->  | AJ9: =IF(SUM($AI9:AI9)<$D9,AJ32*$I9,"") ->  | AK9: =IF(SUM($AI9:AJ9)<$D9,AK32*$I9,"") ->  | AL9: =IF(SUM($AI9:AK9)<$D9,AL32*$I9,"") ->  | AM9: =IF(SUM($AI9:AL9)<$D9,AM32*$I9,"") ->  | AP9: =IF(SUM($AO9:AO9)<$E9,AP32*$I9,"") ->  | AQ9: =IF(SUM($AO9:AP9)<$E9,AQ32*$I9,"") ->  | AR9: =IF(SUM($AO9:AQ9)<$E9,AR32*$I9,"") ->  | AS9: =IF(SUM($AO9:AR9)<$E9,AS32*$I9,"") ->  | AV9: =IF(SUM($AU9:AU9)<$F9,AV32*$I9,"") ->  | AW9: =IF(SUM($AU9:AV9)<$F9,AW32*$I9,"") ->  | AX9: =IF(SUM($AU9:AW9)<$F9,AX32*$I9,"") ->  | AY9: =IF(SUM($AU9:AX9)<$F9,AY32*$I9,"") ->  | BB9: =IF(SUM($BA9:BA9)<$G9,$G9*$I9,"") ->  | BC9: =IF(SUM($BA9:BB9)<$G9,$G9*$I9,"") ->  | BD9: =IF(SUM($BA9:BC9)<$G9,$G9*$I9,"") ->  | BE9: =IF(SUM($BA9:BD9)<$G9,$G9*$I9,"") -> 
B10: 1 | H10: 0 | I10: 0 | J10: 0 | K10: 0 | L10: 0 | M10: 0 | N10: 0 | AC10: 0 | AD10: =IF(SUM($AC10:AC10)<$C10, AD33*$I10,"") ->  | AE10: =IF(SUM($AC10:AD10)<$C10, AE33*$I10,"") ->  | AF10: =IF(SUM($AC10:AE10)<$C10, AF33*$I10,"") ->  | AG10: =IF(SUM($AC10:AF10)<$C10, AG33*$I10,"") ->  | AJ10: =IF(SUM($AI10:AI10)<$D10,AJ33*$I10,"") ->  | AK10: =IF(SUM($AI10:AJ10)<$D10,AK33*$I10,"") ->  | AL10: =IF(SUM($AI10:AK10)<$D10,AL33*$I10,"") ->  | AM10: =IF(SUM($AI10:AL10)<$D10,AM33*$I10,"") ->  | AP10: =IF(SUM($AO10:AO10)<$E10,AP33*$I10,"") ->  | AQ10: =IF(SUM($AO10:AP10)<$E10,AQ33*$I10,"") ->  | AR10: =IF(SUM($AO10:AQ10)<$E10,AR33*$I10,"") ->  | AS10: =IF(SUM($AO10:AR10)<$E10,AS33*$I10,"") ->  | AV10: =IF(SUM($AU10:AU10)<$F10,AV33*$I10,"") ->  | AW10: =IF(SUM($AU10:AV10)<$F10,AW33*$I10,"") ->  | AX10: =IF(SUM($AU10:AW10)<$F10,AX33*$I10,"") ->  | AY10: =IF(SUM($AU10:AX10)<$F10,AY33*$I10,"") ->  | BB10: =IF(SUM($BA10:BA10)<$G10,$G10*$I10,"") ->  | BC10: =IF(SUM($BA10:BB10)<$G10,$G10*$I10,"") ->  | BD10: =IF(SUM($BA10:BC10)<$G10,$G10*$I10,"") ->  | BE10: =IF(SUM($BA10:BD10)<$G10,$G10*$I10,"") -> 
B11: 1 | H11: 0 | I11: 0 | J11: 0 | K11: 0 | L11: 0 | M11: 0 | N11: 0 | AC11: 0 | AD11: =IF(SUM($AC11:AC11)<$C11, AD34*$I11,"") ->  | AE11: =IF(SUM($AC11:AD11)<$C11, AE34*$I11,"") ->  | AF11: =IF(SUM($AC11:AE11)<$C11, AF34*$I11,"") ->  | AG11: =IF(SUM($AC11:AF11)<$C11, AG34*$I11,"") ->  | AJ11: =IF(SUM($AI11:AI11)<$D11,AJ34*$I11,"") ->  | AK11: =IF(SUM($AI11:AJ11)<$D11,AK34*$I11,"") ->  | AL11: =IF(SUM($AI11:AK11)<$D11,AL34*$I11,"") ->  | AM11: =IF(SUM($AI11:AL11)<$D11,AM34*$I11,"") ->  | AP11: =IF(SUM($AO11:AO11)<$E11,AP34*$I11,"") ->  | AQ11: =IF(SUM($AO11:AP11)<$E11,AQ34*$I11,"") ->  | AR11: =IF(SUM($AO11:AQ11)<$E11,AR34*$I11,"") ->  | AS11: =IF(SUM($AO11:AR11)<$E11,AS34*$I11,"") ->  | AV11: =IF(SUM($AU11:AU11)<$F11,AV34*$I11,"") ->  | AW11: =IF(SUM($AU11:AV11)<$F11,AW34*$I11,"") ->  | AX11: =IF(SUM($AU11:AW11)<$F11,AX34*$I11,"") ->  | AY11: =IF(SUM($AU11:AX11)<$F11,AY34*$I11,"") ->  | BB11: =IF(SUM($BA11:BA11)<$G11,$G11*$I11,"") ->  | BC11: =IF(SUM($BA11:BB11)<$G11,$G11*$I11,"") ->  | BD11: =IF(SUM($BA11:BC11)<$G11,$G11*$I11,"") ->  | BE11: =IF(SUM($BA11:BD11)<$G11,$G11*$I11,"") -> 
B12: 1 | H12: 0 | I12: 0 | J12: 0 | K12: 0 | L12: 0 | M12: 0 | N12: 0 | AC12: 0 | AD12: =IF(SUM($AC12:AC12)<$C12, AD35*$I12,"") ->  | AE12: =IF(SUM($AC12:AD12)<$C12, AE35*$I12,"") ->  | AF12: =IF(SUM($AC12:AE12)<$C12, AF35*$I12,"") ->  | AG12: =IF(SUM($AC12:AF12)<$C12, AG35*$I12,"") ->  | AJ12: =IF(SUM($AI12:AI12)<$D12,AJ35*$I12,"") ->  | AK12: =IF(SUM($AI12:AJ12)<$D12,AK35*$I12,"") ->  | AL12: =IF(SUM($AI12:AK12)<$D12,AL35*$I12,"") ->  | AM12: =IF(SUM($AI12:AL12)<$D12,AM35*$I12,"") ->  | AP12: =IF(SUM($AO12:AO12)<$E12,AP35*$I12,"") ->  | AQ12: =IF(SUM($AO12:AP12)<$E12,AQ35*$I12,"") ->  | AR12: =IF(SUM($AO12:AQ12)<$E12,AR35*$I12,"") ->  | AS12: =IF(SUM($AO12:AR12)<$E12,AS35*$I12,"") ->  | AV12: =IF(SUM($AU12:AU12)<$F12,AV35*$I12,"") ->  | AW12: =IF(SUM($AU12:AV12)<$F12,AW35*$I12,"") ->  | AX12: =IF(SUM($AU12:AW12)<$F12,AX35*$I12,"") ->  | AY12: =IF(SUM($AU12:AX12)<$F12,AY35*$I12,"") ->  | BB12: =IF(SUM($BA12:BA12)<$G12,$G12*$I12,"") ->  | BC12: =IF(SUM($BA12:BB12)<$G12,$G12*$I12,"") ->  | BD12: =IF(SUM($BA12:BC12)<$G12,$G12*$I12,"") ->  | BE12: =IF(SUM($BA12:BD12)<$G12,$G12*$I12,"") -> 
B13: 1 | H13: 0 | I13: 0 | J13: 0 | K13: 0 | L13: 0 | M13: 0 | N13: 0 | AC13: 0 | AD13: =IF(SUM($AC13:AC13)<$C13, AD36*$I13,"") ->  | AE13: =IF(SUM($AC13:AD13)<$C13, AE36*$I13,"") ->  | AF13: =IF(SUM($AC13:AE13)<$C13, AF36*$I13,"") ->  | AG13: =IF(SUM($AC13:AF13)<$C13, AG36*$I13,"") ->  | AJ13: =IF(SUM($AI13:AI13)<$D13,AJ36*$I13,"") ->  | AK13: =IF(SUM($AI13:AJ13)<$D13,AK36*$I13,"") ->  | AL13: =IF(SUM($AI13:AK13)<$D13,AL36*$I13,"") ->  | AM13: =IF(SUM($AI13:AL13)<$D13,AM36*$I13,"") ->  | AP13: =IF(SUM($AO13:AO13)<$E13,AP36*$I13,"") ->  | AQ13: =IF(SUM($AO13:AP13)<$E13,AQ36*$I13,"") ->  | AR13: =IF(SUM($AO13:AQ13)<$E13,AR36*$I13,"") ->  | AS13: =IF(SUM($AO13:AR13)<$E13,AS36*$I13,"") ->  | AV13: =IF(SUM($AU13:AU13)<$F13,AV36*$I13,"") ->  | AW13: =IF(SUM($AU13:AV13)<$F13,AW36*$I13,"") ->  | AX13: =IF(SUM($AU13:AW13)<$F13,AX36*$I13,"") ->  | AY13: =IF(SUM($AU13:AX13)<$F13,AY36*$I13,"") ->  | BB13: =IF(SUM($BA13:BA13)<$G13,$G13*$I13,"") ->  | BC13: =IF(SUM($BA13:BB13)<$G13,$G13*$I13,"") ->  | BD13: =IF(SUM($BA13:BC13)<$G13,$G13*$I13,"") ->  | BE13: =IF(SUM($BA13:BD13)<$G13,$G13*$I13,"") -> 
B14: 1 | H14: 0 | I14: 0 | J14: 0 | K14: 0 | L14: 0 | M14: 0 | N14: 0 | AC14: 0 | AD14: =IF(SUM($AC14:AC14)<$C14, AD37*$I14,"") ->  | AE14: =IF(SUM($AC14:AD14)<$C14, AE37*$I14,"") ->  | AF14: =IF(SUM($AC14:AE14)<$C14, AF37*$I14,"") ->  | AG14: =IF(SUM($AC14:AF14)<$C14, AG37*$I14,"") ->  | AJ14: =IF(SUM($AI14:AI14)<$D14,AJ37*$I14,"") ->  | AK14: =IF(SUM($AI14:AJ14)<$D14,AK37*$I14,"") ->  | AL14: =IF(SUM($AI14:AK14)<$D14,AL37*$I14,"") ->  | AM14: =IF(SUM($AI14:AL14)<$D14,AM37*$I14,"") ->  | AP14: =IF(SUM($AO14:AO14)<$E14,AP37*$I14,"") ->  | AQ14: =IF(SUM($AO14:AP14)<$E14,AQ37*$I14,"") ->  | AR14: =IF(SUM($AO14:AQ14)<$E14,AR37*$I14,"") ->  | AS14: =IF(SUM($AO14:AR14)<$E14,AS37*$I14,"") ->  | AV14: =IF(SUM($AU14:AU14)<$F14,AV37*$I14,"") ->  | AW14: =IF(SUM($AU14:AV14)<$F14,AW37*$I14,"") ->  | AX14: =IF(SUM($AU14:AW14)<$F14,AX37*$I14,"") ->  | AY14: =IF(SUM($AU14:AX14)<$F14,AY37*$I14,"") ->  | BB14: =IF(SUM($BA14:BA14)<$G14,$G14*$I14,"") ->  | BC14: =IF(SUM($BA14:BB14)<$G14,$G14*$I14,"") ->  | BD14: =IF(SUM($BA14:BC14)<$G14,$G14*$I14,"") ->  | BE14: =IF(SUM($BA14:BD14)<$G14,$G14*$I14,"") -> 
B15: 1 | H15: 0 | I15: 0 | J15: 0 | K15: 0 | L15: 0 | M15: 0 | N15: 0 | AC15: 0 | AD15: =IF(SUM($AC15:AC15)<$C15, AD38*$I15,"") ->  | AE15: =IF(SUM($AC15:AD15)<$C15, AE38*$I15,"") ->  | AF15: =IF(SUM($AC15:AE15)<$C15, AF38*$I15,"") ->  | AG15: =IF(SUM($AC15:AF15)<$C15, AG38*$I15,"") ->  | AJ15: =IF(SUM($AI15:AI15)<$D15,AJ38*$I15,"") ->  | AK15: =IF(SUM($AI15:AJ15)<$D15,AK38*$I15,"") ->  | AL15: =IF(SUM($AI15:AK15)<$D15,AL38*$I15,"") ->  | AM15: =IF(SUM($AI15:AL15)<$D15,AM38*$I15,"") ->  | AP15: =IF(SUM($AO15:AO15)<$E15,AP38*$I15,"") ->  | AQ15: =IF(SUM($AO15:AP15)<$E15,AQ38*$I15,"") ->  | AR15: =IF(SUM($AO15:AQ15)<$E15,AR38*$I15,"") ->  | AS15: =IF(SUM($AO15:AR15)<$E15,AS38*$I15,"") ->  | AV15: =IF(SUM($AU15:AU15)<$F15,AV38*$I15,"") ->  | AW15: =IF(SUM($AU15:AV15)<$F15,AW38*$I15,"") ->  | AX15: =IF(SUM($AU15:AW15)<$F15,AX38*$I15,"") ->  | AY15: =IF(SUM($AU15:AX15)<$F15,AY38*$I15,"") ->  | BB15: =IF(SUM($BA15:BA15)<$G15,$G15*$I15,"") ->  | BC15: =IF(SUM($BA15:BB15)<$G15,$G15*$I15,"") ->  | BD15: =IF(SUM($BA15:BC15)<$G15,$G15*$I15,"") ->  | BE15: =IF(SUM($BA15:BD15)<$G15,$G15*$I15,"") -> 
B16: 1 | H16: 0 | I16: 0 | J16: 0 | K16: 0 | L16: 0 | M16: 0 | N16: 0 | AC16: 0 | AD16: =IF(SUM($AC16:AC16)<$C16, AD39*$I16,"") ->  | AE16: =IF(SUM($AC16:AD16)<$C16, AE39*$I16,"") ->  | AF16: =IF(SUM($AC16:AE16)<$C16, AF39*$I16,"") ->  | AG16: =IF(SUM($AC16:AF16)<$C16, AG39*$I16,"") ->  | AJ16: =IF(SUM($AI16:AI16)<$D16,AJ39*$I16,"") ->  | AK16: =IF(SUM($AI16:AJ16)<$D16,AK39*$I16,"") ->  | AL16: =IF(SUM($AI16:AK16)<$D16,AL39*$I16,"") ->  | AM16: =IF(SUM($AI16:AL16)<$D16,AM39*$I16,"") ->  | AP16: =IF(SUM($AO16:AO16)<$E16,AP39*$I16,"") ->  | AQ16: =IF(SUM($AO16:AP16)<$E16,AQ39*$I16,"") ->  | AR16: =IF(SUM($AO16:AQ16)<$E16,AR39*$I16,"") ->  | AS16: =IF(SUM($AO16:AR16)<$E16,AS39*$I16,"") ->  | AV16: =IF(SUM($AU16:AU16)<$F16,AV39*$I16,"") ->  | AW16: =IF(SUM($AU16:AV16)<$F16,AW39*$I16,"") ->  | AX16: =IF(SUM($AU16:AW16)<$F16,AX39*$I16,"") ->  | AY16: =IF(SUM($AU16:AX16)<$F16,AY39*$I16,"") ->  | BB16: =IF(SUM($BA16:BA16)<$G16,$G16*$I16,"") ->  | BC16: =IF(SUM($BA16:BB16)<$G16,$G16*$I16,"") ->  | BD16: =IF(SUM($BA16:BC16)<$G16,$G16*$I16,"") ->  | BE16: =IF(SUM($BA16:BD16)<$G16,$G16*$I16,"") -> 
B17: 1 | H17: 0 | I17: 0 | J17: 0 | K17: 0 | L17: 0 | M17: 0 | N17: 0 | AC17: 0 | AD17: =IF(SUM($AC17:AC17)<$C17, AD40*$I17,"") ->  | AE17: =IF(SUM($AC17:AD17)<$C17, AE40*$I17,"") ->  | AF17: =IF(SUM($AC17:AE17)<$C17, AF40*$I17,"") ->  | AG17: =IF(SUM($AC17:AF17)<$C17, AG40*$I17,"") ->  | AJ17: =IF(SUM($AI17:AI17)<$D17,AJ40*$I17,"") ->  | AK17: =IF(SUM($AI17:AJ17)<$D17,AK40*$I17,"") ->  | AL17: =IF(SUM($AI17:AK17)<$D17,AL40*$I17,"") ->  | AM17: =IF(SUM($AI17:AL17)<$D17,AM40*$I17,"") ->  | AP17: =IF(SUM($AO17:AO17)<$E17,AP40*$I17,"") ->  | AQ17: =IF(SUM($AO17:AP17)<$E17,AQ40*$I17,"") ->  | AR17: =IF(SUM($AO17:AQ17)<$E17,AR40*$I17,"") ->  | AS17: =IF(SUM($AO17:AR17)<$E17,AS40*$I17,"") ->  | AV17: =IF(SUM($AU17:AU17)<$F17,AV40*$I17,"") ->  | AW17: =IF(SUM($AU17:AV17)<$F17,AW40*$I17,"") ->  | AX17: =IF(SUM($AU17:AW17)<$F17,AX40*$I17,"") ->  | AY17: =IF(SUM($AU17:AX17)<$F17,AY40*$I17,"") ->  | BB17: =IF(SUM($BA17:BA17)<$G17,$G17*$I17,"") ->  | BC17: =IF(SUM($BA17:BB17)<$G17,$G17*$I17,"") ->  | BD17: =IF(SUM($BA17:BC17)<$G17,$G17*$I17,"") ->  | BE17: =IF(SUM($BA17:BD17)<$G17,$G17*$I17,"") -> 
B18: 1 | H18: 0 | I18: 0 | J18: 0 | K18: 0 | L18: 0 | M18: 0 | N18: 0 | AC18: 0 | AD18: =IF(SUM($AC18:AC18)<$C18, AD41*$I18,"") ->  | AE18: =IF(SUM($AC18:AD18)<$C18, AE41*$I18,"") ->  | AF18: =IF(SUM($AC18:AE18)<$C18, AF41*$I18,"") ->  | AG18: =IF(SUM($AC18:AF18)<$C18, AG41*$I18,"") ->  | AJ18: =IF(SUM($AI18:AI18)<$D18,AJ41*$I18,"") ->  | AK18: =IF(SUM($AI18:AJ18)<$D18,AK41*$I18,"") ->  | AL18: =IF(SUM($AI18:AK18)<$D18,AL41*$I18,"") ->  | AM18: =IF(SUM($AI18:AL18)<$D18,AM41*$I18,"") ->  | AP18: =IF(SUM($AO18:AO18)<$E18,AP41*$I18,"") ->  | AQ18: =IF(SUM($AO18:AP18)<$E18,AQ41*$I18,"") ->  | AR18: =IF(SUM($AO18:AQ18)<$E18,AR41*$I18,"") ->  | AS18: =IF(SUM($AO18:AR18)<$E18,AS41*$I18,"") ->  | AV18: =IF(SUM($AU18:AU18)<$F18,AV41*$I18,"") ->  | AW18: =IF(SUM($AU18:AV18)<$F18,AW41*$I18,"") ->  | AX18: =IF(SUM($AU18:AW18)<$F18,AX41*$I18,"") ->  | AY18: =IF(SUM($AU18:AX18)<$F18,AY41*$I18,"") ->  | BB18: =IF(SUM($BA18:BA18)<$G18,$G18*$I18,"") ->  | BC18: =IF(SUM($BA18:BB18)<$G18,$G18*$I18,"") ->  | BD18: =IF(SUM($BA18:BC18)<$G18,$G18*$I18,"") ->  | BE18: =IF(SUM($BA18:BD18)<$G18,$G18*$I18,"") -> 
B19: 1 | H19: 0 | I19: 0 | J19: 0 | K19: 0 | L19: 0 | M19: 0 | N19: 0 | AC19: 0 | AD19: =IF(SUM($AC19:AC19)<$C19, AD42*$I19,"") ->  | AE19: =IF(SUM($AC19:AD19)<$C19, AE42*$I19,"") ->  | AF19: =IF(SUM($AC19:AE19)<$C19, AF42*$I19,"") ->  | AG19: =IF(SUM($AC19:AF19)<$C19, AG42*$I19,"") ->  | AJ19: =IF(SUM($AI19:AI19)<$D19,AJ42*$I19,"") ->  | AK19: =IF(SUM($AI19:AJ19)<$D19,AK42*$I19,"") ->  | AL19: =IF(SUM($AI19:AK19)<$D19,AL42*$I19,"") ->  | AM19: =IF(SUM($AI19:AL19)<$D19,AM42*$I19,"") ->  | AP19: =IF(SUM($AO19:AO19)<$E19,AP42*$I19,"") ->  | AQ19: =IF(SUM($AO19:AP19)<$E19,AQ42*$I19,"") ->  | AR19: =IF(SUM($AO19:AQ19)<$E19,AR42*$I19,"") ->  | AS19: =IF(SUM($AO19:AR19)<$E19,AS42*$I19,"") ->  | AV19: =IF(SUM($AU19:AU19)<$F19,AV42*$I19,"") ->  | AW19: =IF(SUM($AU19:AV19)<$F19,AW42*$I19,"") ->  | AX19: =IF(SUM($AU19:AW19)<$F19,AX42*$I19,"") ->  | AY19: =IF(SUM($AU19:AX19)<$F19,AY42*$I19,"") ->  | BB19: =IF(SUM($BA19:BA19)<$G19,$G19*$I19,"") ->  | BC19: =IF(SUM($BA19:BB19)<$G19,$G19*$I19,"") ->  | BD19: =IF(SUM($BA19:BC19)<$G19,$G19*$I19,"") ->  | BE19: =IF(SUM($BA19:BD19)<$G19,$G19*$I19,"") -> 
B20: 1 | H20: 0 | I20: 0 | J20: 0 | K20: 0 | L20: 0 | M20: 0 | N20: 0 | AC20: 0 | AD20: =IF(SUM($AC20:AC20)<$C20, AD43*$I20,"") ->  | AE20: =IF(SUM($AC20:AD20)<$C20, AE43*$I20,"") ->  | AF20: =IF(SUM($AC20:AE20)<$C20, AF43*$I20,"") ->  | AG20: =IF(SUM($AC20:AF20)<$C20, AG43*$I20,"") ->  | AJ20: =IF(SUM($AI20:AI20)<$D20,AJ43*$I20,"") ->  | AK20: =IF(SUM($AI20:AJ20)<$D20,AK43*$I20,"") ->  | AL20: =IF(SUM($AI20:AK20)<$D20,AL43*$I20,"") ->  | AM20: =IF(SUM($AI20:AL20)<$D20,AM43*$I20,"") ->  | AP20: =IF(SUM($AO20:AO20)<$E20,AP43*$I20,"") ->  | AQ20: =IF(SUM($AO20:AP20)<$E20,AQ43*$I20,"") ->  | AR20: =IF(SUM($AO20:AQ20)<$E20,AR43*$I20,"") ->  | AS20: =IF(SUM($AO20:AR20)<$E20,AS43*$I20,"") ->  | AV20: =IF(SUM($AU20:AU20)<$F20,AV43*$I20,"") ->  | AW20: =IF(SUM($AU20:AV20)<$F20,AW43*$I20,"") ->  | AX20: =IF(SUM($AU20:AW20)<$F20,AX43*$I20,"") ->  | AY20: =IF(SUM($AU20:AX20)<$F20,AY43*$I20,"") ->  | BB20: =IF(SUM($BA20:BA20)<$G20,$G20*$I20,"") ->  | BC20: =IF(SUM($BA20:BB20)<$G20,$G20*$I20,"") ->  | BD20: =IF(SUM($BA20:BC20)<$G20,$G20*$I20,"") ->  | BE20: =IF(SUM($BA20:BD20)<$G20,$G20*$I20,"") -> 
B21: 1 | H21: 0 | I21: 0 | J21: 0 | K21: 0 | L21: 0 | M21: 0 | N21: 0 | AC21: 0 | AD21: =IF(SUM($AC21:AC21)<$C21, AD44*$I21,"") ->  | AE21: =IF(SUM($AC21:AD21)<$C21, AE44*$I21,"") ->  | AF21: =IF(SUM($AC21:AE21)<$C21, AF44*$I21,"") ->  | AG21: =IF(SUM($AC21:AF21)<$C21, AG44*$I21,"") ->  | AJ21: =IF(SUM($AI21:AI21)<$D21,AJ44*$I21,"") ->  | AK21: =IF(SUM($AI21:AJ21)<$D21,AK44*$I21,"") ->  | AL21: =IF(SUM($AI21:AK21)<$D21,AL44*$I21,"") ->  | AM21: =IF(SUM($AI21:AL21)<$D21,AM44*$I21,"") ->  | AP21: =IF(SUM($AO21:AO21)<$E21,AP44*$I21,"") ->  | AQ21: =IF(SUM($AO21:AP21)<$E21,AQ44*$I21,"") ->  | AR21: =IF(SUM($AO21:AQ21)<$E21,AR44*$I21,"") ->  | AS21: =IF(SUM($AO21:AR21)<$E21,AS44*$I21,"") ->  | AV21: =IF(SUM($AU21:AU21)<$F21,AV44*$I21,"") ->  | AW21: =IF(SUM($AU21:AV21)<$F21,AW44*$I21,"") ->  | AX21: =IF(SUM($AU21:AW21)<$F21,AX44*$I21,"") ->  | AY21: =IF(SUM($AU21:AX21)<$F21,AY44*$I21,"") ->  | BB21: =IF(SUM($BA21:BA21)<$G21,$G21*$I21,"") ->  | BC21: =IF(SUM($BA21:BB21)<$G21,$G21*$I21,"") ->  | BD21: =IF(SUM($BA21:BC21)<$G21,$G21*$I21,"") ->  | BE21: =IF(SUM($BA21:BD21)<$G21,$G21*$I21,"") -> 
B22: 1 | H22: 0 | I22: 0 | J22: 0 | K22: 0 | L22: 0 | M22: 0 | N22: 0 | AC22: 0 | AD22: =IF(SUM($AC22:AC22)<$C22, AD45*$I22,"") ->  | AE22: =IF(SUM($AC22:AD22)<$C22, AE45*$I22,"") ->  | AF22: =IF(SUM($AC22:AE22)<$C22, AF45*$I22,"") ->  | AG22: =IF(SUM($AC22:AF22)<$C22, AG45*$I22,"") ->  | AJ22: =IF(SUM($AI22:AI22)<$D22,AJ45*$I22,"") ->  | AK22: =IF(SUM($AI22:AJ22)<$D22,AK45*$I22,"") ->  | AL22: =IF(SUM($AI22:AK22)<$D22,AL45*$I22,"") ->  | AM22: =IF(SUM($AI22:AL22)<$D22,AM45*$I22,"") ->  | AP22: =IF(SUM($AO22:AO22)<$E22,AP45*$I22,"") ->  | AQ22: =IF(SUM($AO22:AP22)<$E22,AQ45*$I22,"") ->  | AR22: =IF(SUM($AO22:AQ22)<$E22,AR45*$I22,"") ->  | AS22: =IF(SUM($AO22:AR22)<$E22,AS45*$I22,"") ->  | AV22: =IF(SUM($AU22:AU22)<$F22,AV45*$I22,"") ->  | AW22: =IF(SUM($AU22:AV22)<$F22,AW45*$I22,"") ->  | AX22: =IF(SUM($AU22:AW22)<$F22,AX45*$I22,"") ->  | AY22: =IF(SUM($AU22:AX22)<$F22,AY45*$I22,"") ->  | BB22: =IF(SUM($BA22:BA22)<$G22,$G22*$I22,"") ->  | BC22: =IF(SUM($BA22:BB22)<$G22,$G22*$I22,"") ->  | BD22: =IF(SUM($BA22:BC22)<$G22,$G22*$I22,"") ->  | BE22: =IF(SUM($BA22:BD22)<$G22,$G22*$I22,"") -> 
B23: 1 | H23: 0 | I23: 0 | J23: 0 | K23: 0 | L23: 0 | M23: 0 | N23: 0 | AC23: 0 | AD23: =IF(SUM($AC23:AC23)<$C23, AD46*$I23,"") ->  | AE23: =IF(SUM($AC23:AD23)<$C23, AE46*$I23,"") ->  | AF23: =IF(SUM($AC23:AE23)<$C23, AF46*$I23,"") ->  | AG23: =IF(SUM($AC23:AF23)<$C23, AG46*$I23,"") ->  | AJ23: =IF(SUM($AI23:AI23)<$D23,AJ46*$I23,"") ->  | AK23: =IF(SUM($AI23:AJ23)<$D23,AK46*$I23,"") ->  | AL23: =IF(SUM($AI23:AK23)<$D23,AL46*$I23,"") ->  | AM23: =IF(SUM($AI23:AL23)<$D23,AM46*$I23,"") ->  | AP23: =IF(SUM($AO23:AO23)<$E23,AP46*$I23,"") ->  | AQ23: =IF(SUM($AO23:AP23)<$E23,AQ46*$I23,"") ->  | AR23: =IF(SUM($AO23:AQ23)<$E23,AR46*$I23,"") ->  | AS23: =IF(SUM($AO23:AR23)<$E23,AS46*$I23,"") ->  | AV23: =IF(SUM($AU23:AU23)<$F23,AV46*$I23,"") ->  | AW23: =IF(SUM($AU23:AV23)<$F23,AW46*$I23,"") ->  | AX23: =IF(SUM($AU23:AW23)<$F23,AX46*$I23,"") ->  | AY23: =IF(SUM($AU23:AX23)<$F23,AY46*$I23,"") ->  | BB23: =IF(SUM($BA23:BA23)<$G23,$G23*$I23,"") ->  | BC23: =IF(SUM($BA23:BB23)<$G23,$G23*$I23,"") ->  | BD23: =IF(SUM($BA23:BC23)<$G23,$G23*$I23,"") ->  | BE23: =IF(SUM($BA23:BD23)<$G23,$G23*$I23,"") -> 
A24: Sicherheitsreserve (5% von der Gesamtinvestition) | C24: =0.05*SUM(C4:C23) -> 0 | D24: =0.05*SUM(D4:D23) -> 0 | E24: =0.05*SUM(E4:E23) -> 0 | F24: =0.05*SUM(F4:F23) -> 0 | G24: =0.05*SUM(G4:G23) -> 0 | I24: =IF(SUM(C24:G24)>0,AA5,0) -> 0 | J24: =I24*$C24 -> 0 | K24: =SUM(C24:D24)*$I24 -> 0 | L24: =SUM(C24:E24)*$I24 -> 0 | M24: =SUM(C24:F24)*$I24 -> 0 | N24: =SUM(C24:G24)*$I24 -> 0
A25: Anlagevermögen | C25: =SUM(C4:C24) -> 0 | D25: =SUM(D4:D24) -> 0 | E25: =SUM(E4:E24) -> 0 | F25: =SUM(F4:F24) -> 0 | G25: =SUM(G4:G24) -> 0 | J25: =SUM(J4:J24) -> 0 | K25: =SUM(K4:K24) -> 0 | L25: =SUM(L4:L24) -> 0 | M25: =SUM(M4:M24) -> 0 | N25: =SUM(N4:N24) -> 0
AD27: =IF(D4<0,$C4+D4,$C4) -> 0 | AE27: =IF(D4<0,$C4+D4,$C4) -> 0 | AF27: =IF(E4<0,$C4+E4,IF(AE27<$C4,AE27,$C4)) -> 0 | AG27: =IF(F4<0,$C4+F4,IF(AF27<$C4,AF27,$C4)) -> 0 | AJ27: =IF(E4<0,$D4+E4,$D4) -> 0 | AK27: =IF(E4<0,$D4+E4,$D4) -> 0 | AL27: =IF(E4<0,$D4+E4,IF(AK27<$D4,AK27,$D4)) -> 0 | AM27: =IF(F4<0,$D4+F4,IF(AL27<$D4,AL27,$D4)) -> 0 | AP27: =IF(F4<0,$E4+F4,$E4) -> 0 | AQ27: =IF(F4<0,$E4+F4,$E4) -> 0 | AR27: =IF(H4<0,$E4+H4,$E4) -> 0 | AS27: =IF(I4<0,$E4+I4,$E4) -> 0 | AV27: =IF(G4<0,$F4+G4,$F4) -> 0 | AW27: =IF(H4<0,$F4+H4,$F4) -> 0 | AX27: =IF(I4<0,$F4+I4,$F4) -> 0 | AY27: =IF(J4<0,$F4+J4,$F4) -> 0
AD28: =IF(D5<0,$C5+D5,$C5) -> 0 | AE28: =IF(D5<0,$C5+D5,$C5) -> 0 | AF28: =IF(E5<0,$C5+E5,IF(AE28<$C5,AE28,$C5)) -> 0 | AG28: 0 | AJ28: =IF(E5<0,$D5+E5,$D5) -> 0 | AK28: =IF(E5<0,$D5+E5,$D5) -> 0 | AL28: =IF(E5<0,$D5+E5,IF(AK28<$D5,AK28,$D5)) -> 0 | AM28: 0 | AP28: =IF(F5<0,$E5+F5,$E5) -> 0 | AQ28: =IF(G5<0,$E5+G5,$E5) -> 0 | AR28: =IF(H5<0,$E5+H5,$E5) -> 0 | AS28: =IF(I5<0,$E5+I5,$E5) -> 0 | AV28: =IF(G5<0,$F5+G5,$F5) -> 0 | AW28: =IF(H5<0,$F5+H5,$F5) -> 0 | AX28: =IF(I5<0,$F5+I5,$F5) -> 0 | AY28: =IF(J5<0,$F5+J5,$F5) -> 0
AD29: 0 | AE29: 0 | AF29: =IF(E6<0,$C6+E6,IF(AE29<$C6,AE29,$C6)) -> 0 | AG29: 0 | AJ29: 0 | AK29: 0 | AL29: =IF(E6<0,$D6+E6,IF(AK29<$D6,AK29,$D6)) -> 0 | AM29: 0 | AP29: 0 | AQ29: 0 | AR29: 0 | AS29: 0 | AV29: 0 | AW29: 0 | AX29: 0 | AY29: 0
AD30: 0 | AE30: 0 | AF30: =IF(E7<0,$C7+E7,IF(AE30<$C7,AE30,$C7)) -> 0 | AG30: 0 | AJ30: 0 | AK30: 0 | AL30: =IF(E7<0,$D7+E7,IF(AK30<$D7,AK30,$D7)) -> 0 | AM30: 0 | AP30: 0 | AQ30: 0 | AR30: 0 | AS30: 0 | AV30: 0 | AW30: 0 | AX30: 0 | AY30: 0
AD31: 0 | AE31: 0 | AF31: =IF(E8<0,$C8+E8,IF(AE31<$C8,AE31,$C8)) -> 0 | AG31: 0 | AJ31: 0 | AK31: 0 | AL31: =IF(E8<0,$D8+E8,IF(AK31<$D8,AK31,$D8)) -> 0 | AM31: 0 | AP31: 0 | AQ31: 0 | AR31: 0 | AS31: 0 | AV31: 0 | AW31: 0 | AX31: 0 | AY31: 0
A32: b) Gründungskosten: | C32: Jahr 1 | D32: Jahr 2 | E32: Jahr 3 | F32: Jahr 4 | G32: Jahr 5 | H32: Nutzungs- dauer in Jahren | I32: Ab-schreibe-quote | J32: Abschr. Jahr 1 | K32: Abschr. Jahr 2 | L32: Abschr. Jahr 3 | M32: Abschr. Jahr 4 | N32: Abschr. Jahr 5 | AD32: 0 | AE32: 0 | AF32: =IF(E9<0,$C9+E9,IF(AE32<$C9,AE32,$C9)) -> 0 | AG32: 0 | AJ32: 0 | AK32: 0 | AL32: =IF(E9<0,$D9+E9,IF(AK32<$D9,AK32,$D9)) -> 0 | AM32: 0 | AP32: 0 | AQ32: 0 | AR32: 0 | AS32: 0 | AV32: 0 | AW32: 0 | AX32: 0 | AY32: 0
A33: Unternehmensberater | B33: mehrjährige Spesen | H33: =SUMIF($A$53:$A$61,B33,$C$53:$C$61) -> 5 | I33: =SUMIF($A$53:$A$61,B33,$D$53:$D$61) -> 0.2 | J33: =I33*$C33 -> 0 | K33: =SUM(C33:D33)*$I33 -> 0 | L33: =SUM(C33:E33)*$I33 -> 0 | M33: =SUM(C33:F33)*$I33 -> 0 | N33: =SUM(C33:G33)*$I33 -> 0 | AD33: 0 | AE33: 0 | AF33: =IF(E10<0,$C10+E10,IF(AE33<$C10,AE33,$C10)) -> 0 | AG33: 0 | AJ33: 0 | AK33: 0 | AL33: =IF(E10<0,$D10+E10,IF(AK33<$D10,AK33,$D10)) -> 0 | AM33: 0 | AP33: 0 | AQ33: 0 | AR33: 0 | AS33: 0 | AV33: 0 | AW33: 0 | AX33: 0 | AY33: 0
A34: Wirtschafts- bzw. Steuerberater | B34: mehrjährige Spesen | H34: =SUMIF($A$53:$A$61,B34,$C$53:$C$61) -> 5 | I34: =SUMIF($A$53:$A$61,B34,$D$53:$D$61) -> 0.2 | J34: 0 | K34: =SUM(C34:D34)*$I34 -> 0 | L34: =SUM(C34:E34)*$I34 -> 0 | M34: =SUM(C34:F34)*$I34 -> 0 | N34: =SUM(C34:G34)*$I34 -> 0 | AD34: 0 | AE34: 0 | AF34: =IF(E11<0,$C11+E11,IF(AE34<$C11,AE34,$C11)) -> 0 | AG34: 0 | AJ34: 0 | AK34: 0 | AL34: =IF(E11<0,$D11+E11,IF(AK34<$D11,AK34,$D11)) -> 0 | AM34: 0 | AP34: 0 | AQ34: 0 | AR34: 0 | AS34: 0 | AV34: 0 | AW34: 0 | AX34: 0 | AY34: 0
A35: Rechtsanwalt | B35: mehrjährige Spesen | H35: 5 | I35: 0.2 | J35: 0 | K35: 0 | L35: 0 | M35: 0 | N35: 0 | AD35: 0 | AE35: 0 | AF35: =IF(E12<0,$C12+E12,IF(AE35<$C12,AE35,$C12)) -> 0 | AG35: 0 | AJ35: 0 | AK35: 0 | AL35: =IF(E12<0,$D12+E12,IF(AK35<$D12,AK35,$D12)) -> 0 | AM35: 0 | AP35: 0 | AQ35: 0 | AR35: 0 | AS35: 0 | AV35: 0 | AW35: 0 | AX35: 0 | AY35: 0
A36: Notar | B36: mehrjährige Spesen | H36: 5 | I36: 0.2 | J36: 0 | K36: 0 | L36: 0 | M36: 0 | N36: 0 | AD36: 0 | AE36: 0 | AF36: =IF(E13<0,$C13+E13,IF(AE36<$C13,AE36,$C13)) -> 0 | AG36: 0 | AJ36: 0 | AK36: 0 | AL36: =IF(E13<0,$D13+E13,IF(AK36<$D13,AK36,$D13)) -> 0 | AM36: 0 | AP36: 0 | AQ36: 0 | AR36: 0 | AS36: 0 | AV36: 0 | AW36: 0 | AX36: 0 | AY36: 0
A37: Genehmigungen / Eintragungen | B37: mehrjährige Spesen | H37: 5 | I37: 0.2 | J37: 0 | K37: 0 | L37: 0 | M37: 0 | N37: 0 | AD37: 0 | AE37: 0 | AF37: =IF(E14<0,$C14+E14,IF(AE37<$C14,AE37,$C14)) -> 0 | AG37: 0 | AJ37: 0 | AK37: 0 | AL37: =IF(E14<0,$D14+E14,IF(AK37<$D14,AK37,$D14)) -> 0 | AM37: 0 | AP37: 0 | AQ37: 0 | AR37: 0 | AS37: 0 | AV37: 0 | AW37: 0 | AX37: 0 | AY37: 0
A38: Marketingkonzept | B38: mehrjährige Spesen | H38: 5 | I38: 0.2 | J38: 0 | K38: 0 | L38: 0 | M38: 0 | N38: 0 | AD38: 0 | AE38: 0 | AF38: =IF(E15<0,$C15+E15,IF(AE38<$C15,AE38,$C15)) -> 0 | AG38: 0 | AJ38: 0 | AK38: 0 | AL38: =IF(E15<0,$D15+E15,IF(AK38<$D15,AK38,$D15)) -> 0 | AM38: 0 | AP38: 0 | AQ38: 0 | AR38: 0 | AS38: 0 | AV38: 0 | AW38: 0 | AX38: 0 | AY38: 0
A39: Eröffnungsfeier | B39: mehrjährige Spesen | H39: 5 | I39: 0.2 | J39: 0 | K39: 0 | L39: 0 | M39: 0 | N39: 0 | AD39: 0 | AE39: 0 | AF39: =IF(E16<0,$C16+E16,IF(AE39<$C16,AE39,$C16)) -> 0 | AG39: 0 | AJ39: 0 | AK39: 0 | AL39: =IF(E16<0,$D16+E16,IF(AK39<$D16,AK39,$D16)) -> 0 | AM39: 0 | AP39: 0 | AQ39: 0 | AR39: 0 | AS39: 0 | AV39: 0 | AW39: 0 | AX39: 0 | AY39: 0
A40: … | B40: mehrjährige Spesen | H40: 5 | I40: 0.2 | J40: 0 | K40: 0 | L40: 0 | M40: 0 | N40: 0 | AD40: 0 | AE40: 0 | AF40: =IF(E17<0,$C17+E17,IF(AE40<$C17,AE40,$C17)) -> 0 | AG40: 0 | AJ40: 0 | AK40: 0 | AL40: =IF(E17<0,$D17+E17,IF(AK40<$D17,AK40,$D17)) -> 0 | AM40: 0 | AP40: 0 | AQ40: 0 | AR40: 0 | AS40: 0 | AV40: 0 | AW40: 0 | AX40: 0 | AY40: 0
A41: … | B41: mehrjährige Spesen | H41: 5 | I41: 0.2 | J41: 0 | K41: 0 | L41: 0 | M41: 0 | N41: 0 | AD41: 0 | AE41: 0 | AF41: =IF(E18<0,$C18+E18,IF(AE41<$C18,AE41,$C18)) -> 0 | AG41: 0 | AJ41: 0 | AK41: 0 | AL41: =IF(E18<0,$D18+E18,IF(AK41<$D18,AK41,$D18)) -> 0 | AM41: 0 | AP41: 0 | AQ41: 0 | AR41: 0 | AS41: 0 | AV41: 0 | AW41: 0 | AX41: 0 | AY41: 0
B42: mehrjährige Spesen | H42: 5 | I42: =SUMIF($A$53:$A$61,B42,$D$53:$D$61) -> 0.2 | J42: 0 | K42: 0 | L42: 0 | M42: 0 | N42: 0 | AD42: 0 | AE42: 0 | AF42: =IF(E19<0,$C19+E19,IF(AE42<$C19,AE42,$C19)) -> 0 | AG42: 0 | AJ42: 0 | AK42: 0 | AL42: =IF(E19<0,$D19+E19,IF(AK42<$D19,AK42,$D19)) -> 0 | AM42: 0 | AP42: 0 | AQ42: 0 | AR42: 0 | AS42: 0 | AV42: 0 | AW42: 0 | AX42: 0 | AY42: 0
B43: mehrjährige Spesen | H43: 5 | I43: 0.2 | J43: =I43*$C43 -> 0 | K43: =SUM(C43:D43)*$I43 -> 0 | L43: =SUM(C43:E43)*$I43 -> 0 | M43: =SUM(C43:F43)*$I43 -> 0 | N43: =SUM(C43:G43)*$I43 -> 0 | AD43: 0 | AE43: 0 | AF43: =IF(E20<0,$C20+E20,IF(AE43<$C20,AE43,$C20)) -> 0 | AG43: 0 | AJ43: 0 | AK43: 0 | AL43: =IF(E20<0,$D20+E20,IF(AK43<$D20,AK43,$D20)) -> 0 | AM43: 0 | AP43: 0 | AQ43: 0 | AR43: 0 | AS43: 0 | AV43: 0 | AW43: 0 | AX43: 0 | AY43: 0
A44: Gründungskosten | C44: =SUM(C33:C43) -> 0 | D44: =SUM(D33:D43) -> 0 | E44: 0 | F44: 0 | G44: 0 | J44: =SUM(J33:J43) -> 0 | K44: =SUM(K33:K43) -> 0 | L44: =SUM(L33:L43) -> 0 | M44: =SUM(M33:M43) -> 0 | N44: =SUM(N33:N43) -> 0 | AD44: 0 | AE44: 0 | AF44: =IF(E21<0,$C21+E21,IF(AE44<$C21,AE44,$C21)) -> 0 | AG44: 0 | AJ44: 0 | AK44: 0 | AL44: =IF(E21<0,$D21+E21,IF(AK44<$D21,AK44,$D21)) -> 0 | AM44: 0 | AP44: 0 | AQ44: 0 | AR44: 0 | AS44: 0 | AV44: 0 | AW44: 0 | AX44: 0 | AY44: 0
A45: Summe Abschreibungen | J45: =J25+J44 -> 0 | K45: =K25+K44 -> 0 | L45: =L25+L44 -> 0 | M45: =M25+M44 -> 0 | N45: =N25+N44 -> 0 | AD45: 0 | AE45: 0 | AF45: =IF(E22<0,$C22+E22,IF(AE45<$C22,AE45,$C22)) -> 0 | AG45: 0 | AJ45: 0 | AK45: 0 | AL45: =IF(E22<0,$D22+E22,IF(AK45<$D22,AK45,$D22)) -> 0 | AM45: 0 | AP45: 0 | AQ45: 0 | AR45: 0 | AS45: 0 | AV45: 0 | AW45: 0 | AX45: 0 | AY45: 0
AD46: 0 | AE46: 0 | AF46: =IF(E23<0,$C23+E23,IF(AE46<$C23,AE46,$C23)) -> 0 | AG46: 0 | AJ46: 0 | AK46: 0 | AL46: =IF(E23<0,$D23+E23,IF(AK46<$D23,AK46,$D23)) -> 0 | AM46: 0 | AP46: 0 | AQ46: 0 | AR46: 0 | AS46: 0 | AV46: 0 | AW46: 0 | AX46: 0 | AY46: 0
A52: - bitte auswählen - | B52: 1 | C52: Jahre | D52: %
A53: Gebäude & Immobilien | B53: 2 | C53: 33 | D53: =1/C53 -> 0.0303030303
A54: Maschinen & Anlagen | B54: 3 | C54: 10 | D54: 0.1
A55: Ausstattung & Einrichtung | B55: 4 | C55: 8 | D55: 0.125
A56: EDV | B56: 5 | C56: 5 | D56: 0.2
A57: Software | B57: 6 | C57: 3 | D57: =1/C57 -> 0.3333333333
A58: PKW | B58: 7 | C58: 4 | D58: 0.25
A59: LKW | B59: 8 | C59: 5 | D59: 0.2
A60: sonstige Anlagen | B60: 9 | C60: 6.666666667 | D60: 0.15
A61: mehrjährige Spesen | B61: 10 | C61: 5 | D61: 0.2

Sheet 4. Umsatzplanung
A1: Umsatzplanung 1. Geschäftsjahr
A2: Die Daten der Umsatzplanung werden direkt in die Tabelle "6. Erfolgsrechnung Jahr" übertragen.
B3: Produkt | D3: Umsatz | E3: Wareneinsatz | G3: Rohertrag
B4: Preis / Einheit | C4: Menge / Jahr | E4: in % | F4: Wert | G4: in % | H4: Wert
A5: Dienstleistung / Produkt | D5: =B5*C5 -> 0 | F5: =D5*E5 -> 0 | G5: =IF(B5=0,0,1-E5) -> 0 | H5: =D5-F5 -> 0
A6: Dienstleistung / Produkt | D6: =B6*C6 -> 0 | F6: =D6*E6 -> 0 | G6: =IF(B6=0,0,1-E6) -> 0 | H6: =D6-F6 -> 0
A7: Dienstleistung / Produkt | D7: =B7*C7 -> 0 | F7: =D7*E7 -> 0 | G7: =IF(B7=0,0,1-E7) -> 0 | H7: =D7-F7 -> 0
A8: Dienstleistung / Produkt | D8: =B8*C8 -> 0 | F8: =D8*E8 -> 0 | G8: =IF(B8=0,0,1-E8) -> 0 | H8: =D8-F8 -> 0
A9: Dienstleistung / Produkt | D9: =B9*C9 -> 0 | F9: =D9*E9 -> 0 | G9: =IF(B9=0,0,1-E9) -> 0 | H9: =D9-F9 -> 0
A10: Dienstleistung / Produkt | D10: =B10*C10 -> 0 | F10: =D10*E10 -> 0 | G10: =IF(B10=0,0,1-E10) -> 0 | H10: =D10-F10 -> 0
A11: Dienstleistung / Produkt | D11: 0 | F11: 0 | G11: 0 | H11: 0
A12: Dienstleistung / Produkt | D12: 0 | F12: 0 | G12: 0 | H12: 0
A13: Dienstleistung / Produkt | D13: 0 | F13: 0 | G13: 0 | H13: 0
A14: Dienstleistung / Produkt | D14: 0 | F14: 0 | G14: 0 | H14: 0
A15: Dienstleistung / Produkt | D15: 0 | F15: 0 | G15: 0 | H15: 0
A16: Dienstleistung / Produkt | D16: 0 | F16: 0 | G16: 0 | H16: 0
A17: Dienstleistung / Produkt | D17: 0 | F17: 0 | G17: 0 | H17: 0
A18: Dienstleistung / Produkt | D18: 0 | F18: 0 | G18: 0 | H18: 0
A19: Dienstleistung / Produkt | D19: =B19*C19 -> 0 | F19: =D19*E19 -> 0 | G19: =IF(B19=0,0,1-E19) -> 0 | H19: =D19-F19 -> 0
A20: Summe | C20: =SUM(C5:C19) -> 0 | D20: =SUM(D5:D19) -> 0 | E20: =IF(SUM(F5:F19)=0,0,F20/D20) -> 0 | F20: =SUM(F5:F19) -> 0 | G20: =IF(SUM(H5:H19)=0,0,H20/D20) -> 0 | H20: =SUM(H5:H19) -> 0
A22: Umsatzplanung 2. Geschäftsjahr
B23: Produkt | D23: Umsatz | E23: Wareneinsatz | G23: =G3 -> Rohertrag
B24: =$B$4 -> Preis / Einheit | C24: =C4 -> Menge / Jahr | E24: in % | F24: Wert | G24: in % | H24: Wert
A25: =IF(A5=0,"",A5) -> Dienstleistung / Produkt | B25: =B5 -> 0 | C25: 0 | D25: =B25*C25 -> 0 | E25: =E5 -> 0 | F25: =D25*E25 -> 0 | G25: =IF(B25=0,0,1-E25) -> 0 | H25: =D25-F25 -> 0
A26: =IF(A6=0,"",A6) -> Dienstleistung / Produkt | B26: 0 | C26: =C6 -> 0 | D26: =B26*C26 -> 0 | E26: =E6 -> 0 | F26: =D26*E26 -> 0 | G26: =IF(B26=0,0,1-E26) -> 0 | H26: =D26-F26 -> 0
A27: Dienstleistung / Produkt | B27: 0 | C27: =C7 -> 0 | D27: =B27*C27 -> 0 | E27: =E7 -> 0 | F27: =D27*E27 -> 0 | G27: =IF(B27=0,0,1-E27) -> 0 | H27: =D27-F27 -> 0
A28: Dienstleistung / Produkt | B28: 0 | C28: =C8 -> 0 | D28: =B28*C28 -> 0 | E28: 0 | F28: =D28*E28 -> 0 | G28: =IF(B28=0,0,1-E28) -> 0 | H28: =D28-F28 -> 0
A29: Dienstleistung / Produkt | B29: 0 | C29: =C9 -> 0 | D29: =B29*C29 -> 0 | E29: 0 | F29: =D29*E29 -> 0 | G29: =IF(B29=0,0,1-E29) -> 0 | H29: =D29-F29 -> 0
A30: Dienstleistung / Produkt | B30: 0 | C30: =C10 -> 0 | D30: =B30*C30 -> 0 | E30: 0 | F30: =D30*E30 -> 0 | G30: =IF(B30=0,0,1-E30) -> 0 | H30: =D30-F30 -> 0
A31: Dienstleistung / Produkt | B31: 0 | C31: =C11 -> 0 | D31: 0 | E31: 0 | F31: 0 | G31: 0 | H31: 0
A32: Dienstleistung / Produkt | B32: 0 | C32: =C12 -> 0 | D32: 0 | E32: 0 | F32: 0 | G32: 0 | H32: 0
A33: Dienstleistung / Produkt | B33: 0 | C33: =C13 -> 0 | D33: 0 | E33: 0 | F33: 0 | G33: 0 | H33: 0
A34: Dienstleistung / Produkt | B34: 0 | C34: =C14 -> 0 | D34: 0 | E34: 0 | F34: 0 | G34: 0 | H34: 0
A35: Dienstleistung / Produkt | B35: 0 | C35: =C15 -> 0 | D35: 0 | E35: 0 | F35: 0 | G35: 0 | H35: 0
A36: Dienstleistung / Produkt | B36: 0 | C36: =C16 -> 0 | D36: 0 | E36: 0 | F36: 0 | G36: 0 | H36: 0
A37: Dienstleistung / Produkt | B37: 0 | C37: =C17 -> 0 | D37: 0 | E37: 0 | F37: 0 | G37: 0 | H37: 0
A38: Dienstleistung / Produkt | B38: 0 | C38: =C18 -> 0 | D38: 0 | E38: 0 | F38: 0 | G38: 0 | H38: 0
A39: Dienstleistung / Produkt | B39: =B19 -> 0 | C39: =C19 -> 0 | D39: 0 | E39: 0 | F39: 0 | G39: 0 | H39: 0
A40: Summe | C40: =SUM(C25:C39) -> 0 | D40: =SUM(D25:D39) -> 0 | E40: =IF(SUM(F25:F39)=0,0,F40/D40) -> 0 | F40: =SUM(F25:F39) -> 0 | G40: =IF(SUM(H25:H39)=0,0,H40/D40) -> 0 | H40: =SUM(H25:H39) -> 0
A42: Umsatzplanung 3. Geschäftsjahr
B43: Produkt | D43: Umsatz | E43: Wareneinsatz | G43: =G23 -> Rohertrag
B44: =$B$4 -> Preis / Einheit | C44: =C24 -> Menge / Jahr | E44: in % | F44: Wert | G44: in % | H44: Wert
A45: =A25 -> Dienstleistung / Produkt | B45: 0 | C45: 0 | D45: =B45*C45 -> 0 | E45: =E25 -> 0 | F45: =D45*E45 -> 0 | G45: =IF(B45=0,0,1-E45) -> 0 | H45: =D45-F45 -> 0
A46: Dienstleistung / Produkt | B46: =B26 -> 0 | C46: 0 | D46: =B46*C46 -> 0 | E46: =E26 -> 0 | F46: =D46*E46 -> 0 | G46: =IF(B46=0,0,1-E46) -> 0 | H46: =D46-F46 -> 0
A47: Dienstleistung / Produkt | B47: =B27 -> 0 | C47: 0 | D47: =B47*C47 -> 0 | E47: =E27 -> 0 | F47: =D47*E47 -> 0 | G47: =IF(B47=0,0,1-E47) -> 0 | H47: =D47-F47 -> 0
A48: Dienstleistung / Produkt | B48: =B28 -> 0 | C48: 0 | D48: =B48*C48 -> 0 | E48: 0 | F48: =D48*E48 -> 0 | G48: =IF(B48=0,0,1-E48) -> 0 | H48: =D48-F48 -> 0
A49: Dienstleistung / Produkt | B49: =B29 -> 0 | C49: 0 | D49: =B49*C49 -> 0 | E49: 0 | F49: =D49*E49 -> 0 | G49: =IF(B49=0,0,1-E49) -> 0 | H49: =D49-F49 -> 0
A50: Dienstleistung / Produkt | B50: =B30 -> 0 | C50: 0 | D50: =B50*C50 -> 0 | E50: 0 | F50: =D50*E50 -> 0 | G50: =IF(B50=0,0,1-E50) -> 0 | H50: =D50-F50 -> 0
A51: Dienstleistung / Produkt | B51: =B31 -> 0 | C51: 0 | D51: 0 | E51: 0 | F51: 0 | G51: 0 | H51: 0
A52: Dienstleistung / Produkt | B52: =B32 -> 0 | C52: 0 | D52: 0 | E52: 0 | F52: 0 | G52: 0 | H52: 0
A53: Dienstleistung / Produkt | B53: =B33 -> 0 | C53: 0 | D53: 0 | E53: 0 | F53: 0 | G53: 0 | H53: 0
A54: Dienstleistung / Produkt | B54: =B34 -> 0 | C54: 0 | D54: 0 | E54: 0 | F54: 0 | G54: 0 | H54: 0
A55: Dienstleistung / Produkt | B55: =B35 -> 0 | C55: 0 | D55: 0 | E55: 0 | F55: 0 | G55: 0 | H55: 0
A56: Dienstleistung / Produkt | B56: =B36 -> 0 | C56: 0 | D56: 0 | E56: 0 | F56: 0 | G56: 0 | H56: 0
A57: Dienstleistung / Produkt | B57: =B37 -> 0 | C57: 0 | D57: 0 | E57: 0 | F57: 0 | G57: 0 | H57: 0
A58: Dienstleistung / Produkt | B58: =B38 -> 0 | C58: 0 | D58: 0 | E58: 0 | F58: 0 | G58: 0 | H58: 0
A59: Dienstleistung / Produkt | B59: =B39 -> 0 | C59: 0 | D59: 0 | E59: 0 | F59: 0 | G59: 0 | H59: 0
A60: Summe | C60: =SUM(C45:C59) -> 0 | D60: =SUM(D45:D59) -> 0 | E60: =IF(SUM(F45:F59)=0,0,F60/D60) -> 0 | F60: =SUM(F45:F59) -> 0 | G60: =IF(SUM(H45:H59)=0,0,H60/D60) -> 0 | H60: =SUM(H45:H59) -> 0
A62: Umsatzplanung 4. Geschäftsjahr
B63: Produkt | D63: Umsatz | E63: Wareneinsatz | G63: =G43 -> Rohertrag
B64: =$B$4 -> Preis / Einheit | C64: =C44 -> Menge / Jahr | E64: in % | F64: Wert | G64: in % | H64: Wert
A65: =A45 -> Dienstleistung / Produkt | B65: 0 | C65: 0 | D65: =B65*C65 -> 0 | E65: =E45 -> 0 | F65: =D65*E65 -> 0 | G65: =IF(B65=0,0,1-E65) -> 0 | H65: =D65-F65 -> 0
A66: Dienstleistung / Produkt | B66: =B46 -> 0 | C66: 0 | D66: =B66*C66 -> 0 | E66: =E46 -> 0 | F66: =D66*E66 -> 0 | G66: =IF(B66=0,0,1-E66) -> 0 | H66: =D66-F66 -> 0
A67: Dienstleistung / Produkt | B67: =B47 -> 0 | C67: 0 | D67: =B67*C67 -> 0 | E67: =E47 -> 0 | F67: =D67*E67 -> 0 | G67: =IF(B67=0,0,1-E67) -> 0 | H67: =D67-F67 -> 0
A68: Dienstleistung / Produkt | B68: =B48 -> 0 | C68: 0 | D68: =B68*C68 -> 0 | E68: 0 | F68: =D68*E68 -> 0 | G68: =IF(B68=0,0,1-E68) -> 0 | H68: =D68-F68 -> 0
A69: Dienstleistung / Produkt | B69: =B49 -> 0 | C69: 0 | D69: =B69*C69 -> 0 | E69: 0 | F69: =D69*E69 -> 0 | G69: =IF(B69=0,0,1-E69) -> 0 | H69: =D69-F69 -> 0
A70: Dienstleistung / Produkt | B70: =B50 -> 0 | C70: 0 | D70: =B70*C70 -> 0 | E70: 0 | F70: =D70*E70 -> 0 | G70: =IF(B70=0,0,1-E70) -> 0 | H70: =D70-F70 -> 0
A71: Dienstleistung / Produkt | B71: =B51 -> 0 | C71: 0 | D71: 0 | E71: 0 | F71: 0 | G71: 0 | H71: 0
A72: Dienstleistung / Produkt | B72: =B52 -> 0 | C72: 0 | D72: 0 | E72: 0 | F72: 0 | G72: 0 | H72: 0
A73: Dienstleistung / Produkt | B73: =B53 -> 0 | C73: 0 | D73: 0 | E73: 0 | F73: 0 | G73: 0 | H73: 0
A74: Dienstleistung / Produkt | B74: =B54 -> 0 | C74: 0 | D74: 0 | E74: 0 | F74: 0 | G74: 0 | H74: 0
A75: Dienstleistung / Produkt | B75: =B55 -> 0 | C75: 0 | D75: 0 | E75: 0 | F75: 0 | G75: 0 | H75: 0
A76: Dienstleistung / Produkt | B76: =B56 -> 0 | C76: 0 | D76: 0 | E76: 0 | F76: 0 | G76: 0 | H76: 0
A77: Dienstleistung / Produkt | B77: =B57 -> 0 | C77: 0 | D77: 0 | E77: 0 | F77: 0 | G77: 0 | H77: 0
A78: Dienstleistung / Produkt | B78: =B58 -> 0 | C78: 0 | D78: 0 | E78: 0 | F78: 0 | G78: 0 | H78: 0
A79: Dienstleistung / Produkt | B79: =B59 -> 0 | C79: 0 | D79: 0 | E79: 0 | F79: 0 | G79: 0 | H79: 0
A80: Summe | C80: =SUM(C65:C79) -> 0 | D80: =SUM(D65:D79) -> 0 | E80: =IF(SUM(F65:F79)=0,0,F80/D80) -> 0 | F80: =SUM(F65:F79) -> 0 | G80: =IF(SUM(H65:H79)=0,0,H80/D80) -> 0 | H80: =SUM(H65:H79) -> 0
A82: Umsatzplanung 5. Geschäftsjahr
B83: Produkt | D83: Umsatz | E83: Wareneinsatz | G83: =G63 -> Rohertrag
B84: =$B$4 -> Preis / Einheit | C84: =C64 -> Menge / Jahr | E84: in % | F84: Wert | G84: in % | H84: Wert
A85: =A65 -> Dienstleistung / Produkt | B85: 0 | C85: 0 | D85: =B85*C85 -> 0 | E85: =E65 -> 0 | F85: =D85*E85 -> 0 | G85: =IF(B85=0,0,1-E85) -> 0 | H85: =D85-F85 -> 0
A86: Dienstleistung / Produkt | B86: =B66 -> 0 | C86: 0 | D86: 0 | E86: =E66 -> 0 | F86: 0 | G86: 0 | H86: 0
A87: Dienstleistung / Produkt | B87: =B67 -> 0 | C87: 0 | D87: 0 | E87: =E67 -> 0 | F87: 0 | G87: 0 | H87: 0
A88: Dienstleistung / Produkt | B88: =B68 -> 0 | C88: 0 | D88: 0 | E88: 0 | F88: 0 | G88: 0 | H88: 0
A89: Dienstleistung / Produkt | B89: =B69 -> 0 | C89: 0 | D89: 0 | E89: 0 | F89: 0 | G89: 0 | H89: 0
A90: Dienstleistung / Produkt | B90: =B70 -> 0 | C90: 0 | D90: =B90*C90 -> 0 | E90: 0 | F90: =D90*E90 -> 0 | G90: =IF(B90=0,0,1-E90) -> 0 | H90: =D90-F90 -> 0
A91: Dienstleistung / Produkt | B91: =B71 -> 0 | C91: 0 | D91: 0 | E91: 0 | F91: 0 | G91: 0 | H91: 0
A92: Dienstleistung / Produkt | B92: =B72 -> 0 | C92: 0 | D92: 0 | E92: 0 | F92: 0 | G92: 0 | H92: 0
A93: Dienstleistung / Produkt | B93: =B73 -> 0 | C93: 0 | D93: 0 | E93: 0 | F93: 0 | G93: 0 | H93: 0
A94: Dienstleistung / Produkt | B94: =B74 -> 0 | C94: 0 | D94: 0 | E94: 0 | F94: 0 | G94: 0 | H94: 0
A95: Dienstleistung / Produkt | B95: =B75 -> 0 | C95: 0 | D95: 0 | E95: 0 | F95: 0 | G95: 0 | H95: 0
A96: Dienstleistung / Produkt | B96: =B76 -> 0 | C96: 0 | D96: 0 | E96: 0 | F96: 0 | G96: 0 | H96: 0
A97: Dienstleistung / Produkt | B97: =B77 -> 0 | C97: 0 | D97: 0 | E97: 0 | F97: 0 | G97: 0 | H97: 0
A98: Dienstleistung / Produkt | B98: =B78 -> 0 | C98: 0 | D98: 0 | E98: 0 | F98: 0 | G98: 0 | H98: 0
A99: Dienstleistung / Produkt | B99: =B79 -> 0 | C99: 0 | D99: 0 | E99: 0 | F99: 0 | G99: 0 | H99: 0
A100: Summe | C100: =SUM(C85:C99) -> 0 | D100: =SUM(D85:D99) -> 0 | E100: =IF(SUM(F85:F99)=0,0,F100/D100) -> 0 | F100: =SUM(F85:F99) -> 0 | G100: =IF(SUM(H85:H99)=0,0,H100/D100) -> 0 | H100: =SUM(H85:H99) -> 0

Sheet 5. Personalkosten
A1: Branche | C1: Beginn Monat | H1: Januar | I1: 12 | J1: =INDEX(I1:I12,K1) -> 12 | K1: 1
B2: =J15 -> 14 | E2: =J1 -> 12 | H2: Februar | I2: 11
H3: März | I3: 10
A4: Personalkosten | H4: April | I4: 9
A5: Die Personalkosten werden direkt in die Tabelle "6. Erfolgsrechnung Jahr" übertragen. | H5: Mai | I5: 8
A6: Jahr 1 | H6: Juni | I6: 7
A7: Mitarbeiter/innen | B7: Nettolohn | C7: Lohnkosten-faktor | D7: Anzahl Gehälter im Jahr | E7: Lohn-kosten | H7: Juli | I7: 6
C8: =IF($B8<1200,2,IF(B8<1600,2.1,IF(B8>1600,2.2,2))) -> 2 | D8: =B$2/12*E$2 -> 14 | E8: =B8*C8*D8 -> 0 | H8: August | I8: 5
C9: =IF($B9<1200,2,IF(B9<1600,2.1,IF(B9>1600,2.2,2))) -> 2 | D9: 14 | E9: 0 | H9: September | I9: 4
C10: 2 | D10: 14 | E10: 0 | H10: Oktober | I10: 3
C11: 2 | D11: 14 | E11: 0 | H11: November | I11: 2
C12: 2 | D12: 14 | E12: 0 | H12: Dezember | I12: 1
C13: 2 | D13: 14 | E13: 0
C14: 2 | D14: 14 | E14: 0
C15: 2 | D15: 14 | E15: 0 | H15: Handel | I15: 14 | J15: =INDEX(I15:I18,K15) -> 14 | K15: 1
C16: 2 | D16: 14 | E16: 0 | H16: Handwerk | I16: 13
A17: Summe Personalkosten | E17: =SUM(E8:E16) -> 0 | H17: Gastronomie | I17: 14
H18: Dienstleistung | I18: 14
A19: Jahr 2
A20: Mitarbeiter/innen | B20: Nettolohn | C20: Lohnkosten-faktor | D20: =D7 -> Anzahl Gehälter im Jahr | E20: Lohn-kosten
A21: =IF(A8=0, " ",A8) ->  | B21: =B8 -> 0 | C21: =IF($B21<1200,2,IF(B21<1600,2.1,IF(B21>1600,2.2,2))) -> 2 | D21: =B$2 -> 14 | E21: =B21*C21*D21 -> 0
B22: =B9 -> 0 | C22: =IF($B22<1200,2,IF(B22<1600,2.1,IF(B22>1600,2.2,2))) -> 2 | D22: =B$2 -> 14 | E22: =B22*C22*D22 -> 0
B23: 0 | C23: 2 | D23: 14 | E23: 0
B24: 0 | C24: 2 | D24: 14 | E24: 0
B25: 0 | C25: 2 | D25: 14 | E25: 0
B26: 0 | C26: 2 | D26: 14 | E26: 0
B27: 0 | C27: 2 | D27: 14 | E27: 0
B28: 0 | C28: 2 | D28: 14 | E28: 0
B29: 0 | C29: 2 | D29: 14 | E29: 0
A30: Summe Personalkosten | E30: =SUM(E21:E29) -> 0
A32: Jahr 3
A33: Mitarbeiter/innen | B33: Nettolohn | C33: Lohnkosten-faktor | D33: Anzahl Gehälter im Jahr | E33: Lohn-kosten
A34: =IF(A21=0, " ",A21) ->  | B34: =B21 -> 0 | C34: =IF($B34<1200,2,IF(B34<1600,2.1,IF(B34>1600,2.2,2))) -> 2 | D34: =D21 -> 14 | E34: =B34*C34*D34 -> 0
A35: =IF(A22=0, " ",A22) ->  | B35: =B22 -> 0 | C35: =IF($B35<1200,2,IF(B35<1600,2.1,IF(B35>1600,2.2,2))) -> 2 | D35: 14 | E35: 0
B36: 0 | C36: 2 | D36: 14 | E36: 0
B37: 0 | C37: 2 | D37: 14 | E37: 0
B38: 0 | C38: 2 | D38: 14 | E38: 0
B39: 0 | C39: 2 | D39: 14 | E39: 0
B40: 0 | C40: 2 | D40: 14 | E40: 0
B41: 0 | C41: 2 | D41: 14 | E41: 0
B42: 0 | C42: 2 | D42: 14 | E42: 0
A43: Summe Personalkosten | E43: =SUM(E34:E42) -> 0
A45: Jahr 4
A46: Mitarbeiter/innen | B46: Nettolohn | C46: Lohnkosten-faktor | D46: Anzahl Gehälter im Jahr | E46: Lohn-kosten
A47: =IF(A34=0, " ",A34) ->  | B47: =B34 -> 0 | C47: =IF($B47<1200,2,IF(B47<1600,2.1,IF(B47>1600,2.2,2))) -> 2 | D47: =D34 -> 14 | E47: =B47*C47*D47 -> 0
A48: =IF(A35=0, " ",A35) ->  | B48: =B35 -> 0 | C48: =IF($B48<1200,2,IF(B48<1600,2.1,IF(B48>1600,2.2,2))) -> 2 | D48: =D35 -> 14 | E48: 0
B49: 0 | C49: 2 | D49: 14 | E49: 0
B50: 0 | C50: 2 | D50: 14 | E50: 0
B51: 0 | C51: 2 | D51: 14 | E51: 0
B52: 0 | C52: 2 | D52: 14 | E52: 0
B53: 0 | C53: 2 | D53: 14 | E53: 0
B54: 0 | C54: 2 | D54: 14 | E54: 0
B55: 0 | C55: 2 | D55: 14 | E55: 0
A56: Summe Personalkosten | E56: =SUM(E47:E55) -> 0
A58: Jahr 5
A59: Mitarbeiter/innen | B59: Nettolohn | C59: Lohnkosten-faktor | D59: Anzahl Gehälter im Jahr | E59: Lohn-kosten
A60: =IF(A47=0, " ",A47) ->  | B60: =B47 -> 0 | C60: =IF(B60<1200,2,IF(B60<1600,2.1,IF(B60>1600,2.2,2))) -> 2 | D60: =D47 -> 14 | E60: =B60*C60*D60 -> 0
A61: =IF(A48=0, " ",A48) ->  | B61: =B48 -> 0 | C61: =IF(B61<1200,2,IF(B61<1600,2.1,IF(B61>1600,2.2,2))) -> 2 | D61: =D48 -> 14 | E61: 0
B62: 0 | C62: 2 | D62: 14 | E62: 0
B63: 0 | C63: 2 | D63: 14 | E63: 0
B64: 0 | C64: 2 | D64: 14 | E64: 0
B65: 0 | C65: 2 | D65: 14 | E65: 0
B66: 0 | C66: 2 | D66: 14 | E66: 0
B67: 0 | C67: 2 | D67: 14 | E67: 0
B68: 0 | C68: 2 | D68: 14 | E68: 0
A69: Summe Personalkosten | E69: =SUM(E60:E68) -> 0

Sheet 6. Erfolgsrechnung Jahr
A1: Erfolgsrechnung und Rentabilitätsvorschau (Jahr)
A2: Die Werte "Umsatz" und "Wareneinsatz" werden aus der Tabelle "4. Umsatzplanung" übernommen.
A3: Beschreibung | C3: Jahr 1 | E3: Jahr 2 | G3: Jahr 3 | I3: Jahr 4 | K3: Jahr 5
A4: Umsatz | C4: ='4. Umsatzplanung'!D20 -> 0 | D4: 1 | E4: ='4. Umsatzplanung'!D40 -> 0 | F4: 1 | G4: ='4. Umsatzplanung'!D60 -> 0 | H4: 1 | I4: ='4. Umsatzplanung'!D80 -> 0 | J4: 1 | K4: ='4. Umsatzplanung'!D100 -> 0 | L4: 1
A5: - Wareneinsatz | C5: ='4. Umsatzplanung'!F20 -> 0 | D5: =IF(C4=0,0,C5/C4) -> 0 | E5: ='4. Umsatzplanung'!F40 -> 0 | F5: =IF(E4=0,0,E5/E4) -> 0 | G5: ='4. Umsatzplanung'!F60 -> 0 | H5: =IF(G4=0,0,G5/G4) -> 0 | I5: ='4. Umsatzplanung'!F80 -> 0 | J5: =IF(I4=0,0,I5/I4) -> 0 | K5: ='4. Umsatzplanung'!F100 -> 0 | L5: =IF(K4=0,0,K5/K4) -> 0
A6: = Rohertrag | C6: =C4-C5 -> 0 | D6: 1 | E6: 0 | F6: 1 | G6: 0 | H6: 1 | I6: 0 | J6: 1 | K6: 0 | L6: 1
A7: - Leistungen von Dritten | C7: =D7*C4 -> 0 | E7: =F7*E4 -> 0 | F7: =D7 -> 0 | G7: =H7*G4 -> 0 | H7: =F7 -> 0 | I7: =J7*I4 -> 0 | J7: =H7 -> 0 | K7: =L7*K4 -> 0 | L7: =J7 -> 0
A8: - Provisionen auf Umsatz | C8: =D8*C4 -> 0 | E8: =F8*E4 -> 0 | F8: =D8 -> 0 | G8: =H8*G4 -> 0 | H8: =F8 -> 0 | I8: =J8*I4 -> 0 | J8: =H8 -> 0 | K8: =L8*K4 -> 0 | L8: =J8 -> 0
A9: - Logistik, Transport, Verpackung | C9: =D9*C4 -> 0 | E9: =F9*E4 -> 0 | F9: 0 | G9: =H9*G4 -> 0 | H9: 0 | I9: =J9*I4 -> 0 | J9: 0 | K9: =L9*K4 -> 0 | L9: 0
A10: - sonstige variable Kosten | C10: =D10*C4 -> 0 | E10: =F10*E4 -> 0 | F10: 0 | G10: =H10*G4 -> 0 | H10: 0 | I10: =J10*I4 -> 0 | J10: 0 | K10: =L10*K4 -> 0 | L10: 0
A11: = Summe variable Kosten | C11: =SUM(C7:C10) -> 0 | D11: =IF($C$4=0,0,C11/$C$4) -> 0 | E11: =SUM(E7:E10) -> 0 | F11: =IF($E$4=0,0,E11/$E$4) -> 0 | G11: =SUM(G7:G10) -> 0 | H11: =IF($G$4=0,0,G11/$G$4) -> 0 | I11: =SUM(I7:I10) -> 0 | J11: =IF($I$4=0,0,I11/$I$4) -> 0 | K11: =SUM(K7:K10) -> 0 | L11: =IF($K$4=0,0,K11/$K$4) -> 0
A12: = variable Kosten inkl. Wareneinsatz | C12: =C11+C5 -> 0 | D12: =IF(C12=0,0,C12/C4) -> 0 | E12: =E11+E5 -> 0 | F12: =IF(E12=0,0,E12/E4) -> 0 | G12: =G11+G5 -> 0 | H12: =IF(G12=0,0,G12/G4) -> 0 | I12: =I11+I5 -> 0 | J12: =IF(I12=0,0,I12/I4) -> 0 | K12: =K11+K5 -> 0 | L12: =IF(K12=0,0,K12/K4) -> 0
A13: = Deckungsbeitrag | C13: =C4-C12 -> 0 | D13: =IF(C4=0,0,C13/C4) -> 0 | E13: =E4-E12 -> 0 | F13: =IF(E4=0,0,E13/E4) -> 0 | G13: =G4-G12 -> 0 | H13: =IF(G4=0,0,G13/G4) -> 0 | I13: =I4-I12 -> 0 | J13: =IF(I4=0,0,I13/I4) -> 0 | K13: =K4-K12 -> 0 | L13: =IF(K4=0,0,K13/K4) -> 0
A14: - Personalkosten | C14: ='5. Personalkosten'!E17 -> 0 | D14: =IF($C$4=0,0,C14/$C$4) -> 0 | E14: ='5. Personalkosten'!E30 -> 0 | F14: =IF($E$4=0,0,E14/$E$4) -> 0 | G14: ='5. Personalkosten'!E43 -> 0 | H14: =IF($G$4=0,0,G14/$G$4) -> 0 | I14: ='5. Personalkosten'!E56 -> 0 | J14: =IF($I$4=0,0,I14/$I$4) -> 0 | K14: ='5. Personalkosten'!E69 -> 0 | L14: =IF($K$4=0,0,K14/$K$4) -> 0
A15: - Unternehmerlohn | D15: =IF($C$4=0,0,C15/$C$4) -> 0 | E15: =C15 -> 0 | F15: =IF($E$4=0,0,E15/$E$4) -> 0 | G15: =E15 -> 0 | H15: =IF($G$4=0,0,G15/$G$4) -> 0 | I15: =G15 -> 0 | J15: =IF($I$4=0,0,I15/$I$4) -> 0 | K15: =I15 -> 0 | L15: =IF($K$4=0,0,K15/$K$4) -> 0
A16: - Roh-, Hilfs- und Betriebsstoffe | D16: 0 | E16: =C16 -> 0 | F16: 0 | G16: =E16 -> 0 | H16: 0 | I16: =G16 -> 0 | J16: 0 | K16: =I16 -> 0 | L16: 0
A17: - Kleininvestitionen | D17: 0 | E17: 0 | F17: 0 | G17: 0 | H17: 0 | I17: 0 | J17: 0 | K17: 0 | L17: 0
A18: - Energie/Wasser/Müllkosten | D18: 0 | E18: 0 | F18: 0 | G18: 0 | H18: 0 | I18: 0 | J18: 0 | K18: 0 | L18: 0
A19: - Reparatur und Instandhaltung | D19: 0 | E19: 0 | F19: 0 | G19: 0 | H19: 0 | I19: 0 | J19: 0 | K19: 0 | L19: 0
A20: - Fuhrparkkosten | D20: 0 | E20: 0 | F20: 0 | G20: 0 | H20: 0 | I20: 0 | J20: 0 | K20: 0 | L20: 0
A21: - Versicherungen | D21: 0 | E21: 0 | F21: 0 | G21: 0 | H21: 0 | I21: 0 | J21: 0 | K21: 0 | L21: 0
A22: - sonstige Betriebskosten | D22: 0 | E22: 0 | F22: 0 | G22: 0 | H22: 0 | I22: 0 | J22: 0 | K22: 0 | L22: 0
A23: - Büromaterial | D23: 0 | E23: 0 | F23: 0 | G23: 0 | H23: 0 | I23: 0 | J23: 0 | K23: 0 | L23: 0
A24: - Post/Telefon/Internet | D24: 0 | E24: 0 | F24: 0 | G24: 0 | H24: 0 | I24: 0 | J24: 0 | K24: 0 | L24: 0
A25: - Rechts- und Beratungskosten | C25: 12000 | D25: 0 | E25: 12000 | F25: 0 | G25: 12000 | H25: 0 | I25: 12000 | J25: 0 | K25: 12000 | L25: 0
A26: - Gebühren/Beiträge/Abgaben | D26: 0 | E26: 0 | F26: 0 | G26: 0 | H26: 0 | I26: 0 | J26: 0 | K26: 0 | L26: 0
A27: - sonstige Verwaltungskosten | D27: 0 | E27: 0 | F27: 0 | G27: 0 | H27: 0 | I27: 0 | J27: 0 | K27: 0 | L27: 0
A28: - Werbung/Messen/Public Relations | D28: 0 | E28: 0 | F28: 0 | G28: 0 | H28: 0 | I28: 0 | J28: 0 | K28: 0 | L28: 0
A29: - Weiterbildung | D29: 0 | E29: 0 | F29: 0 | G29: 0 | H29: 0 | I29: 0 | J29: 0 | K29: 0 | L29: 0
A30: - Reise- und Repräsentationsspesen | D30: 0 | E30: 0 | F30: 0 | G30: 0 | H30: 0 | I30: 0 | J30: 0 | K30: 0 | L30: 0
A31: - Leasing | D31: 0 | E31: 0 | F31: 0 | G31: 0 | H31: 0 | I31: 0 | J31: 0 | K31: 0 | L31: 0
A32: - Miete und Pacht | D32: 0 | E32: 0 | F32: 0 | G32: 0 | H32: 0 | I32: 0 | J32: 0 | K32: 0 | L32: 0
A33: - … | D33: 0 | E33: 0 | F33: 0 | G33: 0 | H33: 0 | I33: 0 | J33: 0 | K33: 0 | L33: 0
A34: - … | D34: 0 | E34: 0 | F34: 0 | G34: 0 | H34: 0 | I34: 0 | J34: 0 | K34: 0 | L34: 0
A35: - … | D35: 0 | E35: 0 | F35: 0 | G35: 0 | H35: 0 | I35: 0 | J35: 0 | K35: 0 | L35: 0
A36: - Abschreibung | C36: ='3. Investitionsplanung'!J45 -> 0 | D36: 0 | E36: ='3. Investitionsplanung'!K45 -> 0 | F36: 0 | G36: ='3. Investitionsplanung'!L45 -> 0 | H36: 0 | I36: ='3. Investitionsplanung'!M45 -> 0 | J36: 0 | K36: ='3. Investitionsplanung'!N45 -> 0 | L36: 0
A37: = Summe Fixkosten | C37: =SUM(C14:C36) -> 12000 | D37: =SUM(D15:D36) -> 0 | E37: =SUM(E14:E36) -> 12000 | F37: =SUM(F15:F36) -> 0 | G37: =SUM(G14:G36) -> 12000 | H37: =SUM(H15:H36) -> 0 | I37: =SUM(I14:I36) -> 12000 | J37: =SUM(J15:J36) -> 0 | K37: =SUM(K14:K36) -> 12000 | L37: =SUM(L15:L36) -> 0
A39: = Betriebsergebnis (EBIT) | C39: =C13-C37 -> -12000 | D39: =IF(C4=0,0,C39/C4) -> 0 | E39: =E13-E37 -> -12000 | F39: =IF(E4=0,0,E39/E4) -> 0 | G39: =G13-G37 -> -12000 | H39: =IF(G4=0,0,G39/G4) -> 0 | I39: =I13-I37 -> -12000 | J39: =IF(I4=0,0,I39/I4) -> 0 | K39: =K13-K37 -> -12000 | L39: =IF(K4=0,0,K39/K4) -> 0
A40: Zinsergebnis | C40: 5000 | D40: =IF(C4=0,0,C40/C4) -> 0 | E40: 4095.126009 | F40: =IF(E4=0,0,E40/E4) -> 0 | G40: 3145.008319 | H40: =IF(G4=0,0,G40/G4) -> 0 | I40: 2147.384745 | J40: =IF(I4=0,0,I40/I4) -> 0 | K40: 1099.879991 | L40: =IF(K4=0,0,K40/K4) -> 0
A41: + Habenzinsen | C41: ='7. Finanzplanung'!B5018 -> 0 | D41: =IF(C4=0,0,C41/C4) -> 0 | E41: ='7. Finanzplanung'!C5018 -> 0 | F41: =IF(E4=0,0,E41/E4) -> 0 | G41: ='7. Finanzplanung'!D5018 -> 0 | H41: =IF(G4=0,0,G41/G4) -> 0 | I41: ='7. Finanzplanung'!E5018 -> 0 | J41: =IF(I4=0,0,I41/I4) -> 0 | K41: ='7. Finanzplanung'!F5018 -> 0 | L41: =IF(K4=0,0,K41/K4) -> 0
A42: - Sollzinsen | C42: ='7. Finanzplanung'!B5019+'7. Finanzplanung'!B5020 -> 0 | D42: =IF(C4=0,0,C42/C4) -> 0 | E42: ='7. Finanzplanung'!C5019+'7. Finanzplanung'!C5020 -> 0 | F42: =IF(E4=0,0,E42/E4) -> 0 | G42: ='7. Finanzplanung'!D5019+'7. Finanzplanung'!D5020 -> 0 | H42: =IF(G4=0,0,G42/G4) -> 0 | I42: ='7. Finanzplanung'!E5019+'7. Finanzplanung'!E5020 -> 0 | J42: =IF(I4=0,0,I42/I4) -> 0 | K42: ='7. Finanzplanung'!F5019+'7. Finanzplanung'!F5020 -> 0 | L42: =IF(K4=0,0,K42/K4) -> 0
A43: = Ergebnis vor Steuern | C43: =C39-C40 -> -17000 | D43: =IF(C4=0,0,C43/C4) -> 0 | E43: =E39-E40 -> -16095.12601 | F43: =IF(E4=0,0,E43/E4) -> 0 | G43: =G39-G40 -> -15145.00832 | H43: =IF(G4=0,0,G43/G4) -> 0 | I43: =I39-I40 -> -14147.38474 | J43: =IF(I4=0,0,I43/I4) -> 0 | K43: =K39-K40 -> -13099.87999 | L43: =IF(K4=0,0,K43/K4) -> 0
A44: - Steuern (pauschal) | C44: =IF(OR('1. Geschäftsidee '!$K$3=1, '1. Geschäftsidee '!$K$3=7),'6. Erfolgsrechnung Jahr'!J199,J243) -> 0 | D44: =IF(C4=0,0,C44/C4) -> 0 | E44: =IF(OR('1. Geschäftsidee '!$K$3=1, '1. Geschäftsidee '!$K$3=7),'6. Erfolgsrechnung Jahr'!M199,M243) -> 0 | F44: =IF(E4=0,0,E44/E4) -> 0 | G44: =IF(OR('1. Geschäftsidee '!$K$3=1, '1. Geschäftsidee '!$K$3=7),'6. Erfolgsrechnung Jahr'!P199,P243) -> 0 | H44: =IF(G4=0,0,G44/G4) -> 0 | I44: =IF(OR('1. Geschäftsidee '!$K$3=1, '1. Geschäftsidee '!$K$3=7),'6. Erfolgsrechnung Jahr'!S199,S243) -> 0 | J44: =IF(I4=0,0,I44/I4) -> 0 | K44: =IF(OR('1. Geschäftsidee '!$K$3=1, '1. Geschäftsidee '!$K$3=7),'6. Erfolgsrechnung Jahr'!V199,V243) -> 0 | L44: =IF(K4=0,0,K44/K4) -> 0
A45: = Ergebnis nach Steuern | C45: =C43-C44 -> -17000 | D45: =IF(C4=0,0,C45/C4) -> 0 | E45: =E43-E44 -> -16095.12601 | F45: =IF(E4=0,0,E45/E4) -> 0 | G45: =G43-G44 -> -15145.00832 | H45: =IF(G4=0,0,G45/G4) -> 0 | I45: =I43-I44 -> -14147.38474 | J45: =IF(I4=0,0,I45/I4) -> 0 | K45: =K43-K44 -> -13099.87999 | L45: =IF(K4=0,0,K45/K4) -> 0
A47: Brutto Cash Flow (vereinfacht) (EBITDA) | C47: =C45+C36 -> -17000 | D47: =IF(C4=0,0,C47/C4) -> 0 | E47: =E45+E36 -> -16095.12601 | F47: =IF(E4=0,0,E47/E4) -> 0 | G47: =G45+G36 -> -15145.00832 | H47: =IF(G4=0,0,G47/G4) -> 0 | I47: =I45+I36 -> -14147.38474 | J47: =IF(I4=0,0,I47/I4) -> 0 | K47: =K45+K36 -> -13099.87999 | L47: =IF(K4=0,0,K47/K4) -> 0
A49: Brutto Cash Flow (exklusive Zinsen) | C49: =C47-C40 -> -22000 | D49: =IF(C4=0,0,C49/C4) -> 0 | E49: =E47-E40 -> -20190.25202 | F49: =IF(E4=0,0,E49/E4) -> 0 | G49: =G47-G40 -> -18290.01664 | H49: =IF(G4=0,0,G49/G4) -> 0 | I49: =I47-I40 -> -16294.76949 | J49: =IF(I4=0,0,I49/I4) -> 0 | K49: =K47-K40 -> -14199.75998 | L49: =IF(K4=0,0,K49/K4) -> 0
A50: Break Even Point (BEP) | C50: =IF(C4=0,"-",C37/D13) -> - | D50: =IF(C4=0,0,C50/C4) -> 0 | E50: =IF(E4=0,"-",E37/F13) -> - | F50: =IF(E4=0,0,E50/E4) -> 0 | G50: =IF(G4=0,"-",G37/H13) -> - | H50: =IF(G4=0,0,G50/G4) -> 0 | I50: =IF(I4=0,"-",I37/J13) -> - | J50: =IF(I4=0,0,I50/I4) -> 0 | K50: =IF(K4=0,"-",K37/L13) -> - | L50: =IF(K4=0,0,K50/K4) -> 0
A51: BEP nach Finanzergebnis | C51: =IF(C4=0,"-",(C37-C43)/D13) -> - | D51: =IF(C5=0,0,C51/C5) -> 0 | E51: =IF(E4=0,"-",(E37-E43)/F13) -> - | F51: =IF(E5=0,0,E51/E5) -> 0 | G51: =IF(G4=0,"-",(G37-G43)/H13) -> - | H51: =IF(G5=0,0,G51/G5) -> 0 | I51: =IF(I4=0,"-",(I37-I43)/J13) -> - | J51: =IF(I5=0,0,I51/I5) -> 0 | K51: =IF(K4=0,"-",(K37-K43)/L13) -> - | L51: =IF(K5=0,0,K51/K5) -> 0
A54: Simulation | C54: Veränderung in %
A55: Umsatz
A56: Wareneinsatz
A59: Umsatz | C59: =C4+C4*$C$55 -> 0 | D59: =D4 -> 1 | E59: =E4+E4*$E$55 -> 0 | F59: =F4 -> 1 | G59: =G4+G4*$G$55 -> 0 | H59: =H4 -> 1 | I59: =I4+I4*$I$55 -> 0 | J59: =J4 -> 1 | K59: =K4+K4*$K$55 -> 0 | L59: =L4 -> 1
A60: Wareneinsatz | C60: =C5+C5*$C$56 -> 0 | D60: =IF(C59=0,0,C60/$C$59) -> 0 | E60: =E5+E5*$E$56 -> 0 | F60: =IF($E$59=0,0,E60/$E$59) -> 0 | G60: =G5+G5*$G$56 -> 0 | H60: =IF($G$59=0,0,G60/$G$59) -> 0 | I60: =I5+I5*$I$56 -> 0 | J60: =IF($I$59=0,0,I60/$I$59) -> 0 | K60: =K5+K5*$I$56 -> 0 | L60: =IF($K$59=0,0,K60/$K$59) -> 0
A61: Variable Kosten | C61: =C11+C11*C55 -> 0 | D61: =IF(C61=0,0,C61/$C$59) -> 0 | E61: =E11+E11*E55 -> 0 | F61: =IF($E$59=0,0,E61/$E$59) -> 0 | G61: =G11+G11*G55 -> 0 | H61: =IF($G$59=0,0,G61/$G$59) -> 0 | I61: =I11+I11*I55 -> 0 | J61: =IF($I$59=0,0,I61/$I$59) -> 0 | K61: =K11+K11*K55 -> 0 | L61: =IF($K$59=0,0,K61/$K$59) -> 0
A62: Fixe Kosten | C62: =C37 -> 12000 | D62: =IF(C62=0,0,C62/$C$59) ->  | E62: =E37 -> 12000 | F62: =IF($E$59=0,0,E62/$E$59) -> 0 | G62: =G37 -> 12000 | H62: =IF($G$59=0,0,G62/$G$59) -> 0 | I62: =I37 -> 12000 | J62: =IF($I$59=0,0,I62/$I$59) -> 0 | K62: =K37 -> 12000 | L62: =IF($K$59=0,0,K62/$K$59) -> 0
A63: Brutto Cash Flow (vereinfacht) (EBITDA) | C63: =C64+C36 -> -12000 | D63: =IF(C63=0,0,C63/$C$59) ->  | E63: =E64+E36 -> -12000 | F63: =IF($E$59=0,0,E63/$E$59) -> 0 | G63: =G64+G36 -> -12000 | H63: =IF($G$59=0,0,G63/$G$59) -> 0 | I63: =I64+I36 -> -12000 | J63: =IF($I$59=0,0,I63/$I$59) -> 0 | K63: =K64+K36 -> -12000 | L63: =IF($K$59=0,0,K63/$K$59) -> 0
A64: Betriebsergebnis (EBIT) | C64: =C59-C60-C61-C62 -> -12000 | D64: =IF(C64=0,0,C64/$C$59) ->  | E64: =E59-E60-E61-E62 -> -12000 | F64: =IF($E$59=0,0,E64/$E$59) -> 0 | G64: =G59-G60-G61-G62 -> -12000 | H64: =IF($G$59=0,0,G64/$G$59) -> 0 | I64: =I59-I60-I61-I62 -> -12000 | J64: =IF($I$59=0,0,I64/$I$59) -> 0 | K64: =K59-K60-K61-K62 -> -12000 | L64: =IF($K$59=0,0,K64/$K$59) -> 0
A102: Berechnung
A103: Bei Einzelunternehmen | E103: 1
C105: Steuersätze IRPEF inklusive "addizionale regionale" aber ohne "addizionale comunale"
C106: Versteuerbares Einkommen von Euro | E106: bis Euro | F106: Differenzbetrag | H106: Steuersatz | I106: max. IRPEF Euro
C107: 0 | E107: 15000 | G107: =+E107-C107 -> 15000 | H107: 0.23 | I107: =G107*H107 -> 3450
C108: =E107 -> 15000 | E108: 28000 | G108: =+E108-C108 -> 13000 | H108: 0.25 | I108: =G108*H108 -> 3250
C109: =E108 -> 28000 | E109: 50000 | G109: =+E109-C109 -> 22000 | H109: 0.35 | I109: =G109*H109 -> 7700
C110: =E109 -> 50000 | E110: 50000 | G110: 50000 | I110: =G110*H110 -> 0
C111: =E110 -> 50000 | E111: unendlich | H111: 0.43 | I111: =G111*H111 -> 0
A114: Berechnung IRPEF auf Jahresergebnis
C115: Ergebnis | D115: IRPEF | E115: Ergebnis | F115: IRPEF | G115: Ergebnis | H115: IRPEF | I115: Ergebnis | J115: IRPEF | K115: Ergebnis | L115: IRPEF
C116: =+C43 -> -17000 | D116: =SUM(D117:D122) -> 0 | E116: =+E43 -> -16095.12601 | F116: =SUM(F117:F122) -> 0 | G116: =+G43 -> -15145.00832 | H116: =SUM(H117:H122) -> 0 | I116: =+I43 -> -14147.38474 | J116: =SUM(J117:J122) -> 0 | K116: =+K43 -> -13099.87999 | L116: =SUM(L117:L122) -> 0
A117: 0 | C117: =IF(C116<=0,C116,0) -> -17000 | D117: =$A117*C117 -> 0 | E117: =IF(E116<=0,E116,0) -> -16095.12601 | F117: =$A117*E117 -> 0 | G117: =IF(G116<=0,G116,0) -> -15145.00832 | H117: =$A117*G117 -> 0 | I117: =IF(I116<=0,I116,0) -> -14147.38474 | J117: =$A117*I117 -> 0 | K117: =IF(K116<=0,K116,0) -> -13099.87999 | L117: =$A117*K117 -> 0
A118: =H107 -> 0.23 | C118: =IF(C116<=0,0,IF(C116<$E107,C116,$E107)) -> 0 | D118: 0 | E118: =IF(E116<=0,0,IF(E116<$E107,E116,$E107)) -> 0 | F118: 0 | G118: =IF(G116<=0,0,IF(G116<$E107,G116,$E107)) -> 0 | H118: 0 | I118: =IF(I116<=0,0,IF(I116<$E107,I116,$E107)) -> 0 | J118: 0 | K118: =IF(K116<=0,0,IF(K116<$E107,K116,$E107)) -> 0 | L118: 0
A119: =H108 -> 0.25 | C119: =IF(C116<=0,0,IF(C116<$E108,C116-C118,$G108)) -> 0 | D119: 0 | E119: =IF(E116<=0,0,IF(E116<$E108,E116-E118,$G108)) -> 0 | F119: 0 | G119: =IF(G116<=0,0,IF(G116<$E108,G116-G118,$G108)) -> 0 | H119: 0 | I119: =IF(I116<=0,0,IF(I116<$E108,I116-I118,$G108)) -> 0 | J119: 0 | K119: =IF(K116<=0,0,IF(K116<$E108,K116-K118,$G108)) -> 0 | L119: 0
A120: =H109 -> 0.35 | C120: =IF(C116<=0,0,IF(C116<$E109,C116-SUM(C118:C119),$G109)) -> 0 | D120: 0 | E120: =IF(E116<=0,0,IF(E116<$E109,E116-SUM(E118:E119),$G109)) -> 0 | F120: 0 | G120: =IF(G116<=0,0,IF(G116<$E109,G116-SUM(G118:G119),$G109)) -> 0 | H120: 0 | I120: =IF(I116<=0,0,IF(I116<$E109,I116-SUM(I118:I119),$G109)) -> 0 | J120: 0 | K120: =IF(K116<=0,0,IF(K116<$E109,K116-SUM(K118:K119),$G109)) -> 0 | L120: 0
A121: =H110 -> 0 | C121: =IF(F121<=0,0,IF(F121>F116,F121-SUM(F122:F125),0)) -> 0 | D121: 0 | F121: 0 | H121: 0 | J121: 0 | L121: 0
A122: =H111 -> 0.43 | C122: =IF(C116<=0,0,IF(C116>C111,C116-SUM(C117:C121),0)) -> 0 | D122: 0 | E122: =IF(E116<=0,0,IF(E116>G111,E116-SUM(E117:E121),0)) -> 0 | F122: 0 | G122: =IF(G116<=0,0,IF(G116>G111,G116-SUM(G117:G121),0)) -> 0 | H122: 0 | I122: =IF(I116<=0,0,IF(I116>I111,I116-SUM(I117:I121),0)) -> 0 | J122: 0 | K122: =IF(K116<=0,0,IF(K116>I111,K116-SUM(K117:K121),0)) -> 0 | L122: 0
A124: Berechnung IRAP
A125: Steuergrundlage | D125: =SUM(C14,C15,C39) -> -12000 | F125: =SUM(E14,E15,E39) -> -12000 | H125: =SUM(G14,G15,G39) -> -12000 | J125: =SUM(I14,I15,I39) -> -12000 | L125: =SUM(K14,K15,K39) -> -12000
A126: Steuersatz | D126: 0.0298 | F126: =D126 -> 0.0298 | H126: =F126 -> 0.0298 | J126: =H126 -> 0.0298 | L126: =J126 -> 0.0298
A127: Betrag IRAP | D127: =D125*D126 -> -357.6 | F127: =F125*F126 -> -357.6 | H127: =H125*H126 -> -357.6 | J127: =J125*J126 -> -357.6 | L127: =L125*L126 -> -357.6
A128: Summe Steuern auf Einkommen und Ertrag
D129: =D116+D127 -> -357.6 | F129: =F116+F127 -> -357.6 | H129: =H116+H127 -> -357.6 | J129: =J116+J127 -> -357.6 | L129: =L116+L127 -> -357.6
A133: Berechnung bei Kapitalgesellschaften | E133: 2
C134: Grundlage
A135: IRAP | B135: 0.039 | C135: =C14+C15+C39 -> -12000 | D135: =$B135*C135 -> -468 | E135: =E14+E15+E39 -> -12000 | F135: =$B135*E135 -> -468 | G135: =G14+G15+G39 -> -12000 | H135: =$B135*G135 -> -468 | I135: =I14+I15+I39 -> -12000 | J135: =$B135*I135 -> -468 | K135: =K14+K15+K39 -> -12000 | L135: =$B135*K135 -> -468
A136: IRES | B136: 0.24 | C136: =C43 -> -17000 | D136: =C136*$B136 -> -4080 | E136: =E43 -> -16095.12601 | F136: =E136*$B136 -> -3862.830242 | G136: =G43 -> -15145.00832 | H136: =G136*$B136 -> -3634.801997 | I136: =I43 -> -14147.38474 | J136: =I136*$B136 -> -3395.372339 | K136: =K43 -> -13099.87999 | L136: =K136*$B136 -> -3143.971198
D137: =SUM(D135:D136) -> -4548 | F137: =SUM(F135:F136) -> -4330.830242 | H137: =SUM(H135:H136) -> -4102.801997 | J137: =SUM(J135:J136) -> -3863.372339 | L137: =SUM(L135:L136) -> -3611.971198
A138: Bei Personengesellschaft | D138: 3
C140: Steuersätze IRPEF inklusive "addizionale regionale" aber ohne "addizionale comunale"
C141: Versteuerbares Einkommen von Euro | E141: bis Euro | F141: Differenzbetrag | H141: Steuersatz | I141: max. IRPEF Euro
C142: 0 | E142: 15000 | G142: =+E142-C142 -> 15000 | H142: 0.23 | I142: =G142*H142 -> 3450
C143: =E142 -> 15000 | E143: 28000 | G143: =+E143-C143 -> 13000 | H143: 0.25 | I143: =G143*H143 -> 3250
C144: =E143 -> 28000 | E144: 50000 | G144: =+E144-C144 -> 22000 | H144: 0.35 | I144: =G144*H144 -> 7700
C145: 50000 | E145: unendlich | H145: 0.43 | I145: =G145*H145 -> 0
A148: Berechnung IRPEF auf Jahresergebnis
C149: Ergebnis | D149: IRPEF | E149: Ergebnis | F149: IRPEF | G149: Ergebnis | H149: IRPEF | I149: Ergebnis | J149: IRPEF | K149: Ergebnis | L149: IRPEF
C150: =C43 -> -17000 | D150: =SUM(D151:D155) -> 0 | E150: =E43 -> -16095.12601 | F150: =SUM(F151:F155) -> 0 | G150: =G43 -> -15145.00832 | H150: =SUM(H151:H155) -> 0 | I150: =I39 -> -12000 | J150: =SUM(J151:J155) -> 0 | K150: =K43 -> -13099.87999 | L150: =SUM(L151:L155) -> 0
A151: 0 | C151: 0 | D151: =A151*C151 -> 0 | E151: =IF(E150<=0,E150,0) -> -16095.12601 | F151: =$A151*E151 -> 0 | G151: =IF(G150<=0,G150,0) -> -15145.00832 | H151: =A151*G151 -> 0 | I151: =IF(I150<=0,I150,0) -> -12000 | J151: =I151*A151 -> 0 | K151: =IF(K150<=0,K150,0) -> -13099.87999 | L151: =A151*K151 -> 0
A152: =H142 -> 0.23 | C152: =IF(C150<=0,0,IF(C150<$G142,C150,$G142)) -> 0 | D152: =A152*C152 -> 0 | E152: =IF(E150<=0,0,IF(E150<$G142,E150,$G142)) -> 0 | F152: =$A152*E152 -> 0 | G152: =IF(G150<=0,0,IF(G150<$G142,G150,$G142)) -> 0 | H152: =A152*G152 -> 0 | I152: =IF(I150<=0,0,IF(I150<$G142,I150,$G142)) -> 0 | J152: =I152*A152 -> 0 | K152: =IF(K150<=0,0,IF(K150<$G142,K150,$G142)) -> 0 | L152: =A152*K152 -> 0
A153: =H143 -> 0.25 | C153: =IF(C150<=0,0,IF(C150<$E143,C150-C152,$G143)) -> 0 | D153: 0 | E153: =IF(E150<=0,0,IF(E150<$E143,E150-E152,$G143)) -> 0 | F153: 0 | G153: =IF(G150<=0,0,IF(G150<$E143,G150-G152,$G143)) -> 0 | H153: 0 | I153: =IF(I150<=0,0,IF(I150<$E143,I150-I152,$G143)) -> 0 | J153: 0 | K153: =IF(K150<=0,0,IF(K150<$E143,K150-K152,$G143)) -> 0 | L153: 0
A154: =H144 -> 0.35 | C154: =IF(C150<=0,0,IF(C150<$E144,C150-SUM(C152:C153),$G144)) -> 0 | D154: 0 | E154: =IF(E150<=0,0,IF(E150<$E144,E150-SUM(E152:E153),$G144)) -> 0 | F154: 0 | G154: =IF(G150<=0,0,IF(G150<$E144,G150-SUM(G152:G153),$G144)) -> 0 | H154: 0 | I154: =IF(I150<=0,0,IF(I150<$E144,I150-SUM(I152:I153),$G144)) -> 0 | J154: 0 | K154: =IF(K150<=0,0,IF(K150<$E144,K150-SUM(K152:K153),$G144)) -> 0 | L154: 0
A155: =H145 -> 0.43 | C155: =IF(C150<=0,0,IF(C150>C145,C150-SUM(C151:C154),0)) -> 0 | D155: 0 | E155: =IF(E150<=0,0,IF(E150>G145,E150-SUM(E151:E154),0)) -> 0 | F155: 0 | G155: =IF(G150<=0,0,IF(G150>I145,G150-SUM(G151:G154),0)) -> 0 | H155: 0 | I155: =IF(I150<=0,0,IF(I150>K145,I150-SUM(I151:I154),0)) -> 0 | J155: 0 | K155: =IF(K150<=0,0,IF(K150>M143,K150-SUM(K151:K154),0)) -> 0 | L155: 0
A157: Berechnung IRAP
A158: Steuergrundlage | D158: =C39 -> -12000 | F158: =E39 -> -12000 | H158: =G39 -> -12000 | J158: =I39 -> -12000 | L158: =K39 -> -12000
A159: Steuersatz | D159: 0.039 | F159: 0.039 | H159: 0.039 | J159: 0.039 | L159: 0.039
A160: Betrag IRAP | D160: =D158*D159 -> -468 | F160: =F158*F159 -> -468 | H160: =H158*H159 -> -468 | J160: =J158*J159 -> -468 | L160: =L158*L159 -> -468
A162: Summe Steuern | D162: =D150+D160 -> -468 | F162: =F150+F160 -> -468 | H162: =H150+H160 -> -468 | J162: =J150+J160 -> -468 | L162: =L150+L160 -> -468
A164: - Steuern (pauschal / Maximalwert) | C164: =IF('1. Geschäftsidee '!$L$3=1,D$129,IF('1. Geschäftsidee '!$L$3=3,'6. Erfolgsrechnung Jahr'!$D$162,D$137)) -> -357.6 | D164: =IF(C102=0,0,C164/C102) -> 0 | E164: =IF('1. Geschäftsidee '!$L$3=1,F$129,IF('1. Geschäftsidee '!$L$3=3,'6. Erfolgsrechnung Jahr'!$F$162,F$137)) -> -357.6 | F164: =IF(E102=0,0,E164/E102) -> 0 | G164: =IF('1. Geschäftsidee '!$L$3=1,H$129,IF('1. Geschäftsidee '!$L$3=3,'6. Erfolgsrechnung Jahr'!$H$162,H$137)) -> -357.6 | H164: =IF(G102=0,0,G164/G102) -> 0 | I164: =IF('1. Geschäftsidee '!$L$3=1,J$129,IF('1. Geschäftsidee '!$L$3=3,'6. Erfolgsrechnung Jahr'!$J$162,J$137)) -> -357.6 | J164: =IF(I102=0,0,I164/I102) -> 0 | K164: =IF('1. Geschäftsidee '!$L$3=1,L$129,IF('1. Geschäftsidee '!$L$3=3,'6. Erfolgsrechnung Jahr'!$L$162,L$137)) -> -357.6 | L164: =IF(K102=0,0,K164/K102) -> 0
G167: Steuerberechnung bei Einzelunternehmen und Personengesellschaften
J169: Steuersätze IRPEF inklusive "addizionale regionale" aber ohne "addizionale comunale"
J171: Versteuerbares Einkommen von (in Euro) | N171: bis (in Euro) | P171: Differenzbetrag | R171: Steuersatz | T171: max. IPREF in EUR
M172: 0 | O172: 15000 | P172: =O172-M172 -> 15000 | R172: 0.23 | T172: =R172*P172 -> 3450
M173: 15000 | O173: 28000 | P173: =O173-M173 -> 13000 | R173: 0.25 | T173: =R173*P173 -> 3250
M174: 28000 | O174: 50000 | P174: 22000 | R174: 0.35 | T174: 7700
M175: 50000 | O175: Kein Limit | R175: 0.43 | T175: Kein Limit
G177: Berechnung IPREF auf Jahreseregbnis
I179: =CONCATENATE("Jahresergebnis ",'1. Geschäftsidee '!$B$7) -> Jahresergebnis | L179: =CONCATENATE("Jahresergebnis ",'1. Geschäftsidee '!$B$7+1) -> Jahresergebnis 1 | O179: =CONCATENATE("Jahresergebnis ",'1. Geschäftsidee '!$B$7+2) -> Jahresergebnis 2 | R179: =CONCATENATE("Jahresergebnis ",'1. Geschäftsidee '!$B$7+3) -> Jahresergebnis 3 | U179: =CONCATENATE("Jahresergebnis ",'1. Geschäftsidee '!$B$7+4) -> Jahresergebnis 4
I180: =C43 -> -17000 | L180: =E43 -> -16095.12601 | O180: =G43 -> -15145.00832 | R180: =I43 -> -14147.38474 | U180: =K43 -> -13099.87999
H182: =R172 -> 0.23 | J182: =IF(I$180<=0,0,IF(I$180>=$O172,$P172*$H182,$I180*$H182)) -> 0 | M182: =IF(L$180<=0,0,IF(L$180>=$M172,$O172*$H182,L180*$H182)) -> 0 | P182: =IF(O$180<=0,0,IF(O$180>=$M172,$O172*$H182,O180*$H182)) -> 0 | S182: =IF(R$180<=0,0,IF(R$180>=$M172,$O172*$H182,R180*$H182)) -> 0 | V182: =IF(U$180<=0,0,IF(U$180>=$M172,$O172*$H182,U180*$H182)) -> 0
H183: =R173 -> 0.25 | J183: =IF(J182=0,0,IF(J182=$T172,IF(I$180<$O173,(I$180-$P172)*$H183,$T173), 0)) -> 0 | M183: =IF(M182=0,0,IF(M182=$T172,IF(L$180<$O173,(L$180-$P172)*$H183,$T173), 0)) -> 0 | P183: =IF(P182=0,0,IF(P182=$T172,IF(O$180<$O173,(O$180-$P172)*$H183,$T173), 0)) -> 0 | S183: =IF(S182=0,0,IF(S182=$T172,IF(R$180<$O173,(R$180-$P172)*$H183,$T173), 0)) -> 0 | V183: =IF(V182=0,0,IF(V182=$T172,IF(U$180<$O173,(U$180-$P172)*$H183,$T173), 0)) -> 0
H184: =R174 -> 0.35 | J184: =IF(J183=0,0,IF(J183=$T173,IF(I$180<$O174,(I$180-$P173-$P172)*$H184,$T174), 0)) -> 0 | M184: =IF(M183=0,0,IF(M183=$T173,IF(L$180<$O174,(L$180-$P173-$P172)*$H184,$T174), 0)) -> 0 | P184: =IF(P183=0,0,IF(P183=$T173,IF(O$180<$O174,(O$180-$P173-$P172)*$H184,$T174), 0)) -> 0 | S184: =IF(S183=0,0,IF(S183=$T173,IF(R$180<$O174,(R$180-$P173-$P172)*$H184,$T174), 0)) -> 0 | V184: =IF(V183=0,0,IF(V183=$T173,IF(U$180<$O174,(U$180-$P173-$P172)*$H184,$T174), 0)) -> 0
H185: =R175 -> 0.43 | J185: =IF(J184=0,0,IF(J184=$T174,(I180-SUM($P172:$Q174))*$H185,0)) -> 0 | M185: =IF(M184=0,0,IF(M184=$T174,(L180-SUM($P172:$Q174))*$H185,0)) -> 0 | P185: =IF(P184=0,0,IF(P184=$T174,(O180-SUM($P172:$Q174))*$H185,0)) -> 0 | S185: =IF(S184=0,0,IF(S184=$T174,(R180-SUM($P172:$Q174))*$H185,0)) -> 0 | V185: =IF(V184=0,0,IF(V184=$T174,(U180-SUM($P172:$Q174))*$H185,0)) -> 0
G186: TOT IPREF | J186: =SUM(J182:J185) -> 0 | M186: =SUM(M182:M185) -> 0 | P186: =SUM(P182:P185) -> 0 | S186: =SUM(S182:S185) -> 0 | V186: =SUM(V182:V185) -> 0
G188: Berechnung IRAP auf Steuergrundlage
I190: ='1. Geschäftsidee '!$B$7 -> 0 | L190: ='1. Geschäftsidee '!$B$7+1 -> 1 | O190: ='1. Geschäftsidee '!$B$7+2 -> 2 | R190: ='1. Geschäftsidee '!$B$7+3 -> 3 | U190: ='1. Geschäftsidee '!$B$7+4 -> 4
G192: Steuergrundlage | J192: =C39 -> -12000 | M192: =E39 -> -12000 | P192: =G39 -> -12000 | S192: =I39 -> -12000 | V192: =K39 -> -12000
G194: Steuersatz | J194: =IF('1. Geschäftsidee '!$K$3=1,0,3.9%) -> 0 | M194: =IF('1. Geschäftsidee '!$K$3=1,0,3.9%) -> 0 | P194: =IF('1. Geschäftsidee '!$K$3=1,0,3.9%) -> 0 | S194: =IF('1. Geschäftsidee '!$K$3=1,0,3.9%) -> 0 | V194: =IF('1. Geschäftsidee '!$K$3=1,0,3.9%) -> 0
G196: Betrag IRAP | J196: =IF(J194*J192<0, 0, J194*J192) -> 0 | M196: =IF(M194*M192<0, 0, M194*M192) -> 0 | P196: =IF(P194*P192<0, 0, P194*P192) -> 0 | S196: =IF(S194*S192<0, 0, S194*S192) -> 0 | V196: =IF(V194*V192<0, 0, V194*V192) -> 0
G199: SUMME Gesamt Steuer | J199: =J196+J186 -> 0 | M199: =M196+M186 -> 0 | P199: =P196+P186 -> 0 | S199: =S196+S186 -> 0 | V199: =V196+V186 -> 0
A210: Betriebsergebnisrechnung
A211: Bezeichnung | C211: TSD EUR | D211: % v .Umsatz | F211: gesamt | G211: pagatorisch | H211: Formel
A212: Betriebsleistung | C212: =INDEX(BEP,5,$B$5038) -> 0 | D212: =IF(C212=0,0,C212/$C$212) -> 0 | F212: BE - Leistung in Tsd. Euro | H212: Fixkosten/
A213: - variable Kosten | C213: =INDEX(BEP,4,$B$5038) -> 0 | D213: 0 | F213: =IF(D214=0,0,C217/D214) -> 0 | G213: =IF(D214=0,0,C217/D214) -> 0 | H213: DB in %
A214: Deckungsbeitrag | C214: =C212-C213 -> 0 | D214: 0 | F214: Sicherheitsstrecke in Tsd. Euro | H214: IST-Umsatz-
A215: bare Strukturkosten + Zinsen | C215: =C217 -> 12000 | F215: =C212-F213 -> 0 | G215: =C212-G213 -> 0 | H215: BE-Leistg.
A216: nicht bare Kosten | C216: =C217 -> 12000 | F216: Sicherheitskoeffizient in % | H216: Sich.strecke /
A217: Summe Strukturkosten | C217: =INDEX(BEP,3,$B$5038) -> 12000 | F217: =IF(C212=0,0,F215/C212) -> 0 | G217: =IF(C212=0,0,G215/C212) -> 0 | H217: IST-Leistg.
A218: operatives Bruttoergebnis | C218: =INDEX(BEP,6,$B$5038) -> -17000
G219: Steuerberechnung bei Kapitalgesellschaften
G221: Berechnung IRES auf Jahreseregbnis
I223: ='1. Geschäftsidee '!$B$7 -> 0 | L223: ='1. Geschäftsidee '!$B$7+1 -> 1 | O223: ='1. Geschäftsidee '!$B$7+2 -> 2 | R223: ='1. Geschäftsidee '!$B$7+3 -> 3 | U223: ='1. Geschäftsidee '!$B$7+4 -> 4
G225: Jahresergebnis | J225: =I180 -> -17000 | M225: =L180 -> -16095.12601 | P225: =O180 -> -15145.00832 | S225: =R180 -> -14147.38474 | V225: =U180 -> -13099.87999
G227: Steuersatz | J227: 0.24 | M227: 0.24 | P227: 0.24 | S227: 0.24 | V227: 0.24
G229: TOT IRES | J229: =IF(J225<0,0,J227*J225) -> 0 | M229: =IF(M225<0,0,M227*M225) -> 0 | P229: =IF(P225<0,0,P227*P225) -> 0 | S229: =IF(S225<0,0,S227*S225) -> 0 | V229: =IF(V225<0,0,V227*V225) -> 0
G232: Berechnung IRAP auf Steuergrundlage
I234: ='1. Geschäftsidee '!$B$7 -> 0 | L234: ='1. Geschäftsidee '!$B$7+1 -> 1 | O234: ='1. Geschäftsidee '!$B$7+2 -> 2 | R234: ='1. Geschäftsidee '!$B$7+3 -> 3 | U234: ='1. Geschäftsidee '!$B$7+4 -> 4
G236: Steuergrundlage | J236: =J192 -> -12000 | M236: =M192 -> -12000 | P236: =P192 -> -12000 | S236: =S192 -> -12000 | V236: =V192 -> -12000
G238: Steuersatz | J238: =IF('[1]1. Unternehmensbeschreibung'!$C$69=1,0,3.9%) -> 0 | M238: =IF('[1]1. Unternehmensbeschreibung'!$C$69=1,0,3.9%) -> 0 | P238: =IF('[1]1. Unternehmensbeschreibung'!$C$69=1,0,3.9%) -> 0 | S238: =IF('[1]1. Unternehmensbeschreibung'!$C$69=1,0,3.9%) -> 0 | V238: =IF('[1]1. Unternehmensbeschreibung'!$C$69=1,0,3.9%) -> 0
G240: Betrag IRAP | J240: =IF(J238*J236<0,0,J238*J236) -> 0 | M240: =IF(M238*M236<0,0,M238*M236) -> 0 | P240: =IF(P238*P236<0,0,P238*P236) -> 0 | S240: =IF(S238*S236<0,0,S238*S236) -> 0 | V240: =IF(V238*V236<0,0,V238*V236) -> 0
G243: SUMME Gesamt Steuer | J243: =J240+J229 -> 0 | M243: =M240+M229 -> 0 | P243: =P240+P229 -> 0 | S243: =S240+S229 -> 0 | V243: =V240+V229 -> 0
B5025: variable | C5025: pagatorische | D5025: nicht bare | E5025: Gesamt | F5025: pagatorische | G5025: Gesamt- | H5025: Gewinn/ | I5025: Menge | J5025: BEM
A5026: Umsatz/Leistung | B5026: Kosten | C5026: Fixkosten | D5026: Fixkosten | E5026: Fixkosten | F5026: Gesamtkosten | G5026: Kosten | H5026: Verlust
A5027: 0 | B5027: =A5027*D$213 -> 0 | C5027: =$C$217 -> 12000 | D5027: 0 | E5027: =SUM(C5027:D5027) -> 12000 | F5027: =SUM(B5027,C5027) -> 12000 | G5027: =SUM(B5027,E5027) -> 12000 | H5027: =A5027-G5027 -> -12000 | I5027: =IF(A5027=0,0,A5027/'6. Erfolgsrechnung Jahr'!$B$5) -> 0 | J5027: =IF(I5027=0,0,(E5027/((A5027-B5027)/C12))) -> 0
A5028: =DBU*0.2 -> 0 | B5028: 0 | C5028: 12000 | D5028: 0 | E5028: 12000 | F5028: 12000 | G5028: 12000 | H5028: -12000 | I5028: =IF('4. Umsatzplanung'!B20=0,0,A5028/((('4. Umsatzplanung'!B5*'4. Umsatzplanung'!C5)+('4. Umsatzplanung'!B6*'4. Umsatzplanung'!C6)+('4. Umsatzplanung'!B7*'4. Umsatzplanung'!C7)+('4. Umsatzplanung'!B8*'4. Umsatzplanung'!C8)+('4. Umsatzplanung'!B9*'4. Umsatzplanung'!C9)+('4. Umsatzplanung'!B10*'4. Umsatzplanung'!C10))/'4. Umsatzplanung'!B20)) -> 0 | J5028: =IF(C12=0,0,(E5028/((A5028-B5028)/C12)*0.2)) -> 0
A5029: =DBU*0.4 -> 0 | B5029: 0 | C5029: 12000 | D5029: 0 | E5029: 12000 | F5029: 12000 | G5029: 12000 | H5029: -12000 | I5029: =IF('4. Umsatzplanung'!B20=0,0,A5029/((('4. Umsatzplanung'!B5*'4. Umsatzplanung'!C5)+('4. Umsatzplanung'!B6*'4. Umsatzplanung'!C6)+('4. Umsatzplanung'!B7*'4. Umsatzplanung'!C7)+('4. Umsatzplanung'!B8*'4. Umsatzplanung'!C8)+('4. Umsatzplanung'!B9*'4. Umsatzplanung'!C9)+('4. Umsatzplanung'!B10*'4. Umsatzplanung'!C10))/'4. Umsatzplanung'!B20)) -> 0 | J5029: =IF(C12=0,0,((E5029/((A5029-B5029)/C12))*0.4)) -> 0
A5030: =DBU*0.6 -> 0 | B5030: 0 | C5030: 12000 | D5030: 0 | E5030: 12000 | F5030: 12000 | G5030: 12000 | H5030: -12000 | I5030: =IF('4. Umsatzplanung'!B20=0,0,A5030/((('4. Umsatzplanung'!B5*'4. Umsatzplanung'!C5)+('4. Umsatzplanung'!B6*'4. Umsatzplanung'!C6)+('4. Umsatzplanung'!B7*'4. Umsatzplanung'!C7)+('4. Umsatzplanung'!B8*'4. Umsatzplanung'!C8)+('4. Umsatzplanung'!B9*'4. Umsatzplanung'!C9)+('4. Umsatzplanung'!B10*'4. Umsatzplanung'!C10))/'4. Umsatzplanung'!B20)) -> 0 | J5030: =IF(C12=0,0,((E5030/((A5030-B5030)/C12))*0.6)) -> 0
A5031: =DBU*0.8 -> 0 | B5031: 0 | C5031: 12000 | D5031: 0 | E5031: 12000 | F5031: 12000 | G5031: 12000 | H5031: -12000 | I5031: =IF('4. Umsatzplanung'!B20=0,0,A5031/((('4. Umsatzplanung'!B5*'4. Umsatzplanung'!C5)+('4. Umsatzplanung'!B6*'4. Umsatzplanung'!C6)+('4. Umsatzplanung'!B7*'4. Umsatzplanung'!C7)+('4. Umsatzplanung'!B8*'4. Umsatzplanung'!C8)+('4. Umsatzplanung'!B9*'4. Umsatzplanung'!C9)+('4. Umsatzplanung'!B10*'4. Umsatzplanung'!C10))/'4. Umsatzplanung'!B20)) -> 0 | J5031: =IF(C12=0,0,((E5031/((A5031-B5031)/C12))*0.8)) -> 0
A5032: =DBU -> 0 | B5032: 0 | C5032: 12000 | D5032: 0 | E5032: 12000 | F5032: 12000 | G5032: 12000 | H5032: -12000 | I5032: =IF('4. Umsatzplanung'!B20=0,0,A5032/((('4. Umsatzplanung'!B5*'4. Umsatzplanung'!C5)+('4. Umsatzplanung'!B6*'4. Umsatzplanung'!C6)+('4. Umsatzplanung'!B7*'4. Umsatzplanung'!C7)+('4. Umsatzplanung'!B8*'4. Umsatzplanung'!C8)+('4. Umsatzplanung'!B9*'4. Umsatzplanung'!C9)+('4. Umsatzplanung'!B10*'4. Umsatzplanung'!C10))/'4. Umsatzplanung'!B20)) -> 0 | J5032: =IF(C12=0,0,(E5032/((A5032-B5032)/C12))) -> 0
A5033: =DBU*1.2 -> 0 | B5033: 0 | C5033: 12000 | D5033: 0 | E5033: 12000 | F5033: 12000 | G5033: 12000 | H5033: -12000 | I5033: =IF('4. Umsatzplanung'!B20=0,0,A5033/((('4. Umsatzplanung'!B5*'4. Umsatzplanung'!C5)+('4. Umsatzplanung'!B6*'4. Umsatzplanung'!C6)+('4. Umsatzplanung'!B7*'4. Umsatzplanung'!C7)+('4. Umsatzplanung'!B8*'4. Umsatzplanung'!C8)+('4. Umsatzplanung'!B9*'4. Umsatzplanung'!C9)+('4. Umsatzplanung'!B10*'4. Umsatzplanung'!C10))/'4. Umsatzplanung'!B20)) -> 0 | J5033: =IF(C12=0,0,((E5033/((A5033-B5033)/C12))*1.2)) -> 0
A5034: =DBU*1.4 -> 0 | B5034: 0 | C5034: 12000 | D5034: 0 | E5034: 12000 | F5034: 12000 | G5034: 12000 | H5034: -12000 | I5034: =IF('4. Umsatzplanung'!B20=0,0,A5034/((('4. Umsatzplanung'!B5*'4. Umsatzplanung'!C5)+('4. Umsatzplanung'!B6*'4. Umsatzplanung'!C6)+('4. Umsatzplanung'!B7*'4. Umsatzplanung'!C7)+('4. Umsatzplanung'!B8*'4. Umsatzplanung'!C8)+('4. Umsatzplanung'!B9*'4. Umsatzplanung'!C9)+('4. Umsatzplanung'!B10*'4. Umsatzplanung'!C10))/'4. Umsatzplanung'!B20)) -> 0 | J5034: =IF(C12=0,0,((E5034/((A5034-B5034)/C12))*1.4)) -> 0
A5035: =DBU*1.6 -> 0 | B5035: 0 | C5035: 12000 | D5035: 0 | E5035: 12000 | F5035: 12000 | G5035: 12000 | H5035: -12000 | I5035: =IF('4. Umsatzplanung'!B20=0,0,A5035/((('4. Umsatzplanung'!B5*'4. Umsatzplanung'!C5)+('4. Umsatzplanung'!B6*'4. Umsatzplanung'!C6)+('4. Umsatzplanung'!B7*'4. Umsatzplanung'!C7)+('4. Umsatzplanung'!B8*'4. Umsatzplanung'!C8)+('4. Umsatzplanung'!B9*'4. Umsatzplanung'!C9)+('4. Umsatzplanung'!B10*'4. Umsatzplanung'!C10))/'4. Umsatzplanung'!B20)) -> 0 | J5035: =IF(C12=0,0,((E5035/((A5035-B5035)/C12))*1.6)) -> 0
A5036: =DBU*1.8 -> 0 | B5036: 0 | C5036: 12000 | D5036: 1 | E5036: 12001 | F5036: 12000 | G5036: 12001 | H5036: -12001 | I5036: =IF('4. Umsatzplanung'!B20=0,0,A5036/((('4. Umsatzplanung'!B5*'4. Umsatzplanung'!C5)+('4. Umsatzplanung'!B6*'4. Umsatzplanung'!C6)+('4. Umsatzplanung'!B7*'4. Umsatzplanung'!C7)+('4. Umsatzplanung'!B8*'4. Umsatzplanung'!C8)+('4. Umsatzplanung'!B9*'4. Umsatzplanung'!C9)+('4. Umsatzplanung'!B10*'4. Umsatzplanung'!C10))/'4. Umsatzplanung'!B20)) -> 0 | J5036: =IF(C12=0,0,((E5036/((A5036-B5036)/C12))*1.8)) -> 0
A5038: 1 | B5038: =A5038+1 -> 2 | C5038: 1 | D5038: 2 | E5038: 3 | F5038: 4 | G5038: 5
A5039: =C3 -> Jahr 1 | B5039: Menge | C5039: ='4. Umsatzplanung'!$C$20 -> 0 | D5039: ='4. Umsatzplanung'!$C$40 -> 0 | E5039: ='4. Umsatzplanung'!$C$60 -> 0 | F5039: ='4. Umsatzplanung'!$C$80 -> 0 | G5039: ='4. Umsatzplanung'!$C$100 -> 0
A5040: =E3 -> Jahr 2 | B5040: FK | C5040: =$C$37 -> 12000 | D5040: =$E$37 -> 12000 | E5040: =$G$37 -> 12000 | F5040: =$I$37 -> 12000 | G5040: =$K$37 -> 12000
A5041: =G3 -> Jahr 3 | B5041: VK | C5041: =($C$4-$C$13) -> 0 | D5041: =($E$4-$E$13) -> 0 | E5041: =($G$4-$G$13) -> 0 | F5041: =($I$4-$I$13) -> 0 | G5041: =($K$4-$K$13) -> 0
A5042: =I3 -> Jahr 4 | B5042: Umsatz / Leistung | C5042: =$C$4 -> 0 | D5042: =$E$4 -> 0 | E5042: =$G$4 -> 0 | F5042: =$I$4 -> 0 | G5042: =$K$4 -> 0
A5043: =K3 -> Jahr 5 | B5043: EBIT | C5043: =$C$43 -> -17000 | D5043: =$E$43 -> -16095.12601 | E5043: =$G$43 -> -15145.00832 | F5043: =$I$43 -> -14147.38474 | G5043: =$K$43 -> -13099.87999
B5044: BEM | C5044: =IF(C5039=0,0,C5040/((C5042-C5041)/C5039)) -> 0 | D5044: =IF(D5039=0,0,D5040/((D5042-D5041)/D5039)) -> 0 | E5044: =IF(E5039=0,0,E5040/((E5042-E5041)/E5039)) -> 0 | F5044: =IF(F5039=0,0,F5040/((F5042-F5041)/F5039)) -> 0 | G5044: =IF(G5039=0,0,G5040/((G5042-G5041)/G5039)) -> 0

Sheet 7. Erfolgsrechnung Monat (hidden)
A1: Erfolgsrechnung und Rentabilitätsvorschau (Monat)
A2: Die Werte "Umsatz", "Wareneinsatz" und "variable Kosten" werden aus der Tabelle "6. Erfolgsrechnung Jahr" übernommen. Die Aufteilung dieser Daten auf die Monate erfolgt nach % (Zeile 4).
A3: Beschreibung | C3: Jahr | D3: Januar | E3: Februar | F3: März | G3: April | H3: Mai | I3: Juni | J3: Juli | K3: August | L3: September | M3: Oktober | N3: November | O3: Dezember
A4: Anteil in % pro Monat | C4: =SUM(D4:O4) -> 0
A5: Umsatz | C5: ='6. Erfolgsrechnung Jahr'!C4 -> 0 | D5: =$C5*D4 -> 0 | E5: =$C5*E4 -> 0 | F5: 0 | G5: 0 | H5: 0 | I5: 0 | J5: 0 | K5: 0 | L5: 0 | M5: 0 | N5: 0 | O5: 0
A6: - Wareneinsatz | C6: ='6. Erfolgsrechnung Jahr'!C5 -> 0 | D6: =IF(D5=0,0,D4*'4. Umsatzplanung'!$F$20) -> 0 | E6: =IF(E5=0,0,E4*'4. Umsatzplanung'!$F$20) -> 0 | F6: =IF(F5=0,0,F4*'4. Umsatzplanung'!$F$20) -> 0 | G6: =IF(G5=0,0,G4*'4. Umsatzplanung'!$F$20) -> 0 | H6: =IF(H5=0,0,H4*'4. Umsatzplanung'!$F$20) -> 0 | I6: =IF(I5=0,0,I4*'4. Umsatzplanung'!$F$20) -> 0 | J6: =IF(J5=0,0,J4*'4. Umsatzplanung'!$F$20) -> 0 | K6: =IF(K5=0,0,K4*'4. Umsatzplanung'!$F$20) -> 0 | L6: =IF(L5=0,0,L4*'4. Umsatzplanung'!$F$20) -> 0 | M6: =IF(M5=0,0,M4*'4. Umsatzplanung'!$F$20) -> 0 | N6: =IF(N5=0,0,N4*'4. Umsatzplanung'!$F$20) -> 0 | O6: =IF(O5=0,0,O4*'4. Umsatzplanung'!$F$20) -> 0
A7: = Rohertrag | C7: =C5-C6 -> 0 | D7: =D5-D6 -> 0 | E7: 0 | F7: 0 | G7: 0 | H7: 0 | I7: 0 | J7: 0 | K7: 0 | L7: 0 | M7: 0 | N7: 0 | O7: 0
A8: - Leistungen von Dritten | C8: =SUM(D8:O8) -> 0 | D8: =IF(D5=0,0,D5*'6. Erfolgsrechnung Jahr'!$D$7) -> 0 | E8: =IF(E5=0,0,E5*'6. Erfolgsrechnung Jahr'!$D$7) -> 0 | F8: =IF(F5=0,0,F5*'6. Erfolgsrechnung Jahr'!$D$7) -> 0 | G8: =IF(G5=0,0,G5*'6. Erfolgsrechnung Jahr'!$D$7) -> 0 | H8: =IF(H5=0,0,H5*'6. Erfolgsrechnung Jahr'!$D$7) -> 0 | I8: =IF(I5=0,0,I5*'6. Erfolgsrechnung Jahr'!$D$7) -> 0 | J8: =IF(J5=0,0,J5*'6. Erfolgsrechnung Jahr'!$D$7) -> 0 | K8: =IF(K5=0,0,K5*'6. Erfolgsrechnung Jahr'!$D$7) -> 0 | L8: =IF(L5=0,0,L5*'6. Erfolgsrechnung Jahr'!$D$7) -> 0 | M8: =IF(M5=0,0,M5*'6. Erfolgsrechnung Jahr'!$D$7) -> 0 | N8: =IF(N5=0,0,N5*'6. Erfolgsrechnung Jahr'!$D$7) -> 0 | O8: =IF(O5=0,0,O5*'6. Erfolgsrechnung Jahr'!$D$7) -> 0
A9: - Provisionen auf Umsatz | C9: =SUM(D9:O9) -> 0 | D9: =IF(D5=0,0,D5*'6. Erfolgsrechnung Jahr'!$D$8) -> 0 | E9: =IF(E5=0,0,E5*'6. Erfolgsrechnung Jahr'!$D$8) -> 0 | F9: =IF(F5=0,0,F5*'6. Erfolgsrechnung Jahr'!$D$8) -> 0 | G9: =IF(G5=0,0,G5*'6. Erfolgsrechnung Jahr'!$D$8) -> 0 | H9: =IF(H5=0,0,H5*'6. Erfolgsrechnung Jahr'!$D$8) -> 0 | I9: =IF(I5=0,0,I5*'6. Erfolgsrechnung Jahr'!$D$8) -> 0 | J9: =IF(J5=0,0,J5*'6. Erfolgsrechnung Jahr'!$D$8) -> 0 | K9: =IF(K5=0,0,K5*'6. Erfolgsrechnung Jahr'!$D$8) -> 0 | L9: =IF(L5=0,0,L5*'6. Erfolgsrechnung Jahr'!$D$8) -> 0 | M9: =IF(M5=0,0,M5*'6. Erfolgsrechnung Jahr'!$D$8) -> 0 | N9: =IF(N5=0,0,N5*'6. Erfolgsrechnung Jahr'!$D$8) -> 0 | O9: =IF(O5=0,0,O5*'6. Erfolgsrechnung Jahr'!$D$8) -> 0
A10: - Logistik, Transport, Verpackung | C10: =SUM(D10:O10) -> 0 | D10: =IF(D5=0,0,D5*'6. Erfolgsrechnung Jahr'!$D$9) -> 0 | E10: =IF(E5=0,0,E5*'6. Erfolgsrechnung Jahr'!$D$9) -> 0 | F10: =IF(F5=0,0,F5*'6. Erfolgsrechnung Jahr'!$D$9) -> 0 | G10: =IF(G5=0,0,G5*'6. Erfolgsrechnung Jahr'!$D$9) -> 0 | H10: =IF(H5=0,0,H5*'6. Erfolgsrechnung Jahr'!$D$9) -> 0 | I10: =IF(I5=0,0,I5*'6. Erfolgsrechnung Jahr'!$D$9) -> 0 | J10: =IF(J5=0,0,J5*'6. Erfolgsrechnung Jahr'!$D$9) -> 0 | K10: =IF(K5=0,0,K5*'6. Erfolgsrechnung Jahr'!$D$9) -> 0 | L10: =IF(L5=0,0,L5*'6. Erfolgsrechnung Jahr'!$D$9) -> 0 | M10: =IF(M5=0,0,M5*'6. Erfolgsrechnung Jahr'!$D$9) -> 0 | N10: =IF(N5=0,0,N5*'6. Erfolgsrechnung Jahr'!$D$9) -> 0 | O10: =IF(O5=0,0,O5*'6. Erfolgsrechnung Jahr'!$D$9) -> 0
A11: - sonstige variable Kosten | C11: =SUM(D11:O11) -> 0 | D11: =IF(D5=0,0,D5*'6. Erfolgsrechnung Jahr'!$D$10) -> 0 | E11: =IF(E5=0,0,E5*'6. Erfolgsrechnung Jahr'!$D$10) -> 0 | F11: =IF(F5=0,0,F5*'6. Erfolgsrechnung Jahr'!$D$10) -> 0 | G11: =IF(G5=0,0,G5*'6. Erfolgsrechnung Jahr'!$D$10) -> 0 | H11: =IF(H5=0,0,H5*'6. Erfolgsrechnung Jahr'!$D$10) -> 0 | I11: =IF(I5=0,0,I5*'6. Erfolgsrechnung Jahr'!$D$10) -> 0 | J11: =IF(J5=0,0,J5*'6. Erfolgsrechnung Jahr'!$D$10) -> 0 | K11: =IF(K5=0,0,K5*'6. Erfolgsrechnung Jahr'!$D$10) -> 0 | L11: =IF(L5=0,0,L5*'6. Erfolgsrechnung Jahr'!$D$10) -> 0 | M11: =IF(M5=0,0,M5*'6. Erfolgsrechnung Jahr'!$D$10) -> 0 | N11: =IF(N5=0,0,N5*'6. Erfolgsrechnung Jahr'!$D$10) -> 0 | O11: =IF(O5=0,0,O5*'6. Erfolgsrechnung Jahr'!$D$10) -> 0
A12: = Summe variable Kosten | C12: =SUM(C8:C11) -> 0 | D12: =SUM(D8:D11) -> 0 | E12: =SUM(E8:E11) -> 0 | F12: 0 | G12: 0 | H12: 0 | I12: 0 | J12: 0 | K12: 0 | L12: 0 | M12: 0 | N12: 0 | O12: 0
A13: = variable Kosten inkl. Wareneinsatz | C13: =C6+C12 -> 0 | D13: 0 | E13: 0 | F13: 0 | G13: 0 | H13: 0 | I13: 0 | J13: 0 | K13: 0 | L13: 0 | M13: 0 | N13: 0 | O13: 0
A14: = Deckungsbeitrag | C14: =C5-C13 -> 0 | D14: 0 | E14: 0 | F14: 0 | G14: 0 | H14: 0 | I14: 0 | J14: 0 | K14: 0 | L14: 0 | M14: 0 | N14: 0 | O14: 0
A15: - Personalkosten | C15: ='6. Erfolgsrechnung Jahr'!C14 -> 0 | D15: =IF(D$68>'5. Personalkosten'!$J$1,0,'6. Erfolgsrechnung Jahr'!$C14/12) -> 0 | E15: =IF(E$68>'5. Personalkosten'!$J$1,0,'6. Erfolgsrechnung Jahr'!$C14/12) -> 0 | F15: =IF(F$68>'5. Personalkosten'!$J$1,0,'6. Erfolgsrechnung Jahr'!$C14/12) -> 0 | G15: =IF(G$68>'5. Personalkosten'!$J$1,0,'6. Erfolgsrechnung Jahr'!$C14/12) -> 0 | H15: =IF(H$68>'5. Personalkosten'!$J$1,0,'6. Erfolgsrechnung Jahr'!$C14/12) -> 0 | I15: =IF(I$68>'5. Personalkosten'!$J$1,0,'6. Erfolgsrechnung Jahr'!$C14/12) -> 0 | J15: =IF(J$68>'5. Personalkosten'!$J$1,0,'6. Erfolgsrechnung Jahr'!$C14/12) -> 0 | K15: =IF(K$68>'5. Personalkosten'!$J$1,0,'6. Erfolgsrechnung Jahr'!$C14/12) -> 0 | L15: =IF(L$68>'5. Personalkosten'!$J$1,0,'6. Erfolgsrechnung Jahr'!$C14/12) -> 0 | M15: =IF(M$68>'5. Personalkosten'!$J$1,0,'6. Erfolgsrechnung Jahr'!$C14/12) -> 0 | N15: =IF(N$68>'5. Personalkosten'!$J$1,0,'6. Erfolgsrechnung Jahr'!$C14/12) -> 0 | O15: =IF(O$68>'5. Personalkosten'!$J$1,0,'6. Erfolgsrechnung Jahr'!$C14/12) -> 0
A16: Beginn der Tätigkeit im Monat | C16: Januar
A17: - Unternehmerlohn | C17: ='6. Erfolgsrechnung Jahr'!C15 -> 0 | D17: =IF(D$68>$F$70,0,'6. Erfolgsrechnung Jahr'!$C15/VLOOKUP($C$16,$D$70:$E$81,2,FALSE)) -> 0 | E17: =IF(E$68>$F$70,0,'6. Erfolgsrechnung Jahr'!$C15/VLOOKUP($C$16,$D$70:$E$81,2,FALSE)) -> 0 | F17: =IF(F$68>$F$70,0,'6. Erfolgsrechnung Jahr'!$C15/VLOOKUP($C$16,$D$70:$E$81,2,FALSE)) -> 0 | G17: =IF(G$68>$F$70,0,'6. Erfolgsrechnung Jahr'!$C15/VLOOKUP($C$16,$D$70:$E$81,2,FALSE)) -> 0 | H17: =IF(H$68>$F$70,0,'6. Erfolgsrechnung Jahr'!$C15/VLOOKUP($C$16,$D$70:$E$81,2,FALSE)) -> 0 | I17: =IF(I$68>$F$70,0,'6. Erfolgsrechnung Jahr'!$C15/VLOOKUP($C$16,$D$70:$E$81,2,FALSE)) -> 0 | J17: =IF(J$68>$F$70,0,'6. Erfolgsrechnung Jahr'!$C15/VLOOKUP($C$16,$D$70:$E$81,2,FALSE)) -> 0 | K17: =IF(K$68>$F$70,0,'6. Erfolgsrechnung Jahr'!$C15/VLOOKUP($C$16,$D$70:$E$81,2,FALSE)) -> 0 | L17: =IF(L$68>$F$70,0,'6. Erfolgsrechnung Jahr'!$C15/VLOOKUP($C$16,$D$70:$E$81,2,FALSE)) -> 0 | M17: =IF(M$68>$F$70,0,'6. Erfolgsrechnung Jahr'!$C15/VLOOKUP($C$16,$D$70:$E$81,2,FALSE)) -> 0 | N17: =IF(N$68>$F$70,0,'6. Erfolgsrechnung Jahr'!$C15/VLOOKUP($C$16,$D$70:$E$81,2,FALSE)) -> 0 | O17: =IF(O$68>$F$70,0,'6. Erfolgsrechnung Jahr'!$C15/VLOOKUP($C$16,$D$70:$E$81,2,FALSE)) -> 0
A18: - Roh-, Hilfs- und Betriebsstoffe | C18: ='6. Erfolgsrechnung Jahr'!C16 -> 0 | D18: =IF(D$68>$F$70,0,'6. Erfolgsrechnung Jahr'!$C16/VLOOKUP($C$16,$D$70:$E$81,2,FALSE)) -> 0 | E18: =IF(E$68>$F$70,0,'6. Erfolgsrechnung Jahr'!$C16/VLOOKUP($C$16,$D$70:$E$81,2,FALSE)) -> 0 | F18: =IF(F$68>$F$70,0,'6. Erfolgsrechnung Jahr'!$C16/VLOOKUP($C$16,$D$70:$E$81,2,FALSE)) -> 0 | G18: =IF(G$68>$F$70,0,'6. Erfolgsrechnung Jahr'!$C16/VLOOKUP($C$16,$D$70:$E$81,2,FALSE)) -> 0 | H18: =IF(H$68>$F$70,0,'6. Erfolgsrechnung Jahr'!$C16/VLOOKUP($C$16,$D$70:$E$81,2,FALSE)) -> 0 | I18: =IF(I$68>$F$70,0,'6. Erfolgsrechnung Jahr'!$C16/VLOOKUP($C$16,$D$70:$E$81,2,FALSE)) -> 0 | J18: =IF(J$68>$F$70,0,'6. Erfolgsrechnung Jahr'!$C16/VLOOKUP($C$16,$D$70:$E$81,2,FALSE)) -> 0 | K18: =IF(K$68>$F$70,0,'6. Erfolgsrechnung Jahr'!$C16/VLOOKUP($C$16,$D$70:$E$81,2,FALSE)) -> 0 | L18: =IF(L$68>$F$70,0,'6. Erfolgsrechnung Jahr'!$C16/VLOOKUP($C$16,$D$70:$E$81,2,FALSE)) -> 0 | M18: =IF(M$68>$F$70,0,'6. Erfolgsrechnung Jahr'!$C16/VLOOKUP($C$16,$D$70:$E$81,2,FALSE)) -> 0 | N18: =IF(N$68>$F$70,0,'6. Erfolgsrechnung Jahr'!$C16/VLOOKUP($C$16,$D$70:$E$81,2,FALSE)) -> 0 | O18: =IF(O$68>$F$70,0,'6. Erfolgsrechnung Jahr'!$C16/VLOOKUP($C$16,$D$70:$E$81,2,FALSE)) -> 0
A19: - Kleininvestitionen | C19: ='6. Erfolgsrechnung Jahr'!C17 -> 0 | D19: =IF(D$68>$F$70,0,'6. Erfolgsrechnung Jahr'!$C17/VLOOKUP($C$16,$D$70:$E$81,2,FALSE)) -> 0 | E19: =IF(E$68>$F$70,0,'6. Erfolgsrechnung Jahr'!$C17/VLOOKUP($C$16,$D$70:$E$81,2,FALSE)) -> 0 | F19: =IF(F$68>$F$70,0,'6. Erfolgsrechnung Jahr'!$C17/VLOOKUP($C$16,$D$70:$E$81,2,FALSE)) -> 0 | G19: =IF(G$68>$F$70,0,'6. Erfolgsrechnung Jahr'!$C17/VLOOKUP($C$16,$D$70:$E$81,2,FALSE)) -> 0 | H19: =IF(H$68>$F$70,0,'6. Erfolgsrechnung Jahr'!$C17/VLOOKUP($C$16,$D$70:$E$81,2,FALSE)) -> 0 | I19: =IF(I$68>$F$70,0,'6. Erfolgsrechnung Jahr'!$C17/VLOOKUP($C$16,$D$70:$E$81,2,FALSE)) -> 0 | J19: =IF(J$68>$F$70,0,'6. Erfolgsrechnung Jahr'!$C17/VLOOKUP($C$16,$D$70:$E$81,2,FALSE)) -> 0 | K19: =IF(K$68>$F$70,0,'6. Erfolgsrechnung Jahr'!$C17/VLOOKUP($C$16,$D$70:$E$81,2,FALSE)) -> 0 | L19: =IF(L$68>$F$70,0,'6. Erfolgsrechnung Jahr'!$C17/VLOOKUP($C$16,$D$70:$E$81,2,FALSE)) -> 0 | M19: =IF(M$68>$F$70,0,'6. Erfolgsrechnung Jahr'!$C17/VLOOKUP($C$16,$D$70:$E$81,2,FALSE)) -> 0 | N19: =IF(N$68>$F$70,0,'6. Erfolgsrechnung Jahr'!$C17/VLOOKUP($C$16,$D$70:$E$81,2,FALSE)) -> 0 | O19: =IF(O$68>$F$70,0,'6. Erfolgsrechnung Jahr'!$C17/VLOOKUP($C$16,$D$70:$E$81,2,FALSE)) -> 0
A20: - Energie/Wasser/Müllkosten | C20: ='6. Erfolgsrechnung Jahr'!C18 -> 0 | D20: =IF(D$68>$F$70,0,'6. Erfolgsrechnung Jahr'!$C18/VLOOKUP($C$16,$D$70:$E$81,2,FALSE)) -> 0 | E20: =IF(E$68>$F$70,0,'6. Erfolgsrechnung Jahr'!$C18/VLOOKUP($C$16,$D$70:$E$81,2,FALSE)) -> 0 | F20: =IF(F$68>$F$70,0,'6. Erfolgsrechnung Jahr'!$C18/VLOOKUP($C$16,$D$70:$E$81,2,FALSE)) -> 0 | G20: =IF(G$68>$F$70,0,'6. Erfolgsrechnung Jahr'!$C18/VLOOKUP($C$16,$D$70:$E$81,2,FALSE)) -> 0 | H20: =IF(H$68>$F$70,0,'6. Erfolgsrechnung Jahr'!$C18/VLOOKUP($C$16,$D$70:$E$81,2,FALSE)) -> 0 | I20: =IF(I$68>$F$70,0,'6. Erfolgsrechnung Jahr'!$C18/VLOOKUP($C$16,$D$70:$E$81,2,FALSE)) -> 0 | J20: =IF(J$68>$F$70,0,'6. Erfolgsrechnung Jahr'!$C18/VLOOKUP($C$16,$D$70:$E$81,2,FALSE)) -> 0 | K20: =IF(K$68>$F$70,0,'6. Erfolgsrechnung Jahr'!$C18/VLOOKUP($C$16,$D$70:$E$81,2,FALSE)) -> 0 | L20: =IF(L$68>$F$70,0,'6. Erfolgsrechnung Jahr'!$C18/VLOOKUP($C$16,$D$70:$E$81,2,FALSE)) -> 0 | M20: =IF(M$68>$F$70,0,'6. Erfolgsrechnung Jahr'!$C18/VLOOKUP($C$16,$D$70:$E$81,2,FALSE)) -> 0 | N20: =IF(N$68>$F$70,0,'6. Erfolgsrechnung Jahr'!$C18/VLOOKUP($C$16,$D$70:$E$81,2,FALSE)) -> 0 | O20: =IF(O$68>$F$70,0,'6. Erfolgsrechnung Jahr'!$C18/VLOOKUP($C$16,$D$70:$E$81,2,FALSE)) -> 0
A21: - Reparatur und Instandhaltung | C21: ='6. Erfolgsrechnung Jahr'!C19 -> 0 | D21: =IF(D$68>$F$70,0,'6. Erfolgsrechnung Jahr'!$C19/VLOOKUP($C$16,$D$70:$E$81,2,FALSE)) -> 0 | E21: =IF(E$68>$F$70,0,'6. Erfolgsrechnung Jahr'!$C19/VLOOKUP($C$16,$D$70:$E$81,2,FALSE)) -> 0 | F21: =IF(F$68>$F$70,0,'6. Erfolgsrechnung Jahr'!$C19/VLOOKUP($C$16,$D$70:$E$81,2,FALSE)) -> 0 | G21: =IF(G$68>$F$70,0,'6. Erfolgsrechnung Jahr'!$C19/VLOOKUP($C$16,$D$70:$E$81,2,FALSE)) -> 0 | H21: =IF(H$68>$F$70,0,'6. Erfolgsrechnung Jahr'!$C19/VLOOKUP($C$16,$D$70:$E$81,2,FALSE)) -> 0 | I21: =IF(I$68>$F$70,0,'6. Erfolgsrechnung Jahr'!$C19/VLOOKUP($C$16,$D$70:$E$81,2,FALSE)) -> 0 | J21: =IF(J$68>$F$70,0,'6. Erfolgsrechnung Jahr'!$C19/VLOOKUP($C$16,$D$70:$E$81,2,FALSE)) -> 0 | K21: =IF(K$68>$F$70,0,'6. Erfolgsrechnung Jahr'!$C19/VLOOKUP($C$16,$D$70:$E$81,2,FALSE)) -> 0 | L21: =IF(L$68>$F$70,0,'6. Erfolgsrechnung Jahr'!$C19/VLOOKUP($C$16,$D$70:$E$81,2,FALSE)) -> 0 | M21: =IF(M$68>$F$70,0,'6. Erfolgsrechnung Jahr'!$C19/VLOOKUP($C$16,$D$70:$E$81,2,FALSE)) -> 0 | N21: =IF(N$68>$F$70,0,'6. Erfolgsrechnung Jahr'!$C19/VLOOKUP($C$16,$D$70:$E$81,2,FALSE)) -> 0 | O21: =IF(O$68>$F$70,0,'6. Erfolgsrechnung Jahr'!$C19/VLOOKUP($C$16,$D$70:$E$81,2,FALSE)) -> 0
A22: - Fuhrparkkosten | C22: ='6. Erfolgsrechnung Jahr'!C20 -> 0 | D22: =IF(D$68>$F$70,0,'6. Erfolgsrechnung Jahr'!$C20/VLOOKUP($C$16,$D$70:$E$81,2,FALSE)) -> 0 | E22: =IF(E$68>$F$70,0,'6. Erfolgsrechnung Jahr'!$C20/VLOOKUP($C$16,$D$70:$E$81,2,FALSE)) -> 0 | F22: =IF(F$68>$F$70,0,'6. Erfolgsrechnung Jahr'!$C20/VLOOKUP($C$16,$D$70:$E$81,2,FALSE)) -> 0 | G22: =IF(G$68>$F$70,0,'6. Erfolgsrechnung Jahr'!$C20/VLOOKUP($C$16,$D$70:$E$81,2,FALSE)) -> 0 | H22: =IF(H$68>$F$70,0,'6. Erfolgsrechnung Jahr'!$C20/VLOOKUP($C$16,$D$70:$E$81,2,FALSE)) -> 0 | I22: =IF(I$68>$F$70,0,'6. Erfolgsrechnung Jahr'!$C20/VLOOKUP($C$16,$D$70:$E$81,2,FALSE)) -> 0 | J22: =IF(J$68>$F$70,0,'6. Erfolgsrechnung Jahr'!$C20/VLOOKUP($C$16,$D$70:$E$81,2,FALSE)) -> 0 | K22: =IF(K$68>$F$70,0,'6. Erfolgsrechnung Jahr'!$C20/VLOOKUP($C$16,$D$70:$E$81,2,FALSE)) -> 0 | L22: =IF(L$68>$F$70,0,'6. Erfolgsrechnung Jahr'!$C20/VLOOKUP($C$16,$D$70:$E$81,2,FALSE)) -> 0 | M22: =IF(M$68>$F$70,0,'6. Erfolgsrechnung Jahr'!$C20/VLOOKUP($C$16,$D$70:$E$81,2,FALSE)) -> 0 | N22: =IF(N$68>$F$70,0,'6. Erfolgsrechnung Jahr'!$C20/VLOOKUP($C$16,$D$70:$E$81,2,FALSE)) -> 0 | O22: =IF(O$68>$F$70,0,'6. Erfolgsrechnung Jahr'!$C20/VLOOKUP($C$16,$D$70:$E$81,2,FALSE)) -> 0
A23: - Versicherungen | C23: ='6. Erfolgsrechnung Jahr'!C21 -> 0 | D23: =IF(D$68>$F$70,0,'6. Erfolgsrechnung Jahr'!$C21/VLOOKUP($C$16,$D$70:$E$81,2,FALSE)) -> 0 | E23: =IF(E$68>$F$70,0,'6. Erfolgsrechnung Jahr'!$C21/VLOOKUP($C$16,$D$70:$E$81,2,FALSE)) -> 0 | F23: =IF(F$68>$F$70,0,'6. Erfolgsrechnung Jahr'!$C21/VLOOKUP($C$16,$D$70:$E$81,2,FALSE)) -> 0 | G23: =IF(G$68>$F$70,0,'6. Erfolgsrechnung Jahr'!$C21/VLOOKUP($C$16,$D$70:$E$81,2,FALSE)) -> 0 | H23: =IF(H$68>$F$70,0,'6. Erfolgsrechnung Jahr'!$C21/VLOOKUP($C$16,$D$70:$E$81,2,FALSE)) -> 0 | I23: =IF(I$68>$F$70,0,'6. Erfolgsrechnung Jahr'!$C21/VLOOKUP($C$16,$D$70:$E$81,2,FALSE)) -> 0 | J23: =IF(J$68>$F$70,0,'6. Erfolgsrechnung Jahr'!$C21/VLOOKUP($C$16,$D$70:$E$81,2,FALSE)) -> 0 | K23: =IF(K$68>$F$70,0,'6. Erfolgsrechnung Jahr'!$C21/VLOOKUP($C$16,$D$70:$E$81,2,FALSE)) -> 0 | L23: =IF(L$68>$F$70,0,'6. Erfolgsrechnung Jahr'!$C21/VLOOKUP($C$16,$D$70:$E$81,2,FALSE)) -> 0 | M23: =IF(M$68>$F$70,0,'6. Erfolgsrechnung Jahr'!$C21/VLOOKUP($C$16,$D$70:$E$81,2,FALSE)) -> 0 | N23: =IF(N$68>$F$70,0,'6. Erfolgsrechnung Jahr'!$C21/VLOOKUP($C$16,$D$70:$E$81,2,FALSE)) -> 0 | O23: =IF(O$68>$F$70,0,'6. Erfolgsrechnung Jahr'!$C21/VLOOKUP($C$16,$D$70:$E$81,2,FALSE)) -> 0
A24: - sonstige Betriebskosten | C24: ='6. Erfolgsrechnung Jahr'!C22 -> 0 | D24: =IF(D$68>$F$70,0,'6. Erfolgsrechnung Jahr'!$C22/VLOOKUP($C$16,$D$70:$E$81,2,FALSE)) -> 0 | E24: =IF(E$68>$F$70,0,'6. Erfolgsrechnung Jahr'!$C22/VLOOKUP($C$16,$D$70:$E$81,2,FALSE)) -> 0 | F24: =IF(F$68>$F$70,0,'6. Erfolgsrechnung Jahr'!$C22/VLOOKUP($C$16,$D$70:$E$81,2,FALSE)) -> 0 | G24: =IF(G$68>$F$70,0,'6. Erfolgsrechnung Jahr'!$C22/VLOOKUP($C$16,$D$70:$E$81,2,FALSE)) -> 0 | H24: =IF(H$68>$F$70,0,'6. Erfolgsrechnung Jahr'!$C22/VLOOKUP($C$16,$D$70:$E$81,2,FALSE)) -> 0 | I24: =IF(I$68>$F$70,0,'6. Erfolgsrechnung Jahr'!$C22/VLOOKUP($C$16,$D$70:$E$81,2,FALSE)) -> 0 | J24: =IF(J$68>$F$70,0,'6. Erfolgsrechnung Jahr'!$C22/VLOOKUP($C$16,$D$70:$E$81,2,FALSE)) -> 0 | K24: =IF(K$68>$F$70,0,'6. Erfolgsrechnung Jahr'!$C22/VLOOKUP($C$16,$D$70:$E$81,2,FALSE)) -> 0 | L24: =IF(L$68>$F$70,0,'6. Erfolgsrechnung Jahr'!$C22/VLOOKUP($C$16,$D$70:$E$81,2,FALSE)) -> 0 | M24: =IF(M$68>$F$70,0,'6. Erfolgsrechnung Jahr'!$C22/VLOOKUP($C$16,$D$70:$E$81,2,FALSE)) -> 0 | N24: =IF(N$68>$F$70,0,'6. Erfolgsrechnung Jahr'!$C22/VLOOKUP($C$16,$D$70:$E$81,2,FALSE)) -> 0 | O24: =IF(O$68>$F$70,0,'6. Erfolgsrechnung Jahr'!$C22/VLOOKUP($C$16,$D$70:$E$81,2,FALSE)) -> 0
A25: - Büromaterial | C25: ='6. Erfolgsrechnung Jahr'!C23 -> 0 | D25: =IF(D$68>$F$70,0,'6. Erfolgsrechnung Jahr'!$C23/VLOOKUP($C$16,$D$70:$E$81,2,FALSE)) -> 0 | E25: =IF(E$68>$F$70,0,'6. Erfolgsrechnung Jahr'!$C23/VLOOKUP($C$16,$D$70:$E$81,2,FALSE)) -> 0 | F25: =IF(F$68>$F$70,0,'6. Erfolgsrechnung Jahr'!$C23/VLOOKUP($C$16,$D$70:$E$81,2,FALSE)) -> 0 | G25: =IF(G$68>$F$70,0,'6. Erfolgsrechnung Jahr'!$C23/VLOOKUP($C$16,$D$70:$E$81,2,FALSE)) -> 0 | H25: =IF(H$68>$F$70,0,'6. Erfolgsrechnung Jahr'!$C23/VLOOKUP($C$16,$D$70:$E$81,2,FALSE)) -> 0 | I25: =IF(I$68>$F$70,0,'6. Erfolgsrechnung Jahr'!$C23/VLOOKUP($C$16,$D$70:$E$81,2,FALSE)) -> 0 | J25: =IF(J$68>$F$70,0,'6. Erfolgsrechnung Jahr'!$C23/VLOOKUP($C$16,$D$70:$E$81,2,FALSE)) -> 0 | K25: =IF(K$68>$F$70,0,'6. Erfolgsrechnung Jahr'!$C23/VLOOKUP($C$16,$D$70:$E$81,2,FALSE)) -> 0 | L25: =IF(L$68>$F$70,0,'6. Erfolgsrechnung Jahr'!$C23/VLOOKUP($C$16,$D$70:$E$81,2,FALSE)) -> 0 | M25: =IF(M$68>$F$70,0,'6. Erfolgsrechnung Jahr'!$C23/VLOOKUP($C$16,$D$70:$E$81,2,FALSE)) -> 0 | N25: =IF(N$68>$F$70,0,'6. Erfolgsrechnung Jahr'!$C23/VLOOKUP($C$16,$D$70:$E$81,2,FALSE)) -> 0 | O25: =IF(O$68>$F$70,0,'6. Erfolgsrechnung Jahr'!$C23/VLOOKUP($C$16,$D$70:$E$81,2,FALSE)) -> 0
A26: - Post/Telefon/Internet | C26: ='6. Erfolgsrechnung Jahr'!C24 -> 0 | D26: =IF(D$68>$F$70,0,'6. Erfolgsrechnung Jahr'!$C24/VLOOKUP($C$16,$D$70:$E$81,2,FALSE)) -> 0 | E26: =IF(E$68>$F$70,0,'6. Erfolgsrechnung Jahr'!$C24/VLOOKUP($C$16,$D$70:$E$81,2,FALSE)) -> 0 | F26: =IF(F$68>$F$70,0,'6. Erfolgsrechnung Jahr'!$C24/VLOOKUP($C$16,$D$70:$E$81,2,FALSE)) -> 0 | G26: =IF(G$68>$F$70,0,'6. Erfolgsrechnung Jahr'!$C24/VLOOKUP($C$16,$D$70:$E$81,2,FALSE)) -> 0 | H26: =IF(H$68>$F$70,0,'6. Erfolgsrechnung Jahr'!$C24/VLOOKUP($C$16,$D$70:$E$81,2,FALSE)) -> 0 | I26: =IF(I$68>$F$70,0,'6. Erfolgsrechnung Jahr'!$C24/VLOOKUP($C$16,$D$70:$E$81,2,FALSE)) -> 0 | J26: =IF(J$68>$F$70,0,'6. Erfolgsrechnung Jahr'!$C24/VLOOKUP($C$16,$D$70:$E$81,2,FALSE)) -> 0 | K26: =IF(K$68>$F$70,0,'6. Erfolgsrechnung Jahr'!$C24/VLOOKUP($C$16,$D$70:$E$81,2,FALSE)) -> 0 | L26: =IF(L$68>$F$70,0,'6. Erfolgsrechnung Jahr'!$C24/VLOOKUP($C$16,$D$70:$E$81,2,FALSE)) -> 0 | M26: =IF(M$68>$F$70,0,'6. Erfolgsrechnung Jahr'!$C24/VLOOKUP($C$16,$D$70:$E$81,2,FALSE)) -> 0 | N26: =IF(N$68>$F$70,0,'6. Erfolgsrechnung Jahr'!$C24/VLOOKUP($C$16,$D$70:$E$81,2,FALSE)) -> 0 | O26: =IF(O$68>$F$70,0,'6. Erfolgsrechnung Jahr'!$C24/VLOOKUP($C$16,$D$70:$E$81,2,FALSE)) -> 0
A27: - Rechts- und Beratungskosten | C27: ='6. Erfolgsrechnung Jahr'!C25 -> 12000 | D27: =IF(D$68>$F$70,0,'6. Erfolgsrechnung Jahr'!$C25/VLOOKUP($C$16,$D$70:$E$81,2,FALSE)) -> 1000 | E27: =IF(E$68>$F$70,0,'6. Erfolgsrechnung Jahr'!$C25/VLOOKUP($C$16,$D$70:$E$81,2,FALSE)) -> 1000 | F27: =IF(F$68>$F$70,0,'6. Erfolgsrechnung Jahr'!$C25/VLOOKUP($C$16,$D$70:$E$81,2,FALSE)) -> 1000 | G27: =IF(G$68>$F$70,0,'6. Erfolgsrechnung Jahr'!$C25/VLOOKUP($C$16,$D$70:$E$81,2,FALSE)) -> 1000 | H27: =IF(H$68>$F$70,0,'6. Erfolgsrechnung Jahr'!$C25/VLOOKUP($C$16,$D$70:$E$81,2,FALSE)) -> 1000 | I27: =IF(I$68>$F$70,0,'6. Erfolgsrechnung Jahr'!$C25/VLOOKUP($C$16,$D$70:$E$81,2,FALSE)) -> 1000 | J27: =IF(J$68>$F$70,0,'6. Erfolgsrechnung Jahr'!$C25/VLOOKUP($C$16,$D$70:$E$81,2,FALSE)) -> 1000 | K27: =IF(K$68>$F$70,0,'6. Erfolgsrechnung Jahr'!$C25/VLOOKUP($C$16,$D$70:$E$81,2,FALSE)) -> 1000 | L27: =IF(L$68>$F$70,0,'6. Erfolgsrechnung Jahr'!$C25/VLOOKUP($C$16,$D$70:$E$81,2,FALSE)) -> 1000 | M27: =IF(M$68>$F$70,0,'6. Erfolgsrechnung Jahr'!$C25/VLOOKUP($C$16,$D$70:$E$81,2,FALSE)) -> 1000 | N27: =IF(N$68>$F$70,0,'6. Erfolgsrechnung Jahr'!$C25/VLOOKUP($C$16,$D$70:$E$81,2,FALSE)) -> 1000 | O27: =IF(O$68>$F$70,0,'6. Erfolgsrechnung Jahr'!$C25/VLOOKUP($C$16,$D$70:$E$81,2,FALSE)) -> 1000
A28: - Gebühren/Beiträge/Abgaben | C28: ='6. Erfolgsrechnung Jahr'!C26 -> 0 | D28: =IF(D$68>$F$70,0,'6. Erfolgsrechnung Jahr'!$C26/VLOOKUP($C$16,$D$70:$E$81,2,FALSE)) -> 0 | E28: =IF(E$68>$F$70,0,'6. Erfolgsrechnung Jahr'!$C26/VLOOKUP($C$16,$D$70:$E$81,2,FALSE)) -> 0 | F28: =IF(F$68>$F$70,0,'6. Erfolgsrechnung Jahr'!$C26/VLOOKUP($C$16,$D$70:$E$81,2,FALSE)) -> 0 | G28: =IF(G$68>$F$70,0,'6. Erfolgsrechnung Jahr'!$C26/VLOOKUP($C$16,$D$70:$E$81,2,FALSE)) -> 0 | H28: =IF(H$68>$F$70,0,'6. Erfolgsrechnung Jahr'!$C26/VLOOKUP($C$16,$D$70:$E$81,2,FALSE)) -> 0 | I28: =IF(I$68>$F$70,0,'6. Erfolgsrechnung Jahr'!$C26/VLOOKUP($C$16,$D$70:$E$81,2,FALSE)) -> 0 | J28: =IF(J$68>$F$70,0,'6. Erfolgsrechnung Jahr'!$C26/VLOOKUP($C$16,$D$70:$E$81,2,FALSE)) -> 0 | K28: =IF(K$68>$F$70,0,'6. Erfolgsrechnung Jahr'!$C26/VLOOKUP($C$16,$D$70:$E$81,2,FALSE)) -> 0 | L28: =IF(L$68>$F$70,0,'6. Erfolgsrechnung Jahr'!$C26/VLOOKUP($C$16,$D$70:$E$81,2,FALSE)) -> 0 | M28: =IF(M$68>$F$70,0,'6. Erfolgsrechnung Jahr'!$C26/VLOOKUP($C$16,$D$70:$E$81,2,FALSE)) -> 0 | N28: =IF(N$68>$F$70,0,'6. Erfolgsrechnung Jahr'!$C26/VLOOKUP($C$16,$D$70:$E$81,2,FALSE)) -> 0 | O28: =IF(O$68>$F$70,0,'6. Erfolgsrechnung Jahr'!$C26/VLOOKUP($C$16,$D$70:$E$81,2,FALSE)) -> 0
A29: - sonstige Verwaltungskosten | C29: ='6. Erfolgsrechnung Jahr'!C27 -> 0 | D29: =IF(D$68>$F$70,0,'6. Erfolgsrechnung Jahr'!$C27/VLOOKUP($C$16,$D$70:$E$81,2,FALSE)) -> 0 | E29: =IF(E$68>$F$70,0,'6. Erfolgsrechnung Jahr'!$C27/VLOOKUP($C$16,$D$70:$E$81,2,FALSE)) -> 0 | F29: =IF(F$68>$F$70,0,'6. Erfolgsrechnung Jahr'!$C27/VLOOKUP($C$16,$D$70:$E$81,2,FALSE)) -> 0 | G29: =IF(G$68>$F$70,0,'6. Erfolgsrechnung Jahr'!$C27/VLOOKUP($C$16,$D$70:$E$81,2,FALSE)) -> 0 | H29: =IF(H$68>$F$70,0,'6. Erfolgsrechnung Jahr'!$C27/VLOOKUP($C$16,$D$70:$E$81,2,FALSE)) -> 0 | I29: =IF(I$68>$F$70,0,'6. Erfolgsrechnung Jahr'!$C27/VLOOKUP($C$16,$D$70:$E$81,2,FALSE)) -> 0 | J29: =IF(J$68>$F$70,0,'6. Erfolgsrechnung Jahr'!$C27/VLOOKUP($C$16,$D$70:$E$81,2,FALSE)) -> 0 | K29: =IF(K$68>$F$70,0,'6. Erfolgsrechnung Jahr'!$C27/VLOOKUP($C$16,$D$70:$E$81,2,FALSE)) -> 0 | L29: =IF(L$68>$F$70,0,'6. Erfolgsrechnung Jahr'!$C27/VLOOKUP($C$16,$D$70:$E$81,2,FALSE)) -> 0 | M29: =IF(M$68>$F$70,0,'6. Erfolgsrechnung Jahr'!$C27/VLOOKUP($C$16,$D$70:$E$81,2,FALSE)) -> 0 | N29: =IF(N$68>$F$70,0,'6. Erfolgsrechnung Jahr'!$C27/VLOOKUP($C$16,$D$70:$E$81,2,FALSE)) -> 0 | O29: =IF(O$68>$F$70,0,'6. Erfolgsrechnung Jahr'!$C27/VLOOKUP($C$16,$D$70:$E$81,2,FALSE)) -> 0
A30: - Werbung/Messen/Public Relations | C30: ='6. Erfolgsrechnung Jahr'!C28 -> 0 | D30: =IF(D$68>$F$70,0,'6. Erfolgsrechnung Jahr'!$C28/VLOOKUP($C$16,$D$70:$E$81,2,FALSE)) -> 0 | E30: =IF(E$68>$F$70,0,'6. Erfolgsrechnung Jahr'!$C28/VLOOKUP($C$16,$D$70:$E$81,2,FALSE)) -> 0 | F30: =IF(F$68>$F$70,0,'6. Erfolgsrechnung Jahr'!$C28/VLOOKUP($C$16,$D$70:$E$81,2,FALSE)) -> 0 | G30: =IF(G$68>$F$70,0,'6. Erfolgsrechnung Jahr'!$C28/VLOOKUP($C$16,$D$70:$E$81,2,FALSE)) -> 0 | H30: =IF(H$68>$F$70,0,'6. Erfolgsrechnung Jahr'!$C28/VLOOKUP($C$16,$D$70:$E$81,2,FALSE)) -> 0 | I30: =IF(I$68>$F$70,0,'6. Erfolgsrechnung Jahr'!$C28/VLOOKUP($C$16,$D$70:$E$81,2,FALSE)) -> 0 | J30: =IF(J$68>$F$70,0,'6. Erfolgsrechnung Jahr'!$C28/VLOOKUP($C$16,$D$70:$E$81,2,FALSE)) -> 0 | K30: =IF(K$68>$F$70,0,'6. Erfolgsrechnung Jahr'!$C28/VLOOKUP($C$16,$D$70:$E$81,2,FALSE)) -> 0 | L30: =IF(L$68>$F$70,0,'6. Erfolgsrechnung Jahr'!$C28/VLOOKUP($C$16,$D$70:$E$81,2,FALSE)) -> 0 | M30: =IF(M$68>$F$70,0,'6. Erfolgsrechnung Jahr'!$C28/VLOOKUP($C$16,$D$70:$E$81,2,FALSE)) -> 0 | N30: =IF(N$68>$F$70,0,'6. Erfolgsrechnung Jahr'!$C28/VLOOKUP($C$16,$D$70:$E$81,2,FALSE)) -> 0 | O30: =IF(O$68>$F$70,0,'6. Erfolgsrechnung Jahr'!$C28/VLOOKUP($C$16,$D$70:$E$81,2,FALSE)) -> 0
A31: - Weiterbildung | C31: ='6. Erfolgsrechnung Jahr'!C29 -> 0 | D31: =IF(D$68>$F$70,0,'6. Erfolgsrechnung Jahr'!$C29/VLOOKUP($C$16,$D$70:$E$81,2,FALSE)) -> 0 | E31: =IF(E$68>$F$70,0,'6. Erfolgsrechnung Jahr'!$C29/VLOOKUP($C$16,$D$70:$E$81,2,FALSE)) -> 0 | F31: =IF(F$68>$F$70,0,'6. Erfolgsrechnung Jahr'!$C29/VLOOKUP($C$16,$D$70:$E$81,2,FALSE)) -> 0 | G31: =IF(G$68>$F$70,0,'6. Erfolgsrechnung Jahr'!$C29/VLOOKUP($C$16,$D$70:$E$81,2,FALSE)) -> 0 | H31: =IF(H$68>$F$70,0,'6. Erfolgsrechnung Jahr'!$C29/VLOOKUP($C$16,$D$70:$E$81,2,FALSE)) -> 0 | I31: =IF(I$68>$F$70,0,'6. Erfolgsrechnung Jahr'!$C29/VLOOKUP($C$16,$D$70:$E$81,2,FALSE)) -> 0 | J31: =IF(J$68>$F$70,0,'6. Erfolgsrechnung Jahr'!$C29/VLOOKUP($C$16,$D$70:$E$81,2,FALSE)) -> 0 | K31: =IF(K$68>$F$70,0,'6. Erfolgsrechnung Jahr'!$C29/VLOOKUP($C$16,$D$70:$E$81,2,FALSE)) -> 0 | L31: =IF(L$68>$F$70,0,'6. Erfolgsrechnung Jahr'!$C29/VLOOKUP($C$16,$D$70:$E$81,2,FALSE)) -> 0 | M31: =IF(M$68>$F$70,0,'6. Erfolgsrechnung Jahr'!$C29/VLOOKUP($C$16,$D$70:$E$81,2,FALSE)) -> 0 | N31: =IF(N$68>$F$70,0,'6. Erfolgsrechnung Jahr'!$C29/VLOOKUP($C$16,$D$70:$E$81,2,FALSE)) -> 0 | O31: =IF(O$68>$F$70,0,'6. Erfolgsrechnung Jahr'!$C29/VLOOKUP($C$16,$D$70:$E$81,2,FALSE)) -> 0
A32: - Reise- und Repräsentationsspesen | C32: ='6. Erfolgsrechnung Jahr'!C30 -> 0 | D32: =IF(D$68>$F$70,0,'6. Erfolgsrechnung Jahr'!$C30/VLOOKUP($C$16,$D$70:$E$81,2,FALSE)) -> 0 | E32: =IF(E$68>$F$70,0,'6. Erfolgsrechnung Jahr'!$C30/VLOOKUP($C$16,$D$70:$E$81,2,FALSE)) -> 0 | F32: =IF(F$68>$F$70,0,'6. Erfolgsrechnung Jahr'!$C30/VLOOKUP($C$16,$D$70:$E$81,2,FALSE)) -> 0 | G32: =IF(G$68>$F$70,0,'6. Erfolgsrechnung Jahr'!$C30/VLOOKUP($C$16,$D$70:$E$81,2,FALSE)) -> 0 | H32: =IF(H$68>$F$70,0,'6. Erfolgsrechnung Jahr'!$C30/VLOOKUP($C$16,$D$70:$E$81,2,FALSE)) -> 0 | I32: =IF(I$68>$F$70,0,'6. Erfolgsrechnung Jahr'!$C30/VLOOKUP($C$16,$D$70:$E$81,2,FALSE)) -> 0 | J32: =IF(J$68>$F$70,0,'6. Erfolgsrechnung Jahr'!$C30/VLOOKUP($C$16,$D$70:$E$81,2,FALSE)) -> 0 | K32: =IF(K$68>$F$70,0,'6. Erfolgsrechnung Jahr'!$C30/VLOOKUP($C$16,$D$70:$E$81,2,FALSE)) -> 0 | L32: =IF(L$68>$F$70,0,'6. Erfolgsrechnung Jahr'!$C30/VLOOKUP($C$16,$D$70:$E$81,2,FALSE)) -> 0 | M32: =IF(M$68>$F$70,0,'6. Erfolgsrechnung Jahr'!$C30/VLOOKUP($C$16,$D$70:$E$81,2,FALSE)) -> 0 | N32: =IF(N$68>$F$70,0,'6. Erfolgsrechnung Jahr'!$C30/VLOOKUP($C$16,$D$70:$E$81,2,FALSE)) -> 0 | O32: =IF(O$68>$F$70,0,'6. Erfolgsrechnung Jahr'!$C30/VLOOKUP($C$16,$D$70:$E$81,2,FALSE)) -> 0
A33: - Leasing | C33: ='6. Erfolgsrechnung Jahr'!C31 -> 0 | D33: =IF(D$68>$F$70,0,'6. Erfolgsrechnung Jahr'!$C31/VLOOKUP($C$16,$D$70:$E$81,2,FALSE)) -> 0 | E33: =IF(E$68>$F$70,0,'6. Erfolgsrechnung Jahr'!$C31/VLOOKUP($C$16,$D$70:$E$81,2,FALSE)) -> 0 | F33: =IF(F$68>$F$70,0,'6. Erfolgsrechnung Jahr'!$C31/VLOOKUP($C$16,$D$70:$E$81,2,FALSE)) -> 0 | G33: =IF(G$68>$F$70,0,'6. Erfolgsrechnung Jahr'!$C31/VLOOKUP($C$16,$D$70:$E$81,2,FALSE)) -> 0 | H33: =IF(H$68>$F$70,0,'6. Erfolgsrechnung Jahr'!$C31/VLOOKUP($C$16,$D$70:$E$81,2,FALSE)) -> 0 | I33: =IF(I$68>$F$70,0,'6. Erfolgsrechnung Jahr'!$C31/VLOOKUP($C$16,$D$70:$E$81,2,FALSE)) -> 0 | J33: =IF(J$68>$F$70,0,'6. Erfolgsrechnung Jahr'!$C31/VLOOKUP($C$16,$D$70:$E$81,2,FALSE)) -> 0 | K33: =IF(K$68>$F$70,0,'6. Erfolgsrechnung Jahr'!$C31/VLOOKUP($C$16,$D$70:$E$81,2,FALSE)) -> 0 | L33: =IF(L$68>$F$70,0,'6. Erfolgsrechnung Jahr'!$C31/VLOOKUP($C$16,$D$70:$E$81,2,FALSE)) -> 0 | M33: =IF(M$68>$F$70,0,'6. Erfolgsrechnung Jahr'!$C31/VLOOKUP($C$16,$D$70:$E$81,2,FALSE)) -> 0 | N33: =IF(N$68>$F$70,0,'6. Erfolgsrechnung Jahr'!$C31/VLOOKUP($C$16,$D$70:$E$81,2,FALSE)) -> 0 | O33: =IF(O$68>$F$70,0,'6. Erfolgsrechnung Jahr'!$C31/VLOOKUP($C$16,$D$70:$E$81,2,FALSE)) -> 0
A34: - Miete und Pacht | C34: ='6. Erfolgsrechnung Jahr'!C32 -> 0 | D34: =IF(D$68>$F$70,0,'6. Erfolgsrechnung Jahr'!$C32/VLOOKUP($C$16,$D$70:$E$81,2,FALSE)) -> 0 | E34: =IF(E$68>$F$70,0,'6. Erfolgsrechnung Jahr'!$C32/VLOOKUP($C$16,$D$70:$E$81,2,FALSE)) -> 0 | F34: =IF(F$68>$F$70,0,'6. Erfolgsrechnung Jahr'!$C32/VLOOKUP($C$16,$D$70:$E$81,2,FALSE)) -> 0 | G34: =IF(G$68>$F$70,0,'6. Erfolgsrechnung Jahr'!$C32/VLOOKUP($C$16,$D$70:$E$81,2,FALSE)) -> 0 | H34: =IF(H$68>$F$70,0,'6. Erfolgsrechnung Jahr'!$C32/VLOOKUP($C$16,$D$70:$E$81,2,FALSE)) -> 0 | I34: =IF(I$68>$F$70,0,'6. Erfolgsrechnung Jahr'!$C32/VLOOKUP($C$16,$D$70:$E$81,2,FALSE)) -> 0 | J34: =IF(J$68>$F$70,0,'6. Erfolgsrechnung Jahr'!$C32/VLOOKUP($C$16,$D$70:$E$81,2,FALSE)) -> 0 | K34: =IF(K$68>$F$70,0,'6. Erfolgsrechnung Jahr'!$C32/VLOOKUP($C$16,$D$70:$E$81,2,FALSE)) -> 0 | L34: =IF(L$68>$F$70,0,'6. Erfolgsrechnung Jahr'!$C32/VLOOKUP($C$16,$D$70:$E$81,2,FALSE)) -> 0 | M34: =IF(M$68>$F$70,0,'6. Erfolgsrechnung Jahr'!$C32/VLOOKUP($C$16,$D$70:$E$81,2,FALSE)) -> 0 | N34: =IF(N$68>$F$70,0,'6. Erfolgsrechnung Jahr'!$C32/VLOOKUP($C$16,$D$70:$E$81,2,FALSE)) -> 0 | O34: =IF(O$68>$F$70,0,'6. Erfolgsrechnung Jahr'!$C32/VLOOKUP($C$16,$D$70:$E$81,2,FALSE)) -> 0
A35: ='6. Erfolgsrechnung Jahr'!A33 -> - … | C35: ='6. Erfolgsrechnung Jahr'!C33 -> 0 | D35: =IF(D$68>$F$70,0,'6. Erfolgsrechnung Jahr'!$C33/VLOOKUP($C$16,$D$70:$E$81,2,FALSE)) -> 0 | E35: =IF(E$68>$F$70,0,'6. Erfolgsrechnung Jahr'!$C33/VLOOKUP($C$16,$D$70:$E$81,2,FALSE)) -> 0 | F35: =IF(F$68>$F$70,0,'6. Erfolgsrechnung Jahr'!$C33/VLOOKUP($C$16,$D$70:$E$81,2,FALSE)) -> 0 | G35: =IF(G$68>$F$70,0,'6. Erfolgsrechnung Jahr'!$C33/VLOOKUP($C$16,$D$70:$E$81,2,FALSE)) -> 0 | H35: =IF(H$68>$F$70,0,'6. Erfolgsrechnung Jahr'!$C33/VLOOKUP($C$16,$D$70:$E$81,2,FALSE)) -> 0 | I35: =IF(I$68>$F$70,0,'6. Erfolgsrechnung Jahr'!$C33/VLOOKUP($C$16,$D$70:$E$81,2,FALSE)) -> 0 | J35: =IF(J$68>$F$70,0,'6. Erfolgsrechnung Jahr'!$C33/VLOOKUP($C$16,$D$70:$E$81,2,FALSE)) -> 0 | K35: =IF(K$68>$F$70,0,'6. Erfolgsrechnung Jahr'!$C33/VLOOKUP($C$16,$D$70:$E$81,2,FALSE)) -> 0 | L35: =IF(L$68>$F$70,0,'6. Erfolgsrechnung Jahr'!$C33/VLOOKUP($C$16,$D$70:$E$81,2,FALSE)) -> 0 | M35: =IF(M$68>$F$70,0,'6. Erfolgsrechnung Jahr'!$C33/VLOOKUP($C$16,$D$70:$E$81,2,FALSE)) -> 0 | N35: =IF(N$68>$F$70,0,'6. Erfolgsrechnung Jahr'!$C33/VLOOKUP($C$16,$D$70:$E$81,2,FALSE)) -> 0 | O35: =IF(O$68>$F$70,0,'6. Erfolgsrechnung Jahr'!$C33/VLOOKUP($C$16,$D$70:$E$81,2,FALSE)) -> 0
A36: ='6. Erfolgsrechnung Jahr'!A34 -> - … | C36: ='6. Erfolgsrechnung Jahr'!C34 -> 0 | D36: =IF(D$68>$F$70,0,'6. Erfolgsrechnung Jahr'!$C34/VLOOKUP($C$16,$D$70:$E$81,2,FALSE)) -> 0 | E36: =IF(E$68>$F$70,0,'6. Erfolgsrechnung Jahr'!$C34/VLOOKUP($C$16,$D$70:$E$81,2,FALSE)) -> 0 | F36: =IF(F$68>$F$70,0,'6. Erfolgsrechnung Jahr'!$C34/VLOOKUP($C$16,$D$70:$E$81,2,FALSE)) -> 0 | G36: =IF(G$68>$F$70,0,'6. Erfolgsrechnung Jahr'!$C34/VLOOKUP($C$16,$D$70:$E$81,2,FALSE)) -> 0 | H36: =IF(H$68>$F$70,0,'6. Erfolgsrechnung Jahr'!$C34/VLOOKUP($C$16,$D$70:$E$81,2,FALSE)) -> 0 | I36: =IF(I$68>$F$70,0,'6. Erfolgsrechnung Jahr'!$C34/VLOOKUP($C$16,$D$70:$E$81,2,FALSE)) -> 0 | J36: =IF(J$68>$F$70,0,'6. Erfolgsrechnung Jahr'!$C34/VLOOKUP($C$16,$D$70:$E$81,2,FALSE)) -> 0 | K36: =IF(K$68>$F$70,0,'6. Erfolgsrechnung Jahr'!$C34/VLOOKUP($C$16,$D$70:$E$81,2,FALSE)) -> 0 | L36: =IF(L$68>$F$70,0,'6. Erfolgsrechnung Jahr'!$C34/VLOOKUP($C$16,$D$70:$E$81,2,FALSE)) -> 0 | M36: =IF(M$68>$F$70,0,'6. Erfolgsrechnung Jahr'!$C34/VLOOKUP($C$16,$D$70:$E$81,2,FALSE)) -> 0 | N36: =IF(N$68>$F$70,0,'6. Erfolgsrechnung Jahr'!$C34/VLOOKUP($C$16,$D$70:$E$81,2,FALSE)) -> 0 | O36: =IF(O$68>$F$70,0,'6. Erfolgsrechnung Jahr'!$C34/VLOOKUP($C$16,$D$70:$E$81,2,FALSE)) -> 0
A37: ='6. Erfolgsrechnung Jahr'!A35 -> - … | C37: ='6. Erfolgsrechnung Jahr'!C35 -> 0 | D37: =IF(D$68>$F$70,0,'6. Erfolgsrechnung Jahr'!$C35/VLOOKUP($C$16,$D$70:$E$81,2,FALSE)) -> 0 | E37: =IF(E$68>$F$70,0,'6. Erfolgsrechnung Jahr'!$C35/VLOOKUP($C$16,$D$70:$E$81,2,FALSE)) -> 0 | F37: =IF(F$68>$F$70,0,'6. Erfolgsrechnung Jahr'!$C35/VLOOKUP($C$16,$D$70:$E$81,2,FALSE)) -> 0 | G37: =IF(G$68>$F$70,0,'6. Erfolgsrechnung Jahr'!$C35/VLOOKUP($C$16,$D$70:$E$81,2,FALSE)) -> 0 | H37: =IF(H$68>$F$70,0,'6. Erfolgsrechnung Jahr'!$C35/VLOOKUP($C$16,$D$70:$E$81,2,FALSE)) -> 0 | I37: =IF(I$68>$F$70,0,'6. Erfolgsrechnung Jahr'!$C35/VLOOKUP($C$16,$D$70:$E$81,2,FALSE)) -> 0 | J37: =IF(J$68>$F$70,0,'6. Erfolgsrechnung Jahr'!$C35/VLOOKUP($C$16,$D$70:$E$81,2,FALSE)) -> 0 | K37: =IF(K$68>$F$70,0,'6. Erfolgsrechnung Jahr'!$C35/VLOOKUP($C$16,$D$70:$E$81,2,FALSE)) -> 0 | L37: =IF(L$68>$F$70,0,'6. Erfolgsrechnung Jahr'!$C35/VLOOKUP($C$16,$D$70:$E$81,2,FALSE)) -> 0 | M37: =IF(M$68>$F$70,0,'6. Erfolgsrechnung Jahr'!$C35/VLOOKUP($C$16,$D$70:$E$81,2,FALSE)) -> 0 | N37: =IF(N$68>$F$70,0,'6. Erfolgsrechnung Jahr'!$C35/VLOOKUP($C$16,$D$70:$E$81,2,FALSE)) -> 0 | O37: =IF(O$68>$F$70,0,'6. Erfolgsrechnung Jahr'!$C35/VLOOKUP($C$16,$D$70:$E$81,2,FALSE)) -> 0
A38: - Abschreibung | C38: ='6. Erfolgsrechnung Jahr'!C36 -> 0 | D38: =IF(D$68>$F$70,0,'6. Erfolgsrechnung Jahr'!$C36/VLOOKUP($C$16,$D$70:$E$81,2,FALSE)) -> 0 | E38: =IF(E$68>$F$70,0,'6. Erfolgsrechnung Jahr'!$C36/VLOOKUP($C$16,$D$70:$E$81,2,FALSE)) -> 0 | F38: =IF(F$68>$F$70,0,'6. Erfolgsrechnung Jahr'!$C36/VLOOKUP($C$16,$D$70:$E$81,2,FALSE)) -> 0 | G38: =IF(G$68>$F$70,0,'6. Erfolgsrechnung Jahr'!$C36/VLOOKUP($C$16,$D$70:$E$81,2,FALSE)) -> 0 | H38: =IF(H$68>$F$70,0,'6. Erfolgsrechnung Jahr'!$C36/VLOOKUP($C$16,$D$70:$E$81,2,FALSE)) -> 0 | I38: =IF(I$68>$F$70,0,'6. Erfolgsrechnung Jahr'!$C36/VLOOKUP($C$16,$D$70:$E$81,2,FALSE)) -> 0 | J38: =IF(J$68>$F$70,0,'6. Erfolgsrechnung Jahr'!$C36/VLOOKUP($C$16,$D$70:$E$81,2,FALSE)) -> 0 | K38: =IF(K$68>$F$70,0,'6. Erfolgsrechnung Jahr'!$C36/VLOOKUP($C$16,$D$70:$E$81,2,FALSE)) -> 0 | L38: =IF(L$68>$F$70,0,'6. Erfolgsrechnung Jahr'!$C36/VLOOKUP($C$16,$D$70:$E$81,2,FALSE)) -> 0 | M38: =IF(M$68>$F$70,0,'6. Erfolgsrechnung Jahr'!$C36/VLOOKUP($C$16,$D$70:$E$81,2,FALSE)) -> 0 | N38: =IF(N$68>$F$70,0,'6. Erfolgsrechnung Jahr'!$C36/VLOOKUP($C$16,$D$70:$E$81,2,FALSE)) -> 0 | O38: =IF(O$68>$F$70,0,'6. Erfolgsrechnung Jahr'!$C36/VLOOKUP($C$16,$D$70:$E$81,2,FALSE)) -> 0
A39: = Fixkosten | C39: =SUM(C15:C38) -> 12000 | D39: =SUM(D15:D38) -> 1000 | E39: 1000 | F39: 1000 | G39: 1000 | H39: 1000 | I39: 1000 | J39: 1000 | K39: 1000 | L39: 1000 | M39: 1000 | N39: 1000 | O39: 1000
A41: = Betriebsergebnis (EBIT) | C41: =C14-C39 -> -12000 | D41: -1000 | E41: -1000 | F41: -1000 | G41: -1000 | H41: -1000 | I41: -1000 | J41: -1000 | K41: -1000 | L41: -1000 | M41: -1000 | N41: -1000 | O41: -1000
D68: 12 | E68: 11 | F68: 10 | G68: 9 | H68: 8 | I68: 7 | J68: 6 | K68: 5 | L68: 4 | M68: 3 | N68: 2 | O68: 1
D70: Januar | E70: 12 | F70: =INDEX(E70:E81,G70) -> 12 | G70: =VLOOKUP(C16,D83:E94,2,FALSE) -> 1
D71: Februar | E71: 11
D72: März | E72: 10
D73: April | E73: 9
D74: Mai | E74: 8
D75: Juni | E75: 7
D76: Juli | E76: 6
D77: August | E77: 5
D78: September | E78: 4
D79: Oktober | E79: 3
D80: November | E80: 2
D81: Dezember | E81: 1
D83: Januar | E83: 1
D84: Februar | E84: 2
D85: März | E85: 3
D86: April | E86: 4
D87: Mai | E87: 5
D88: Juni | E88: 6
D89: Juli | E89: 7
D90: August | E90: 8
D91: September | E91: 9
D92: Oktober | E92: 10
D93: November | E93: 11
D94: Dezember | E94: 12

Sheet 7. Finanzplanung
A1: Finanzplanung und Kapitalbedarfsplanung
A2: Zahlungsfristen: | E2: Ihre Werte:
A3: Meine Ausgangsrechnungen (an Kunden) werden nach wie vielen Tagen bezahlt? (durchschnittlich) | F3: Tagen
A4: Meine Eingangsrechnungen (von Lieferanten) bezahle ich nach wie vielen Tagen? (durchschnittlich) | F4: Tagen
A5: Lagerwert in % zum Umsatz | F5: vom Umsatz
B6: Jahr 1 | C6: Jahr 2 | D6: Jahr 3 | E6: Jahr 4 | F6: Jahr 5
A7: Kapitalbedarf
A8: Anlagevermögen | B8: ='3. Investitionsplanung'!C25 -> 0 | C8: ='3. Investitionsplanung'!D25 -> 0 | D8: ='3. Investitionsplanung'!E25 -> 0 | E8: ='3. Investitionsplanung'!F25 -> 0 | F8: ='3. Investitionsplanung'!G25 -> 0
A9: Gründungskosten | B9: ='3. Investitionsplanung'!C44 -> 0 | C9: ='3. Investitionsplanung'!D44 -> 0 | D9: ='3. Investitionsplanung'!E44 -> 0 | E9: ='3. Investitionsplanung'!F44 -> 0 | F9: ='3. Investitionsplanung'!G44 -> 0
A10: Mehrwertsteuer | B10: =('3. Investitionsplanung'!C25+'3. Investitionsplanung'!C44)*0.22 -> 0 | C10: =('3. Investitionsplanung'!D25/122)*-100+'3. Investitionsplanung'!D25 -> 0 | D10: =('3. Investitionsplanung'!E25/122)*-100+'3. Investitionsplanung'!E25 -> 0 | E10: =('3. Investitionsplanung'!F25/122)*-100+'3. Investitionsplanung'!F25 -> 0 | F10: =('3. Investitionsplanung'!G25/122)*-100+'3. Investitionsplanung'!G25 -> 0
A11: Kaution (Miete…)
A12: Lagerwertveränderung | B12: =B5010*E5 -> 0 | C12: =C5010*$E$5-B12 -> 0 | D12: =D5010*$E$5-C12-B12 -> 0 | E12: =E5010*$E$5-D12-C12-B12 -> 0 | F12: =F5010*$E$5-E12-D12-C12-B12 -> 0 | I12: =B12 -> 0 | J12: =SUM(B12:C12) -> 0 | K12: =SUM(B12:D12) -> 0 | L12: =SUM(B12:E12) -> 0 | M12: =SUM(B12:F12) -> 0
A13: Kundenforderungen (Veränderung) | B13: =B5010/365*E3 -> 0 | C13: =C5010/365*$E$3-B13 -> 0 | D13: =D5010/365*$E$3-B13-C13 -> 0 | E13: =E5010/365*$E$3-B13-C13-D13 -> 0 | F13: =F5010/365*$E$3-B13-C13-D13-E13 -> 0 | I13: =B13 -> 0 | J13: =SUM(B13:C13) -> 0 | K13: =SUM(B13:D13) -> 0 | L13: =SUM(B13:E13) -> 0 | M13: =SUM(B13:F13) -> 0
A14: Tilgung / Rückzahlung Darlehen | B14: ='8. Tilgungsplan Überblick'!C5 -> 0 | C14: ='8. Tilgungsplan Überblick'!C6 -> 0 | D14: ='8. Tilgungsplan Überblick'!C7 -> 0 | E14: ='8. Tilgungsplan Überblick'!C8 -> 0 | F14: ='8. Tilgungsplan Überblick'!C9 -> 0
A15: Kapitalbedarf des Jahres | B15: =SUM(B8:B14) -> 0 | C15: =SUM(C8:C14) -> 0 | D15: =SUM(D8:D14) -> 0 | E15: =SUM(E8:E14) -> 0 | F15: =SUM(F8:F14) -> 0
A16: Kumulierter Kapitalbedarf / nur informativer Wert | B16: =B15 -> 0 | C16: =C15+B16 -> 0 | D16: =D15+C16 -> 0 | E16: =E15+D16 -> 0 | F16: =F15+E16 -> 0
A18: Finanzierung
A19: Eigenkapital und / oder Gesellschafterbeteiligung
A20: Einbringung von Anlagen
A21: Zinslose Kredite
A22: Öffentliche Förderungen
A23: Außenfinanzierung ohne Zinsbelastung jährlich | B23: =SUM(B19:B22) -> 0 | C23: =SUM(C19:C22) -> 0 | D23: =SUM(D19:D22) -> 0 | E23: =SUM(E19:E22) -> 0 | F23: =SUM(F19:F22) -> 0
A24: Außenfinanzierung ohne Zinsbelastung kumuliert | B24: =B23 -> 0 | C24: =C23+B24 -> 0 | D24: =D23+C24 -> 0 | E24: =E23+D24 -> 0 | F24: =F23+E24 -> 0
A25: Brutto Cash flow aus laufender Geschäftstätigkeit | B25: ='6. Erfolgsrechnung Jahr'!C47 -> -17000 | C25: ='6. Erfolgsrechnung Jahr'!E47 -> -16095.12601 | D25: ='6. Erfolgsrechnung Jahr'!G47 -> -15145.00832 | E25: ='6. Erfolgsrechnung Jahr'!I47 -> -14147.38474 | F25: ='6. Erfolgsrechnung Jahr'!K47 -> -13099.87999
A26: Mehrwertsteuer von Investitionen aus Vorjahr | C26: =B10 -> 0 | D26: =C10 -> 0 | E26: =D10 -> 0 | F26: =E10 -> 0
A27: Lieferantenverbindlichkeiten (Veränderung) | B27: =B5011/365*E4 -> 0 | C27: =C5011/365*$E$4-B27 -> 0 | D27: =D5011/365*$E$4-B27-C27 -> 0 | E27: =E5011/365*$E$4-B27-C27-D27 -> 0 | F27: =F5011/365*$E$4-B27-C27-D27-E27 -> 0 | I27: =B27 -> 0 | J27: =SUM(B27:C27) -> 0 | K27: =SUM(B27:D27) -> 0 | L27: =SUM(B27:E27) -> 0 | M27: =SUM(B27:F27) -> 0
A28: Innenfinanzierung des Jahres | B28: =B25+B27 -> -17000 | C28: =C25+C26+C27 -> -16095.12601 | D28: =D25+D26+D27 -> -15145.00832 | E28: =E25+E26+E27 -> -14147.38474 | F28: =F25+F26+F27 -> -13099.87999
A29: Innenfinanzierung kumuliert | B29: =B25+B23+B27 -> -17000 | C29: =C28+B29 -> -33095.12601 | D29: =D28+C29 -> -48240.13433 | E29: =E28+D29 -> -62387.51907 | F29: =F28+E29 -> -75487.39906
A30: zur Verfügung stehendes Kapital ohne Zinsbelastung | B30: =B23+B28 -> -17000 | C30: =C23+C28 -> -16095.12601 | D30: =D23+D28 -> -15145.00832 | E30: =E23+E28 -> -14147.38474 | F30: =F23+F28 -> -13099.87999
A32: =A15 -> Kapitalbedarf des Jahres | B32: 0 | C32: 0 | D32: 0 | E32: 0 | F32: 0
A33: =A30 -> zur Verfügung stehendes Kapital ohne Zinsbelastung | B33: -17000 | C33: -16095.12601 | D33: -15145.00832 | E33: -14147.38474 | F33: -13099.87999
A34: Finanzierungsüberschuss/-lücke | B34: =B33-B32 -> -17000 | C34: =C33-C32 -> -16095.12601 | D34: =D33-D32 -> -15145.00832 | E34: =E33-E32 -> -14147.38474 | F34: =F33-F32 -> -13099.87999
A35: Außenfinanzierung mit Zinsbelastung (Fremdkapital)
A36: Langfristige Finanzierungen
A37: Darlehen 1 (Bank, Gesellschafter, andere)
A38: Laufzeit (in Jahren)
A39: Zinssatz
A40: Tilgungsfreier Zeitraum
A41: Darlehen 2 (Bank, Gesellschafter, andere)
A42: Laufzeit (in Jahren)
A43: Zinssatz
A44: Tilgungsfreier Zeitraum
A45: Darlehen 3 (Bank, Gesellschafter, andere)
A46: Laufzeit (in Jahren)
A47: Zinssatz
A48: Tilgungsfreier Zeitraum
A49: Außenfinanzierung mit Zinsbelastung langfristig | B49: =B37+B41+B45 -> 0 | C49: =C37+C41+C45 -> 0 | D49: =D37+D41+D45 -> 0 | E49: =E37+E41+E45 -> 0 | F49: =F37+F41+F45 -> 0
A50: Außenfinanzierung mit Zinsbelastung kumuliert | B50: =B49 -> 0 | C50: =C49+B50-B14 -> 0 | D50: =D49+C50-C14 -> 0 | E50: =E49+D50-D14 -> 0 | F50: =F49+E50-E14 -> 0
A51: Kurzfristige Finanzierungen
A52: Kontokorrent Anfangsbestand | C52: =B54 -> -17000 | D52: =C54 -> -33095.12601 | E52: =D54 -> -48240.13433 | F52: =E54 -> -62387.51907
A53: Kontokorrent Rahmen | I53: =I12+I13-I27 -> 0 | J53: =J12+J13-J27 -> 0 | K53: =K12+K13-K27 -> 0 | L53: =L12+L13-L27 -> 0 | M53: =M12+M13-M27 -> 0
A54: Kontokorrent Endbestand | B54: =B34+B49+B52 -> -17000 | C54: =C34+C49+C52 -> -33095.12601 | D54: =D34+D49+D52 -> -48240.13433 | E54: =E34+E49+E52 -> -62387.51907 | F54: =F34+F49+F52 -> -75487.39906
A55: Unter-/Überdeckung K/K | B55: =B53+B54 -> -17000 | C55: =C53+C54 -> -33095.12601 | D55: =D53+D54 -> -48240.13433 | E55: =E53+E54 -> -62387.51907 | F55: =F53+F54 -> -75487.39906
A56: Veränderung Außenfinanzierung mit Zinsbelastung | B56: =IF(B54<0,B49-B54,B49) -> 17000 | C56: =IF(C54<0,C49-C54,C49) -> 33095.12601 | D56: =IF(D54<0,D49-D54,D49) -> 48240.13433 | E56: =IF(E54<0,E49-E54,E49) -> 62387.51907 | F56: =IF(F54<0,F49-F54,F49) -> 75487.39906
A58: Berechnung der Fremdkapitalzinsen
A59: verzinsliches Fremdkapital kumuliert am Jahresende | B59: =-B54+B50-B14 -> 17000 | C59: =-C54+C50-C14 -> 33095.12601 | D59: =-D54+D50-D14 -> 48240.13433 | E59: =-E54+E50-E14 -> 62387.51907 | F59: =-F54+F50-F14 -> 75487.39906
A60: Zinssatz aktiv (Habenzinsen) Kontokorrent
A61: Zinssatz passiv (Sollzinsen) Kontokorrent
A62: Zinsen Kontokorrent | B62: =B5018+B5019 -> 0 | C62: =C5018+C5019 -> 0 | D62: =D5018+D5019 -> 0 | E62: =E5018+E5019 -> 0 | F62: =F5018+F5019 -> 0
A63: Habenzinsen Kontokorrent | B63: =B5018 -> 0 | C63: 0 | D63: 0 | E63: 0 | F63: 0
A64: Sollzinsen Kontokorrent | B64: 0 | C64: 0 | D64: 0 | E64: 0 | F64: 0
A65: Zinsen Darlehen | B65: =-'8. Tilgungsplan Überblick'!D5 -> 0 | C65: =-'8. Tilgungsplan Überblick'!D6 -> 0 | D65: =-'8. Tilgungsplan Überblick'!D7 -> 0 | E65: =-'8. Tilgungsplan Überblick'!D8 -> 0 | F65: =-'8. Tilgungsplan Überblick'!D9 -> 0
A66: Zinsergebnis | B66: =SUM(B63:B65) -> 0 | C66: =SUM(C63:C65) -> 0 | D66: =SUM(D63:D65) -> 0 | E66: =SUM(E63:E65) -> 0 | F66: =SUM(F63:F65) -> 0
A67: Zinsen Erfolgsrechnung | B67: ='6. Erfolgsrechnung Jahr'!C40 -> 5000 | C67: ='6. Erfolgsrechnung Jahr'!E40 -> 4095.126009 | D67: ='6. Erfolgsrechnung Jahr'!G40 -> 3145.008319 | E67: ='6. Erfolgsrechnung Jahr'!I40 -> 2147.384745 | F67: ='6. Erfolgsrechnung Jahr'!K40 -> 1099.879991
A68: Ergebnis muss 0 sein (bitte auf das graue Feld klicken) | B68: =B66+B67 -> 5000 | C68: =C66+C67 -> 4095.126009 | D68: 3145.008319 | E68: 2147.384745 | F68: 1099.879991
A137: Jahr | B137: =B6 -> Jahr 1 | C137: =C6 -> Jahr 2 | D137: =D6 -> Jahr 3 | E137: =E6 -> Jahr 4 | F137: =F6 -> Jahr 5
A138: =A$32 -> Kapitalbedarf des Jahres | B138: 0 | C138: 0 | D138: 0 | E138: 0 | F138: 0
A139: =A$33 -> zur Verfügung stehendes Kapital ohne Zinsbelastung | B139: -17000 | C139: -16095.12601 | D139: -15145.00832 | E139: -14147.38474 | F139: -13099.87999
A140: =A$34 -> Finanzierungsüberschuss/-lücke | B140: -17000 | C140: -16095.12601 | D140: -15145.00832 | E140: -14147.38474 | F140: -13099.87999
A141: =A$56 -> Veränderung Außenfinanzierung mit Zinsbelastung | B141: 17000 | C141: 33095.12601 | D141: 48240.13433 | E141: 62387.51907 | F141: 75487.39906
A142: =A$54 -> Kontokorrent Endbestand | B142: -17000 | C142: -33095.12601 | D142: -48240.13433 | E142: -62387.51907 | F142: -75487.39906
A147: Umsatz Verbergen | B147: ='6. Erfolgsrechnung Jahr'!C4 -> 0 | C147: ='6. Erfolgsrechnung Jahr'!E4 -> 0 | D147: ='6. Erfolgsrechnung Jahr'!G4 -> 0 | E147: ='6. Erfolgsrechnung Jahr'!I4 -> 0 | F147: ='6. Erfolgsrechnung Jahr'!K4 -> 0
A148: Wareneinkauf Verbergen | B148: ='6. Erfolgsrechnung Jahr'!C5 -> 0 | C148: ='6. Erfolgsrechnung Jahr'!E5 -> 0 | D148: ='6. Erfolgsrechnung Jahr'!G5 -> 0 | E148: ='6. Erfolgsrechnung Jahr'!I5 -> 0 | F148: ='6. Erfolgsrechnung Jahr'!K5 -> 0
A155: Habenzinsen Kontokorrent | B155: =IF((B$52+B$54)/2>0,((B$52+B$54)/2)*B60,0) -> 0 | C155: =IF((C$52+C$54)/2>0,((C$52+C$54)/2)*C61,0) -> 0 | D155: =IF((D$52+D$54)/2>0,((D$52+D$54)/2)*D61,0) -> 0 | E155: =IF((E$52+E$54)/2>0,((E$52+E$54)/2)*E61,0) -> 0 | F155: =IF((F$52+F$54)/2>0,((F$52+F$54)/2)*F61,0) -> 0
A156: Sollzinsen Kontokorrent | B156: =IF((B$52+B$54)/2<0,((B$52+B$54)/2)*B60,0) -> 0 | C156: =IF((C$52+C$54)/2<0,((C$52+C$54)/2)*C60,0) -> 0 | D156: =IF((D$52+D$54)/2<0,((D$52+D$54)/2)*D60,0) -> 0 | E156: =IF((E$52+E$54)/2<0,((E$52+E$54)/2)*E60,0) -> 0 | F156: =IF((F$52+F$54)/2<0,((F$52+F$54)/2)*F60,0) -> 0
A157: Sollzinsen Darlehen | B157: =B65 -> 0 | C157: =C65 -> 0 | D157: =D65 -> 0 | E157: =E65 -> 0 | F157: =F65 -> 0
A5000: Jahr | B5000: =B6 -> Jahr 1 | C5000: =C6 -> Jahr 2 | D5000: =D6 -> Jahr 3 | E5000: =E6 -> Jahr 4 | F5000: =F6 -> Jahr 5
A5001: =A32 -> Kapitalbedarf des Jahres | B5001: 0 | C5001: 0 | D5001: 0 | E5001: 0 | F5001: 0
A5002: zur Verfügung stehendes Kapital ohne Zinsbelastung | B5002: -17000 | C5002: -16095.12601 | D5002: -15145.00832 | E5002: -14147.38474 | F5002: -13099.87999
A5003: Finanzierungsüberschuss/-lücke | B5003: -17000 | C5003: -16095.12601 | D5003: -15145.00832 | E5003: -14147.38474 | F5003: -13099.87999
A5004: =A56 -> Veränderung Außenfinanzierung mit Zinsbelastung | B5004: 17000 | C5004: 33095.12601 | D5004: 48240.13433 | E5004: 62387.51907 | F5004: 75487.39906
A5005: =A54 -> Kontokorrent Endbestand | B5005: -17000 | C5005: -33095.12601 | D5005: -48240.13433 | E5005: -62387.51907 | F5005: -75487.39906
A5010: Umsatz Verbergen | B5010: ='6. Erfolgsrechnung Jahr'!C4 -> 0 | C5010: ='6. Erfolgsrechnung Jahr'!E4 -> 0 | D5010: ='6. Erfolgsrechnung Jahr'!G4 -> 0 | E5010: ='6. Erfolgsrechnung Jahr'!I4 -> 0 | F5010: ='6. Erfolgsrechnung Jahr'!K4 -> 0
A5011: Wareneinkauf Verbergen | B5011: ='6. Erfolgsrechnung Jahr'!C5 -> 0 | C5011: ='6. Erfolgsrechnung Jahr'!E5 -> 0 | D5011: ='6. Erfolgsrechnung Jahr'!G5 -> 0 | E5011: ='6. Erfolgsrechnung Jahr'!I5 -> 0 | F5011: ='6. Erfolgsrechnung Jahr'!K5 -> 0
A5018: Habenzinsen Kontokorrent | B5018: =IF((B$52+B$54)/2>0,((B$52+B$54)/2)*B60,0) -> 0 | C5018: =IF((C$52+C$54)/2>0,((C$52+C$54)/2)*C60,0) -> 0 | D5018: 0 | E5018: 0 | F5018: 0
A5019: Sollzinsen Kontokorrent | B5019: =IF((B$52+B$54)/2<0,((B$52+B$54)/2)*B61,0) -> 0 | C5019: =IF((C$52+C$54)/2<0,((C$52+C$54)/2)*C61,0) -> 0 | D5019: 0 | E5019: 0 | F5019: 0
A5020: Sollzinsen Darlehen | B5020: =B65 -> 0 | C5020: =C65 -> 0 | D5020: =D65 -> 0 | E5020: =E65 -> 0 | F5020: =F65 -> 0

Sheet 9. Tilgungsplan Detail (hidden)
A1: Tilgungspläne
B3: Darlehen Jahr 1 | C3: Darlehen Jahr 2 | D3: Darlehen Jahr 3 | E3: Darlehen Jahr 4 | F3: Darlehen Jahr 5 | G3: Summe Darlehen | I3: Finanzierung Jahr 1 | J3: Finanzierung Jahr 2 | K3: Finanzierung Jahr 3 | L3: Finanzierung Jahr 4 | M3: Finanzierung Jahr 5 | N3: Summe Finanzierungen Gesellschafter | P3: Andere Finanzierung Jahr 1 | Q3: Andere Finanzierung Jahr 2 | R3: Andere Finanzierung Jahr 3 | S3: Andere Finanzierung Jahr 4 | T3: Andere Finanzierung Jahr 5 | U3: Summe andere Finanzierungen
A4: Summe | B4: ='7. Finanzplanung'!B37 -> 0 | C4: ='7. Finanzplanung'!C37 -> 0 | D4: ='7. Finanzplanung'!D37 -> 0 | E4: ='7. Finanzplanung'!E37 -> 0 | F4: ='7. Finanzplanung'!F37 -> 0 | I4: ='7. Finanzplanung'!B41 -> 0 | J4: ='7. Finanzplanung'!C41 -> 0 | K4: ='7. Finanzplanung'!D41 -> 0 | L4: ='7. Finanzplanung'!E41 -> 0 | M4: ='7. Finanzplanung'!F41 -> 0 | P4: ='7. Finanzplanung'!B45 -> 0 | Q4: ='7. Finanzplanung'!C45 -> 0 | R4: ='7. Finanzplanung'!D45 -> 0 | S4: ='7. Finanzplanung'!E45 -> 0 | T4: ='7. Finanzplanung'!F45 -> 0
A5: Laufzeit | B5: ='7. Finanzplanung'!B38 -> 0 | C5: ='7. Finanzplanung'!C38 -> 0 | D5: ='7. Finanzplanung'!D38 -> 0 | E5: ='7. Finanzplanung'!E38 -> 0 | F5: ='7. Finanzplanung'!F38 -> 0 | I5: ='7. Finanzplanung'!B42 -> 0 | J5: ='7. Finanzplanung'!C42 -> 0 | K5: ='7. Finanzplanung'!D42 -> 0 | L5: ='7. Finanzplanung'!E42 -> 0 | M5: ='7. Finanzplanung'!F42 -> 0 | P5: ='7. Finanzplanung'!B46 -> 0 | Q5: ='7. Finanzplanung'!C46 -> 0 | R5: ='7. Finanzplanung'!D46 -> 0 | S5: ='7. Finanzplanung'!E46 -> 0 | T5: ='7. Finanzplanung'!F46 -> 0
A6: Zinssatz | B6: ='7. Finanzplanung'!B39 -> 0 | C6: ='7. Finanzplanung'!C39 -> 0 | D6: ='7. Finanzplanung'!D39 -> 0 | E6: ='7. Finanzplanung'!E39 -> 0 | F6: ='7. Finanzplanung'!F39 -> 0 | I6: ='7. Finanzplanung'!B43 -> 0 | J6: ='7. Finanzplanung'!C43 -> 0 | K6: ='7. Finanzplanung'!D43 -> 0 | L6: ='7. Finanzplanung'!E43 -> 0 | M6: ='7. Finanzplanung'!F43 -> 0 | P6: ='7. Finanzplanung'!B47 -> 0 | Q6: ='7. Finanzplanung'!C47 -> 0 | R6: ='7. Finanzplanung'!D47 -> 0 | S6: ='7. Finanzplanung'!E47 -> 0 | T6: ='7. Finanzplanung'!F47 -> 0
A7: Tilgungsfreier Zeitraum | B7: ='7. Finanzplanung'!B40 -> 0 | C7: ='7. Finanzplanung'!C40 -> 0 | D7: ='7. Finanzplanung'!D40 -> 0 | E7: ='7. Finanzplanung'!E40 -> 0 | F7: ='7. Finanzplanung'!F40 -> 0 | I7: ='7. Finanzplanung'!B44 -> 0 | J7: ='7. Finanzplanung'!C44 -> 0 | K7: ='7. Finanzplanung'!D44 -> 0 | L7: ='7. Finanzplanung'!E44 -> 0 | M7: ='7. Finanzplanung'!F44 -> 0 | P7: ='7. Finanzplanung'!B48 -> 0 | Q7: ='7. Finanzplanung'!C48 -> 0 | R7: ='7. Finanzplanung'!D48 -> 0 | S7: ='7. Finanzplanung'!E48 -> 0 | T7: ='7. Finanzplanung'!F48 -> 0
A9: Kapitalanteil
A10: 1 | B10: =$B$34*IF(B$4=0,0,IF($A10>B$5,0,IF(B$7=0,PPMT(B$6,$A10,B$5,B$4),IF(B$7>=$A10,0,PPMT(B$6,$A10-B$7,B$5-B$7,B$4))))) -> 0 | G10: =SUM(B10:F10) -> 0 | I10: =$B$34*IF(I$4=0,0,IF($A10>I$5,0,IF(I$7=0,PPMT(I$6,$A10,I$5,I$4),IF(I$7>=$A10,0,PPMT(I$6,$A10-I$7,I$5-I$7,I$4))))) -> 0 | N10: =SUM(I10:M10) -> 0 | P10: =$B$34*IF(P$4=0,0,IF($A10>P$5,0,IF(P$7=0,PPMT(P$6,$A10,P$5,P$4),IF(P$7>=$A10,0,PPMT(P$6,$A10-P$7,P$5-P$7,P$4))))) -> 0 | U10: =SUM(P10:T10) -> 0
A11: 2 | B11: 0 | C11: =$B$34*IF(C$4=0,0,IF($A11-1>C$5,0,IF($C$7=0,PPMT(C$6,$A11-1,C$5,C$4),IF(C$7>=$A11-1,0,PPMT(C$6,$A11-C$7-1,C$5-C$7,C$4))))) -> 0 | G11: 0 | I11: 0 | J11: =$B$34*IF(J$4=0,0,IF($A11-1>J$5,0,IF($J$7=0,PPMT(J$6,$A11-1,J$5,J$4),IF(J$7>=$A11-1,0,PPMT(J$6,$A11-J$7-1,J$5-J$7,J$4))))) -> 0 | N11: 0 | P11: 0 | Q11: =$B$34*IF(Q$4=0,0,IF($A11-1>Q$5,0,IF($Q$7=0,PPMT(Q$6,$A11-1,Q$5,Q$4),IF(Q$7>=$A11-1,0,PPMT(Q$6,$A11-Q$7-1,Q$5-Q$7,Q$4))))) -> 0 | U11: 0
A12: 3 | B12: 0 | C12: 0 | D12: =$B$34*IF(D$4=0,0,IF($A12-2>D$5,0,IF($D$7=0,PPMT(D$6,$A12-2,D$5,D$4),IF(D$7>=$A12-2,0,PPMT(D$6,$A12-D$7-2,D$5-D$7,D$4))))) -> 0 | G12: 0 | I12: 0 | J12: 0 | K12: =$B$34*IF(K$4=0,0,IF($A12-2>K$5,0,IF($K$7=0,PPMT(K$6,$A12-2,K$5,K$4),IF(K$7>=$A12-2,0,PPMT(K$6,$A12-K$7-2,K$5-K$7,K$4))))) -> 0 | N12: 0 | P12: 0 | Q12: 0 | R12: =$B$34*IF(R$4=0,0,IF($A12-2>R$5,0,IF($R$7=0,PPMT(R$6,$A12-2,R$5,R$4),IF(R$7>=$A12-2,0,PPMT(R$6,$A12-R$7-2,R$5-R$7,R$4))))) -> 0 | U12: 0
A13: 4 | B13: 0 | C13: 0 | D13: 0 | E13: =$B$34*IF(E$4=0,0,IF($A13-3>E$5,0,IF($E$7=0,PPMT(E$6,$A13-3,E$5,E$4),IF(E$7>=$A13-3,0,PPMT(E$6,$A13-E$7-3,E$5-E$7,E$4))))) -> 0 | G13: 0 | I13: 0 | J13: 0 | K13: 0 | L13: =$B$34*IF(L$4=0,0,IF($A13-3>L$5,0,IF($L$7=0,PPMT(L$6,$A13-3,L$5,L$4),IF(L$7>=$A13-3,0,PPMT(L$6,$A13-L$7-3,L$5-L$7,L$4))))) -> 0 | N13: 0 | P13: 0 | Q13: 0 | R13: 0 | S13: =$B$34*IF(S$4=0,0,IF($A13-3>S$5,0,IF($S$7=0,PPMT(S$6,$A13-3,S$5,S$4),IF(S$7>=$A13-3,0,PPMT(S$6,$A13-S$7-3,S$5-S$7,S$4))))) -> 0 | U13: 0
A14: 5 | B14: 0 | C14: 0 | D14: 0 | E14: 0 | F14: =$B$34*IF(F$4=0,0,IF($A14-4>F$5,0,IF($F$7=0,PPMT(F$6,$A14-4,F$5,F$4),IF(F$7>=$A14-4,0,PPMT(F$6,$A14-F$7-4,F$5-F$7,F$4))))) -> 0 | G14: 0 | I14: 0 | J14: 0 | K14: 0 | L14: 0 | M14: =$B$34*IF(M$4=0,0,IF($A14-4>M$5,0,IF($M$7=0,PPMT(M$6,$A14-4,M$5,M$4),IF(M$7>=$A14-4,0,PPMT(M$6,$A14-M$7-4,M$5-M$7,M$4))))) -> 0 | N14: 0 | P14: 0 | Q14: 0 | R14: 0 | S14: 0 | T14: =$B$34*IF(T$4=0,0,IF($A14-4>T$5,0,IF($T$7=0,PPMT(T$6,$A14-4,T$5,T$4),IF(T$7>=$A14-4,0,PPMT(T$6,$A14-T$7-4,T$5-T$7,T$4))))) -> 0 | U14: 0
A15: 6 | B15: 0 | C15: 0 | D15: 0 | E15: 0 | F15: 0 | G15: 0 | I15: 0 | J15: 0 | K15: 0 | L15: 0 | M15: 0 | N15: 0 | P15: 0 | Q15: 0 | R15: 0 | S15: 0 | T15: 0 | U15: 0
A16: 7 | B16: 0 | C16: 0 | D16: 0 | E16: 0 | F16: 0 | G16: 0 | I16: 0 | J16: 0 | K16: 0 | L16: 0 | M16: 0 | N16: 0 | P16: 0 | Q16: 0 | R16: 0 | S16: 0 | T16: 0 | U16: 0
A17: 8 | B17: 0 | C17: 0 | D17: 0 | E17: 0 | F17: 0 | G17: 0 | I17: 0 | J17: 0 | K17: 0 | L17: 0 | M17: 0 | N17: 0 | P17: 0 | Q17: 0 | R17: 0 | S17: 0 | T17: 0 | U17: 0
A18: 9 | B18: 0 | C18: 0 | D18: 0 | E18: 0 | F18: 0 | G18: 0 | I18: 0 | J18: 0 | K18: 0 | L18: 0 | M18: 0 | N18: 0 | P18: 0 | Q18: 0 | R18: 0 | S18: 0 | T18: 0 | U18: 0
A19: 10 | B19: 0 | C19: 0 | D19: 0 | E19: 0 | F19: 0 | G19: 0 | I19: 0 | J19: 0 | K19: 0 | L19: 0 | M19: 0 | N19: 0 | P19: 0 | Q19: 0 | R19: 0 | S19: 0 | T19: 0 | U19: 0
A21: Zinsanteil
A22: 1 | B22: =IF(B$4=0,0,IF($A22-1>B$5,0,B4*B6)) -> 0 | G22: =SUM(B22:F22) -> 0 | I22: =IF(I$4=0,0,IF($A22-1>I$5,0,I4*I6)) -> 0 | N22: =SUM(I22:M22) -> 0 | P22: =IF(P$4=0,0,IF($A22-1>P$5,0,P4*P6)) -> 0 | U22: =SUM(P22:T22) -> 0
A23: 2 | B23: =IF(B$4=0,0,IF($A23-1>B$5,0,(B4-B10)*B6)) -> 0 | C23: =IF(C$4=0,0,IF($A23-1>C$5,0,C4*C6)) -> 0 | G23: 0 | I23: =IF(I$4=0,0,IF($A23-1>I$5,0,(I4-I10)*I6)) -> 0 | J23: =IF(J$4=0,0,IF($A23-1>J$5,0,J4*J6)) -> 0 | N23: 0 | P23: =IF(P$4=0,0,IF($A23-1>P$5,0,(P4-P10)*P6)) -> 0 | Q23: =IF(Q$4=0,0,IF($A23-1>Q$5,0,Q4*Q6)) -> 0 | U23: 0
A24: 3 | B24: =IF(B$4=0,0,IF($A24-1>B$5,0,(B4-B10-B11)*B6)) -> 0 | C24: =IF(C$4=0,0,IF($A24-1>C$5,0,(C4-C11)*C6)) -> 0 | D24: =IF(D$4=0,0,IF($A24-1>D$5,0,D4*D6)) -> 0 | G24: 0 | I24: =IF(I$4=0,0,IF($A24-1>I$5,0,(I4-I10-I11)*I6)) -> 0 | J24: =IF(J$4=0,0,IF($A24-1>J$5,0,(J4-J11)*J6)) -> 0 | K24: =IF(K$4=0,0,IF($A24-1>K$5,0,K4*K6)) -> 0 | N24: 0 | P24: =IF(P$4=0,0,IF($A24-1>P$5,0,(P4-P10-P11)*P6)) -> 0 | Q24: =IF(Q$4=0,0,IF($A24-1>Q$5,0,(Q4-Q11)*Q6)) -> 0 | R24: =IF(R$4=0,0,IF($A24-1>R$5,0,R4*R6)) -> 0 | U24: 0
A25: 4 | B25: =IF(B$4=0,0,IF($A25-1>B$5,0,(B4-B10-B11-B12)*B6)) -> 0 | C25: =IF(C$4=0,0,IF($A25-1>C$5,0,(C4-C11-C12)*C6)) -> 0 | D25: =IF(D$4=0,0,IF($A25-1>D$5,0,(D4-D12)*D6)) -> 0 | E25: =IF(E$4=0,0,IF($A25-1>E$5,0,E4*E6)) -> 0 | G25: 0 | I25: =IF(I$4=0,0,IF($A25-1>I$5,0,(I4-I10-I11-I12)*I6)) -> 0 | J25: =IF(J$4=0,0,IF($A25-1>J$5,0,(J4-J11-J12)*J6)) -> 0 | K25: =IF(K$4=0,0,IF($A25-1>K$5,0,(K4-K12)*K6)) -> 0 | L25: =IF(L$4=0,0,IF($A25-1>L$5,0,L4*L6)) -> 0 | N25: 0 | P25: =IF(P$4=0,0,IF($A25-1>P$5,0,(P4-P10-P11-P12)*P6)) -> 0 | Q25: =IF(Q$4=0,0,IF($A25-1>Q$5,0,(Q4-Q11-Q12)*Q6)) -> 0 | R25: =IF(R$4=0,0,IF($A25-1>R$5,0,(R4-R12)*R6)) -> 0 | S25: =IF(S$4=0,0,IF($A25-1>S$5,0,S4*S6)) -> 0 | U25: 0
A26: 5 | B26: =IF(B$4=0,0,IF($A26-1>B$5,0,(B4-B10-B11-B12-B13)*B6)) -> 0 | C26: =IF(C$4=0,0,IF($A26-1>C$5,0,(C4-C11-C12-C13)*C6)) -> 0 | D26: =IF(D$4=0,0,IF($A26-1>D$5,0,(D4-D12-D13)*D6)) -> 0 | E26: =IF(E$4=0,0,IF($A26-1>E$5,0,(E4-E13)*E6)) -> 0 | F26: =IF(F$4=0,0,IF($A26-1>F$5,0,F4*F6)) -> 0 | G26: 0 | I26: =IF(I$4=0,0,IF($A26-1>I$5,0,(I4-I10-I11-I12-I13)*I6)) -> 0 | J26: =IF(J$4=0,0,IF($A26-1>J$5,0,(J4-J11-J12-J13)*J6)) -> 0 | K26: =IF(K$4=0,0,IF($A26-1>K$5,0,(K4-K12-K13)*K6)) -> 0 | L26: =IF(L$4=0,0,IF($A26-1>L$5,0,(L4-L13)*L6)) -> 0 | M26: =IF(M$4=0,0,IF($A26-1>M$5,0,M4*M6)) -> 0 | N26: 0 | P26: =IF(P$4=0,0,IF($A26-1>P$5,0,(P4-P10-P11-P12-P13)*P6)) -> 0 | Q26: =IF(Q$4=0,0,IF($A26-1>Q$5,0,(Q4-Q11-Q12-Q13)*Q6)) -> 0 | R26: =IF(R$4=0,0,IF($A26-1>R$5,0,(R4-R12-R13)*R6)) -> 0 | S26: =IF(S$4=0,0,IF($A26-1>S$5,0,(S4-S13)*S6)) -> 0 | T26: =IF(T$4=0,0,IF($A26-1>T$5,0,T4*T6)) -> 0 | U26: 0
A27: 6 | B27: =IF(B$4=0,0,IF($A27-1>B$5,0,(B4-B10-B11-B12-B13-B14)*B6)) -> 0 | C27: =IF(C$4=0,0,IF($A27-1>C$5,0,(C4-C11-C12-C13-C14)*C6)) -> 0 | D27: =IF(D$4=0,0,IF($A27-1>D$5,0,(D4-D12-D13-D14)*D6)) -> 0 | E27: =IF(E$4=0,0,IF($A27-1>E$5,0,(E4-E13-E14)*E6)) -> 0 | F27: =IF(F$4=0,0,IF($A27-1>F$5,0,(F4-F14)*F6)) -> 0 | G27: 0 | I27: =IF(I$4=0,0,IF($A27-1>I$5,0,(I4-I10-I11-I12-I13-I14)*I6)) -> 0 | J27: =IF(J$4=0,0,IF($A27-1>J$5,0,(J4-J11-J12-J13-J14)*J6)) -> 0 | K27: =IF(K$4=0,0,IF($A27-1>K$5,0,(K4-K12-K13-K14)*K6)) -> 0 | L27: =IF(L$4=0,0,IF($A27-1>L$5,0,(L4-L13-L14)*L6)) -> 0 | M27: =IF(M$4=0,0,IF($A27-1>M$5,0,(M4-M14)*M6)) -> 0 | N27: 0 | P27: =IF(P$4=0,0,IF($A27-1>P$5,0,(P4-P10-P11-P12-P13-P14)*P6)) -> 0 | Q27: =IF(Q$4=0,0,IF($A27-1>Q$5,0,(Q4-Q11-Q12-Q13-Q14)*Q6)) -> 0 | R27: =IF(R$4=0,0,IF($A27-1>R$5,0,(R4-R12-R13-R14)*R6)) -> 0 | S27: =IF(S$4=0,0,IF($A27-1>S$5,0,(S4-S13-S14)*S6)) -> 0 | T27: =IF(T$4=0,0,IF($A27-1>T$5,0,(T4-T14)*T6)) -> 0 | U27: 0
A28: 7 | B28: =IF(B$4=0,0,IF($A28-1>B$5,0,(B4-B10-B11-B12-B13-B14-B15)*B6)) -> 0 | C28: =IF(C$4=0,0,IF($A28-1>C$5,0,(C4-C11-C12-C13-C14-C15)*C6)) -> 0 | D28: =IF(D$4=0,0,IF($A28-1>D$5,0,(D4-D12-D13-D14-D15)*D6)) -> 0 | E28: =IF(E$4=0,0,IF($A28-1>E$5,0,(E4-E13-E14-E15)*E6)) -> 0 | F28: =IF(F$4=0,0,IF($A28-1>F$5,0,(F4-F14-F15)*F6)) -> 0 | G28: 0 | I28: =IF(I$4=0,0,IF($A28-1>I$5,0,(I4-I10-I11-I12-I13-I14-I15)*I6)) -> 0 | J28: =IF(J$4=0,0,IF($A28-1>J$5,0,(J4-J11-J12-J13-J14-J15)*J6)) -> 0 | K28: =IF(K$4=0,0,IF($A28-1>K$5,0,(K4-K12-K13-K14-K15)*K6)) -> 0 | L28: =IF(L$4=0,0,IF($A28-1>L$5,0,(L4-L13-L14-L15)*L6)) -> 0 | M28: =IF(M$4=0,0,IF($A28-1>M$5,0,(M4-M14-M15)*M6)) -> 0 | N28: 0 | P28: =IF(P$4=0,0,IF($A28-1>P$5,0,(P4-P10-P11-P12-P13-P14-P15)*P6)) -> 0 | Q28: =IF(Q$4=0,0,IF($A28-1>Q$5,0,(Q4-Q11-Q12-Q13-Q14-Q15)*Q6)) -> 0 | R28: =IF(R$4=0,0,IF($A28-1>R$5,0,(R4-R12-R13-R14-R15)*R6)) -> 0 | S28: =IF(S$4=0,0,IF($A28-1>S$5,0,(S4-S13-S14-S15)*S6)) -> 0 | T28: =IF(T$4=0,0,IF($A28-1>T$5,0,(T4-T14-T15)*T6)) -> 0 | U28: 0
A29: 8 | B29: =IF(B$4=0,0,IF($A29-1>B$5,0,(B4-B10-B11-B12-B13-B14-B15-B16)*B6)) -> 0 | C29: =IF(C$4=0,0,IF($A29-1>C$5,0,(C4-C11-C12-C13-C14-C15-C16)*C6)) -> 0 | D29: =IF(D$4=0,0,IF($A29-1>D$5,0,(D4-D12-D13-D14-D15-D16)*D6)) -> 0 | E29: =IF(E$4=0,0,IF($A29-1>E$5,0,(E4-E13-E14-E15-E16)*E6)) -> 0 | F29: =IF(F$4=0,0,IF($A29-1>F$5,0,(F4-F14-F15-F16)*F6)) -> 0 | G29: 0 | I29: =IF(I$4=0,0,IF($A29-1>I$5,0,(I4-I10-I11-I12-I13-I14-I15-I16)*I6)) -> 0 | J29: =IF(J$4=0,0,IF($A29-1>J$5,0,(J4-J11-J12-J13-J14-J15-J16)*J6)) -> 0 | K29: =IF(K$4=0,0,IF($A29-1>K$5,0,(K4-K12-K13-K14-K15-K16)*K6)) -> 0 | L29: =IF(L$4=0,0,IF($A29-1>L$5,0,(L4-L13-L14-L15-L16)*L6)) -> 0 | M29: =IF(M$4=0,0,IF($A29-1>M$5,0,(M4-M14-M15-M16)*M6)) -> 0 | N29: 0 | P29: =IF(P$4=0,0,IF($A29-1>P$5,0,(P4-P10-P11-P12-P13-P14-P15-P16)*P6)) -> 0 | Q29: =IF(Q$4=0,0,IF($A29-1>Q$5,0,(Q4-Q11-Q12-Q13-Q14-Q15-Q16)*Q6)) -> 0 | R29: =IF(R$4=0,0,IF($A29-1>R$5,0,(R4-R12-R13-R14-R15-R16)*R6)) -> 0 | S29: =IF(S$4=0,0,IF($A29-1>S$5,0,(S4-S13-S14-S15-S16)*S6)) -> 0 | T29: =IF(T$4=0,0,IF($A29-1>T$5,0,(T4-T14-T15-T16)*T6)) -> 0 | U29: 0
A30: 9 | B30: =IF(B$4=0,0,IF($A30-1>B$5,0,(B4-B10-B11-B12-B13-B14-B15-B16-B17)*B6)) -> 0 | C30: =IF(C$4=0,0,IF($A30-1>C$5,0,(C4-C11-C12-C13-C14-C15-C16-C17)*C6)) -> 0 | D30: =IF(D$4=0,0,IF($A30-1>D$5,0,(D4-D12-D13-D14-D15-D16-D17)*D6)) -> 0 | E30: =IF(E$4=0,0,IF($A30-1>E$5,0,(E4-E13-E14-E15-E16-E17)*E6)) -> 0 | F30: =IF(F$4=0,0,IF($A30-1>F$5,0,(F4-F14-F15-F16-F17)*F6)) -> 0 | G30: 0 | I30: =IF(I$4=0,0,IF($A30-1>I$5,0,(I4-I10-I11-I12-I13-I14-I15-I16-I17)*I6)) -> 0 | J30: =IF(J$4=0,0,IF($A30-1>J$5,0,(J4-J11-J12-J13-J14-J15-J16-J17)*J6)) -> 0 | K30: =IF(K$4=0,0,IF($A30-1>K$5,0,(K4-K12-K13-K14-K15-K16-K17)*K6)) -> 0 | L30: =IF(L$4=0,0,IF($A30-1>L$5,0,(L4-L13-L14-L15-L16-L17)*L6)) -> 0 | M30: =IF(M$4=0,0,IF($A30-1>M$5,0,(M4-M14-M15-M16-M17)*M6)) -> 0 | N30: 0 | P30: =IF(P$4=0,0,IF($A30-1>P$5,0,(P4-P10-P11-P12-P13-P14-P15-P16-P17)*P6)) -> 0 | Q30: =IF(Q$4=0,0,IF($A30-1>Q$5,0,(Q4-Q11-Q12-Q13-Q14-Q15-Q16-Q17)*Q6)) -> 0 | R30: =IF(R$4=0,0,IF($A30-1>R$5,0,(R4-R12-R13-R14-R15-R16-R17)*R6)) -> 0 | S30: =IF(S$4=0,0,IF($A30-1>S$5,0,(S4-S13-S14-S15-S16-S17)*S6)) -> 0 | T30: =IF(T$4=0,0,IF($A30-1>T$5,0,(T4-T14-T15-T16-T17)*T6)) -> 0 | U30: 0
A31: 10 | B31: =IF(B$4=0,0,IF($A31-1>B$5,0,(B4-B10-B11-B12-B13-B14-B15-B16-B17-B18)*B6)) -> 0 | C31: =IF(C$4=0,0,IF($A31-1>C$5,0,(C4-C11-C12-C13-C14-C15-C16-C17-C18)*C6)) -> 0 | D31: =IF(D$4=0,0,IF($A31-1>D$5,0,(D4-D12-D13-D14-D15-D16-D17-D18)*D6)) -> 0 | E31: =IF(E$4=0,0,IF($A31-1>E$5,0,(E4-E13-E14-E15-E16-E17-E18)*E6)) -> 0 | F31: =IF(F$4=0,0,IF($A31-1>F$5,0,(F4-F14-F15-F16-F17-F18)*F6)) -> 0 | G31: 0 | I31: =IF(I$4=0,0,IF($A31-1>I$5,0,(I4-I10-I11-I12-I13-I14-I15-I16-I17-I18)*I6)) -> 0 | J31: =IF(J$4=0,0,IF($A31-1>J$5,0,(J4-J11-J12-J13-J14-J15-J16-J17-J18)*J6)) -> 0 | K31: =IF(K$4=0,0,IF($A31-1>K$5,0,(K4-K12-K13-K14-K15-K16-K17-K18)*K6)) -> 0 | L31: =IF(L$4=0,0,IF($A31-1>L$5,0,(L4-L13-L14-L15-L16-L17-L18)*L6)) -> 0 | M31: =IF(M$4=0,0,IF($A31-1>M$5,0,(M4-M14-M15-M16-M17-M18)*M6)) -> 0 | N31: 0 | P31: =IF(P$4=0,0,IF($A31-1>P$5,0,(P4-P10-P11-P12-P13-P14-P15-P16-P17-P18)*P6)) -> 0 | Q31: =IF(Q$4=0,0,IF($A31-1>Q$5,0,(Q4-Q11-Q12-Q13-Q14-Q15-Q16-Q17-Q18)*Q6)) -> 0 | R31: =IF(R$4=0,0,IF($A31-1>R$5,0,(R4-R12-R13-R14-R15-R16-R17-R18)*R6)) -> 0 | S31: =IF(S$4=0,0,IF($A31-1>S$5,0,(S4-S13-S14-S15-S16-S17-S18)*S6)) -> 0 | T31: =IF(T$4=0,0,IF($A31-1>T$5,0,(T4-T14-T15-T16-T17-T18)*T6)) -> 0 | U31: 0
B34: -1

Sheet 8. Tilgungsplan Überblick
A2: Überblick Tilgungsplan
B4: Fremdkapital- aufnahme | C4: Kapitalzahlungen | D4: Zinszahlungen | E4: Schuldenstand am Jahresende
A5: Jahr 1 | B5: ='9. Tilgungsplan Detail'!B4+'9. Tilgungsplan Detail'!I4+'9. Tilgungsplan Detail'!P4 -> 0 | C5: =SUM('9. Tilgungsplan Detail'!G10,'9. Tilgungsplan Detail'!N10,'9. Tilgungsplan Detail'!U10) -> 0 | D5: =SUM('9. Tilgungsplan Detail'!G22,'9. Tilgungsplan Detail'!N22,'9. Tilgungsplan Detail'!U22) -> 0 | E5: =B5-C5 -> 0
A6: Jahr 2 | B6: ='9. Tilgungsplan Detail'!C4+'9. Tilgungsplan Detail'!J4+'9. Tilgungsplan Detail'!Q4 -> 0 | C6: =SUM('9. Tilgungsplan Detail'!G11,'9. Tilgungsplan Detail'!N11,'9. Tilgungsplan Detail'!U11) -> 0 | D6: =SUM('9. Tilgungsplan Detail'!G23,'9. Tilgungsplan Detail'!N23,'9. Tilgungsplan Detail'!U23) -> 0 | E6: =E5+B6-C6 -> 0
A7: Jahr 3 | B7: ='9. Tilgungsplan Detail'!D4+'9. Tilgungsplan Detail'!K4+'9. Tilgungsplan Detail'!R4 -> 0 | C7: =SUM('9. Tilgungsplan Detail'!G12,'9. Tilgungsplan Detail'!N12,'9. Tilgungsplan Detail'!U12) -> 0 | D7: =SUM('9. Tilgungsplan Detail'!G24,'9. Tilgungsplan Detail'!N24,'9. Tilgungsplan Detail'!U24) -> 0 | E7: 0
A8: Jahr 4 | B8: ='9. Tilgungsplan Detail'!E4+'9. Tilgungsplan Detail'!L4+'9. Tilgungsplan Detail'!S4 -> 0 | C8: =SUM('9. Tilgungsplan Detail'!G13,'9. Tilgungsplan Detail'!N13,'9. Tilgungsplan Detail'!U13) -> 0 | D8: =SUM('9. Tilgungsplan Detail'!G25,'9. Tilgungsplan Detail'!N25,'9. Tilgungsplan Detail'!U25) -> 0 | E8: 0
A9: Jahr 5 | B9: ='9. Tilgungsplan Detail'!F4+'9. Tilgungsplan Detail'!M4+'9. Tilgungsplan Detail'!T4 -> 0 | C9: =SUM('9. Tilgungsplan Detail'!G14,'9. Tilgungsplan Detail'!N14,'9. Tilgungsplan Detail'!U14) -> 0 | D9: =SUM('9. Tilgungsplan Detail'!G26,'9. Tilgungsplan Detail'!N26,'9. Tilgungsplan Detail'!U26) -> 0 | E9: 0
A10: Jahr 6 | B10: 0 | C10: =SUM('9. Tilgungsplan Detail'!G15,'9. Tilgungsplan Detail'!N15,'9. Tilgungsplan Detail'!U15) -> 0 | D10: =SUM('9. Tilgungsplan Detail'!G27,'9. Tilgungsplan Detail'!N27,'9. Tilgungsplan Detail'!U27) -> 0 | E10: 0
A11: Jahr 7 | B11: 0 | C11: =SUM('9. Tilgungsplan Detail'!G16,'9. Tilgungsplan Detail'!N16,'9. Tilgungsplan Detail'!U16) -> 0 | D11: =SUM('9. Tilgungsplan Detail'!G28,'9. Tilgungsplan Detail'!N28,'9. Tilgungsplan Detail'!U28) -> 0 | E11: 0
A12: Jahr 8 | B12: 0 | C12: =SUM('9. Tilgungsplan Detail'!G17,'9. Tilgungsplan Detail'!N17,'9. Tilgungsplan Detail'!U17) -> 0 | D12: =SUM('9. Tilgungsplan Detail'!G29,'9. Tilgungsplan Detail'!N29,'9. Tilgungsplan Detail'!U29) -> 0 | E12: 0
A13: Jahr 9 | B13: 0 | C13: =SUM('9. Tilgungsplan Detail'!G18,'9. Tilgungsplan Detail'!N18,'9. Tilgungsplan Detail'!U18) -> 0 | D13: =SUM('9. Tilgungsplan Detail'!G30,'9. Tilgungsplan Detail'!N30,'9. Tilgungsplan Detail'!U30) -> 0 | E13: 0
A14: Jahr 10 | B14: 0 | C14: =SUM('9. Tilgungsplan Detail'!G19,'9. Tilgungsplan Detail'!N19,'9. Tilgungsplan Detail'!U19) -> 0 | D14: =SUM('9. Tilgungsplan Detail'!G31,'9. Tilgungsplan Detail'!N31,'9. Tilgungsplan Detail'!U31) -> 0 | E14: 0

Sheet To-Do-Liste
A1: To-Do-Liste
C2: Wer? | D2: Bis wann? | E2: Dringlichkeit | F2: Wichtigkeit
A3: 1.
A4: 2.
A5: 3.
A6: 4.
A7: …
A8: …
A16: Notizen
A17: 1.
A18: 2.
A19: 3.
A20: 4.
A21: …
A22: …

Sheet Glossar
A1: Glossar
A3: Abschreibung
A4: Abschreibungen sind die zahlenmäßige Darstellung der Wertminderung eines Wirtschaftsgutes im Laufe einer Rechnungsperiode. Dieser Werteverzehr kommt durch die Nutzung (z.B. Verschleiß) oder den Zeitablauf (z.B. Wertminderung aufgrund technischer Neuerungen) zustande. Davon betroffen ist das gesamte Anlagevermögen, d.h. Maschinen, Immobilien, Fuhrpark, Computer usw. Die jährliche Abschreibequote ist steuer- und handelsrechtlich festgelegt. Die Abschreibung wird im Businessplan auf Basis der allgemeinen steuerlichen Abschreibequote und der Nutzungsdauer automatisch kalkuliert.
A6: Anlagevermögen
A7: Unter Anlagevermögen versteht man jene Teile des Vermögens, die dem Unternehmen langfristig (also mehrere Jahre) zur betrieblichen Leistungserstellung dienen (z.B. Grundstück, Gebäude, Geschäftsausstattung, Fuhrpark usw.).
A9: Businessplan
A10: Der Businessplan ist ein zukunftsgerichteter Geschäftsplan, der Unternehmensgründer/innen hilft, das geplante Geschäftsvorhaben gezielt auf seine Wirtschaftlichkeit hin zu überprüfen. Schriftlich festgehaltene Überlegungen zu Rechtsform, Markt, Konkurrenz, Marketing und vielem mehr sind wichtige Bestandteile eines Businessplans. Das Geschäftsvorhaben wird zudem zahlenmäßig erfasst: die Erfolgsrechnung ermöglicht eine Rentabilitätsvorschau, die Investitionsplanung verschafft Überblick über Investitionsbedarf und Gründungskosten, die Finanzplanung ermittelt den Kapitalbedarf.
A12: Break-even-Point
A13: Die Gewinnschwelle, fachlich auch "Break-even-Point" genannt, ist der Punkt, an dem Erlös und Kosten einer Produktion gleich hoch sind und somit weder Verlust noch Gewinn erwirtschaftet wird. Vereinfachend kann man sagen, dass an der Gewinnschwelle der Deckungsbeitrag aller abgesetzten Produkte identisch mit den Fixkosten ist. Wird die Gewinnschwelle überschritten, macht man Gewinne, wird sie unterschritten, macht man Verluste.
A15: Cash Flow
A16: Der Cash Flow, wörtlich übersetzt „Geldfluss“ bzw. „Zahlungsfluss“, ist der Einnahmenüberschuss, der erzielt wird. Der Cash Flow vermittelt einen Einblick in die Finanzlage, sprich in die Zahlungs- und Selbstfinanzierungskraft des Unternehmens. Er berechnet sich in seiner einfachsten Form als "Ergebnis nach Steuern plus Abschreibungen".
A18: Eigenkapital
A19: Unter Eigenkapital versteht man sämtliche finanzielle Mittel, welche vom rechtlichen Eigentümer, folglich dem/der Unternehmensgründer/in und/oder den Gesellschafter/innen zur Verfügung gestellt werden. Es ist jener Teil des Kapitalbedarfs, welcher selbst und ohne Hilfe von Krediten zur Finanzierung der Geschäftstätigkeit aufgebracht wird.
A21: Finanzierung
A22: Der Begriff der Finanzierung beschreibt die Beschaffung und Bereitstellung des notwendigen Kapitals zur Verwirklichung der Geschäftsidee. Es wird unterschieden zwischen Eigenkapital und Fremdkapital. Da es vorwiegend in der Phase der Unternehmensgründung hoher Investitionen bedarf, ist eine sorgfältig geplante Finanzierung entscheidend für den Erfolg eines Unternehmens.
A24: Fixkosten
A25: Die Fixkosten, auch beschäftigungsunabhängige Kosten genannt, sind Teil der Gesamtkosten und bleiben bei kurzfristig steigendem oder fallendem Beschäftigungsgrad konstant (z.B. Miete, Versicherungen, Betriebskosten usw.). Es ist daher gerade zu Beginn ratsam, die fixen Kosten so niedrig wie möglich zu halten, da sonst bei geringer Auslastung ein Liquiditätsengpass entstehen kann.
A27: Fremdkapital
A28: Das Fremdkapital umfasst sämtliche finanzielle Mittel, welche dem Unternehmen von Dritten zur Verfügung gestellt werden. Es wird in verzinsliches (z.B. Darlehen) und unverzinsliches (in der Regel Lieferantenverbindlichkeiten) Fremdkapital unterteilt. Durch die Kreditaufnahme entsteht gegenüber dem Kreditinstitut die feste Verpflichtung zur Bezahlung der Zinsen und zur Rückzahlung des geliehenen Kapitals. Fremdkapital und Eigenkapital zusammen bilden das Gesamtkapital.
A30: Gründungskosten
A31: Unter Gründungskosten versteht man all jene Kosten, die bei der Gründung eines Unternehmens anfallen (z.B. Notarspesen, Eintragung ins Handelsregister, Genehmigungen, Stempelgebühren usw.). Zudem fließen in die Gründungskosten auch all jene Spesen mit ein, die mit der Eröffnungsfeier, ersten Werbemaßnahmen, Beratungen usw. verbunden sind.
A33: INAIL (Istituto Nazionale per l’Assicurazione contro gli Infortuni sul Lavoro)
A34: Das INAIL ist die „Gesamtstaatliche Versicherungsanstalt gegen Arbeitsunfälle“ und leistet Kostenersatz bei Arbeitsunfällen oder Berufskrankheiten. Alle Personen, die im Betrieb tätig sind und einem Unfallrisiko unterliegen, sind versicherungspflichtig. Einzige Ausnahme bilden Einzelunternehmer/innen, die nicht im Register der Handwerksbetriebe eingetragen sind. Es gibt je nach Wirtschaftsbereich verschiedene Prämientarife.
A36: INPS (Istituto Nazionale della Previdenza Sociale)
A37: Für die Rentenpflichtversicherung ist das INPS (NIFS – Nationales Institut für Soziale Fürsorge) zuständig. Der italienische Gesetzgeber verpflichtet die Unternehmer/innen, sich um die eigene Kranken- und Altersversorgung zu kümmern und eigenständig Beiträge einzuzahlen. Unternehmer/innen sind außerdem verpflichtet, auch für die Mitarbeiter/innen die entsprechenden Beiträge einzuzahlen. Es gibt unterschiedliche Regelungen für die verschiedenen Wirtschaftsbereiche und Rechtsformen.
A39: Investition
A40: Investitionen sind langfristige Kapitalanlagen in mehrjährig nutzbare Wirtschaftsgüter, um spätere Einnahmen zu realisieren.
A42: Investitionskredit
A43: Ein Investitionskredit dient der Finanzierung des Anlagevermögens und hat eine mittel- bis langfristige Laufzeit (über 4 Jahre). Für die Gewährung eines Kredites werden in der Regel entsprechende Sicherheiten (Hypothek, Bürgschaft usw.) von Seiten des Kapitalgebers verlangt.
A45: Kontokorrentkredit
A46: Der K/K-Kredit dient dem laufenden Geschäfts- und Zahlungsverkehr. Kreditnehmer und Kreditgeber vereinbaren einen Kreditrahmen, der dazu verwendet wird, den Liquiditätsbedarf eines Unternehmens zu decken. Es werden Überweisungen, Ein- und Auszahlungen, Einlösung von Schecks, Daueraufträge usw. durchgeführt. Aufgrund der hohen Kosten durch Zinsen, Spesen und Gebühren sollte dieser Kredit nur als sehr kurzfristiges Finanzierungsmittel zur Deckung von Liquiditätsspitzen eingesetzt werden. Spesen für Transaktionen fallen auch dann an, wenn das Kontokorrent einen positiven Saldo aufweist. Hinweis: Eine vierteljährliche Berechnung der Zinsen und die so genannte Kreditbereitstellungsprovision können einen nicht zu vernachlässigenden Kostenfaktor des Kontokorrentkredits darstellen. Als Faustregel gilt: Der Umsatz soll 6-mal höher als der vereinbarte Kreditrahmen sein.
A48: Kundenforderung
A49: Eine Kundenforderung entsteht, wenn die Kunden die erworbene Ware oder die beanspruchte Dienstleistung nicht sofort bei Lieferung bzw. Erhalt bezahlen. Wenn Kund/innen heute kaufen und erst später bezahlen, gewährt das Unternehmen gewissermaßen einen Kredit. Es ist daher ratsam, die Kunden vorher auf ihre Zahlungsfähigkeit hin zu überprüfen. Ein Forderungsausfall kann besonders in der Gründungsphase erhebliche negative Auswirkungen auf das Unternehmen haben. Lange Zahlungsfristen bereiten vielen Unternehmensgründern Schwierigkeiten: Sie binden betriebsnotwendige Liquidität und erhöhen das Inkassorisiko. Außerdem weisen sie darauf hin, dass Absatzschwierigkeiten vorhanden sind und zwangsläufig lange Zahlungsziele akzeptiert werden müssen. Die Zahlungsfristen der Ausgangsrechnungen variieren je nach Branche.
A51: Lagerwert
A52: Der Lagerwert gibt den zahlenmäßigen Wert der im Lager befindlichen Ware an.
A54: Leasing
A55: Beim Leasing werden mobile bzw. immobile Güter nicht käuflich erworben, sondern gemietet. Der Leasingnehmer zahlt dem Leasinggeber für das Leasinggut eine vertraglich festgehaltene Gebühr (Leasingrate) und erwirbt damit das Nutzungsrecht des „geleasten“ Investitionsgutes. Leasing ist somit eine besondere Vertragsform der kurz- oder langfristigen Miete von Immobilien, Maschinen, Fahrzeugen usw. Nach der vereinbarten Nutzungsdauer kann das Leasingobjekt dem Leasinggeber entweder zurückgegeben oder zum verbleibenden Restwert erworben werden, falls der Leasingvertrag eine Kaufoption vorsieht.
A57: Leistungen von Dritten
A58: Unter Leistungen von Dritten versteht man jene Leistungen, die das Unternehmen nicht selbst erbringt, sondern an Dritte weitergibt, z.B. Montageleistungen, Wäscheservice im Hotel- und Restaurantbetrieb usw.
A60: Lieferantenverbindlichkeit
A61: Eine Verbindlichkeit gegenüber einem Lieferanten entsteht, wenn die erworbene Ware oder beanspruchte Dienstleistung nicht bei Erhalt, sondern erst später bezahlt wird. Der Lieferant gewährt gewissermaßen einen Kredit. Die Zahlungsfristen der Eingangsrechnungen variieren je nach Branche. Vergleiche auch Kundenforderungen.
A63: Lohnkosten
A64: Als Lohnkosten wird die Summe aller Kosten bezeichnet, die das Unternehmen trägt, wenn Arbeitnehmer/innen beschäftigt werden. Sie setzen sich aus dem Bruttolohn und zusätzlichen Abgaben zusammen. Zu den Abgaben zählen u.a. Kranken- und Rentenvorsorge, Versicherungen sowie Abfertigungsrückstellungen. Der/die Arbeitnehmer/in kann bei gleichem Bruttolohn, je nach Steuerfreibeträgen, einen höheren oder niedrigeren Nettolohn erhalten.
A66: Lohnkostenfaktor
A67: Der Lohnkostenfaktor ist jener Faktor, mit welchem der Nettolohn eines Arbeitnehmers multipliziert wird, um die gesamten, vom Arbeitgeber zu bezahlenden Lohnkosten zu berechnen. Diese Methode dient nur einer ersten, groben Schätzung der Gesamtlohnkosten. Die genaue Berechnung sollte von professionellen Arbeits- oder Lohnberater/innen durchgeführt werden. Die Richtwerte für den Lohnkostenfaktor liegen zwischen 2,0 und 2,2.
A69: Marketing
A70: Unter Marketing versteht man die konsequente Ausrichtung aller unternehmerischen Entscheidungen an den Kundenbedürfnissen und Marktmöglichkeiten. Umgangssprachlich wird unter Marketing häufig lediglich Werbung und Verkauf verstanden, welche jedoch nur einen Teil des Marketings eines Unternehmens ausmachen.
A72: Nebenkosten
A73: Nebenkosten sind direkte variable Kosten, bei denen es sich nicht um Wareneinsatz handelt (z.B. Provisionen, Kreditversicherung, Jahresprämien an Kunden usw.).
A75: Sonstige Erlöse
A76: Sonstige Erlöse sind zusätzliche Erträge, welche zwar jährlich anfallen aber nicht direkt mit dem Unternehmenszweck zusammenhängen. Sie werden nicht mittels der gewöhnlichen Geschäftstätigkeit erwirtschaftet, sondern aufgrund von Nebentätigkeiten (z.B. Mieteinnahmen).
A78: Standort
A79: Unter Standort versteht man jenen Ort, an dem sich das Unternehmen befindet und von wo aus es den Markt mit Waren und Dienstleistungen beliefert. Bei der Standortwahl ist eine betriebswirtschaftliche Analyse unerlässlich, wobei die maßgeblichen Kriterien von der Art des Betriebes abhängig sind. Der/die angehende Unternehmer/in sollte Markttrends, Nähe zum Absatzmarkt, strategische Lage, Verfügbarkeit und Kosten von Arbeitskräften, Infrastruktur, Förderungen und viele weitere Faktoren sorgfältig analysieren. Ein Unternehmen kann auch mehrere Standorte haben (Rechtssitz, Produktionsstätte, Lager usw.).
A81: Umsatz
A82: Der Umsatz definiert sich als Summe aller Erlöse, die durch den Verkauf von Waren und/oder Dienstleistungen in einer bestimmten Abrechnungsperiode erwirtschaftet werden können.
A84: Unternehmerlohn
A85: Der Unternehmerlohn ist das Entgelt für die Tätigkeit bzw. Leistung des/der Unternehmers/in im eigenen Unternehmen. Der Unternehmerlohn wird in der Regel so hoch angesetzt, wie eine Entlohnung in vergleichbarer Position.
A87: Variable Kosten
A88: Die variablen Kosten, welche auch als beschäftigungsabhängige Kosten bezeichnet werden, ändern sich bei steigendem oder fallendem Beschäftigungsgrad. Die Höhe der variablen Kosten ist somit abhängig von Produktion und Leistung (z.B. Wareneinsatz, Leistungen von Dritten, Vertriebskosten, Produktionskosten usw.).
A90: Variable Vertriebskosten
A91: Variable Vertriebskosten sind Kosten, welche direkt auf den Verkauf zurückzuführen sind. Ob die Vertriebskosten zu Lasten des Käufers oder des Verkäufers gehen, sieht der Kaufvertrag vor (z.B. Transport- und Logistikkosten usw.).
A93: Vertrieb
A94: Der Vertrieb stellt die Schnittstelle zwischen Unternehmen und Kunden dar und definiert den Weg, auf welchem das Produkt zu den Kunden gelangt. Er umfasst sowohl die Wahl der Absatzkanäle als auch die physische Verteilung der Produkte.
A96: Wareneinkauf
A97: Unter Wareneinkauf versteht man den Einkauf der Ware, die zur betrieblichen Leistungserstellung dient.
A99: Wareneinsatz
A100: Unter Wareneinsatz versteht man den gesamten „Verbrauch“ bzw. den Wert der verkauften Ware einer Abrechnungsperiode. Die verkaufte Ware kann entweder aus dem Lager bezogen oder durch Zukäufe erworben werden. Der Wareneinsatz berechnet sich folgendermaßen: Warenanfangsbestand + Wareneinkäufe - Warenendbestand oder Wareneinkauf +/- Lagerveränderung. Der in der Umsatzplanung anzugebende Prozentsatz gibt an, wie viel eine Ware dem Unternehmen im Verhältnis zum Verkaufspreis gekostet hat. Branchenrichtwerte: Einzelhandel von 40% bis 75%, Großhandel von 50% bis 90%, Restaurant von 25% bis 35%, Hotelbetrieb von 15% bis 30%, Produktionsbetrieb (personalintensiv) von 15% bis 35%, Produktionsbetrieb (materialintensiv) von 35% bis 70%.
A102: Zahlungsfrist
A103: Unter einer Zahlungsfrist versteht man den im Kaufvertrag festgehaltenen Zeitraum, in dem der Käufer verpflichtet ist, seine Verbindlichkeiten gegenüber dem Verkäufer/Lieferanten zu begleichen. Zahlungsfristen variieren je nach Branche.
A105: Zielgruppe
A106: Eine Zielgruppe ist jene Gruppe potentieller Käufer/innen, welche mittels Marketingmaßnahmen gezielt angesprochen werden, um sie zum Kauf einer Ware oder Dienstleistung zu animieren. Die Bildung einer Zielgruppe erfolgt meist über soziodemographische Daten wie Alter, Geschlecht, Einkommen, Familienstand, Wohnsitz usw. Aber auch Elemente wie Einstellungen, Werte, Lifestyle usw. - erhoben mittels professioneller Marktforschung - sind hilfreich um Zielgruppen zu definieren.
